Department,Entity,Transaction Date,Expense Type,Expense Area,Supplier,Transaction No.,Amount
"Department for Business, Energy and Industrial Strategy",The Coal Authority,31/12/2016,Hotel & Accommodation,Application Management,Redfern Travel Ltd,9997,180
"Department for Business, Energy and Industrial Strategy",The Coal Authority,31/01/2017,Hotel & Accommodation,Application Management,Redfern Travel Ltd,10253,231
"Department for Business, Energy and Industrial Strategy",The Coal Authority,27/02/2017,Mobiles Phones - Call Charges,Application Management,10244-Vodafone - cancellation of invoice,10630,-186.85
"Department for Business, Energy and Industrial Strategy",The Coal Authority,24/01/2017,Mobiles Phones - Call Charges,Application Management,Vodafone Limited (Corporate),10244,186.85
"Department for Business, Energy and Industrial Strategy",The Coal Authority,06/03/2017,Business Meetings,Board,9675-Ye Old Belle-Irrecoverable VAT,10957,69.68
"Department for Business, Energy and Industrial Strategy",The Coal Authority,06/12/2016,Business Meetings,Board,Te Olde Bell Hotel & Restaurant,9675,911.47
"Department for Business, Energy and Industrial Strategy",The Coal Authority,31/01/2017,Hotel & Accommodation,Board,Redfern Travel Ltd,10253,211
"Department for Business, Energy and Industrial Strategy",The Coal Authority,27/02/2017,Mobiles Phones - Call Charges,Board,10244-Vodafone - cancellation of invoice,10630,-157.5
"Department for Business, Energy and Industrial Strategy",The Coal Authority,24/01/2017,Mobiles Phones - Call Charges,Board,Vodafone Limited (Corporate),10244,157.5
"Department for Business, Energy and Industrial Strategy",The Coal Authority,31/01/2017,Stationery,Board,Ace Of Mansfield Ltd,10228,112.1
"Department for Business, Energy and Industrial Strategy",The Coal Authority,01/02/2017,Applications Consultancy,BOSS Programme,10445 - Wax,10780,14250
"Department for Business, Energy and Industrial Strategy",The Coal Authority,04/01/2017,Applications Consultancy,BOSS Programme,Kontrolla,9733,666.65
"Department for Business, Energy and Industrial Strategy",The Coal Authority,25/01/2017,Applications Consultancy,BOSS Programme,Midland Software Ltd,10114,25.44
"Department for Business, Energy and Industrial Strategy",The Coal Authority,25/01/2017,Applications Consultancy,BOSS Programme,Midland Software Ltd,10123,1019
"Department for Business, Energy and Industrial Strategy",The Coal Authority,17/02/2017,Applications Consultancy,BOSS Programme,Midland Software Ltd,10437,20.75
"Department for Business, Energy and Industrial Strategy",The Coal Authority,20/01/2017,Applications Consultancy,BOSS Programme,Sapphire Systems Plc,9441,925
"Department for Business, Energy and Industrial Strategy",The Coal Authority,31/01/2017,Applications Consultancy,BOSS Programme,Sapphire Systems Plc,9516,209.64
"Department for Business, Energy and Industrial Strategy",The Coal Authority,31/10/2016,Applications Consultancy,BOSS Programme,Wax Digital Ltd,10445,-14250
"Department for Business, Energy and Industrial Strategy",The Coal Authority,31/12/2016,CY - Intangible IT - Additions,BOSS Programme,Sapphire Systems Plc,10309,2040.69
"Department for Business, Energy and Industrial Strategy",The Coal Authority,04/01/2017,CY - Software Licences - Additions,BOSS Programme,Kontrolla,9733,5770
"Department for Business, Energy and Industrial Strategy",The Coal Authority,27/02/2017,Mobiles Phones - Call Charges,BOSS Programme,10244-Vodafone - cancellation of invoice,10630,-113.63
"Department for Business, Energy and Industrial Strategy",The Coal Authority,24/01/2017,Mobiles Phones - Call Charges,BOSS Programme,Vodafone Limited (Corporate),10244,38.68
"Department for Business, Energy and Industrial Strategy",The Coal Authority,24/01/2017,Mobiles Phones - Call Charges,BOSS Programme,Vodafone Limited (Corporate),10244,74.95
"Department for Business, Energy and Industrial Strategy",The Coal Authority,04/01/2017,Software Support & Maintenance - On Premise,BOSS Programme,Kontrolla,9733,1154
"Department for Business, Energy and Industrial Strategy",The Coal Authority,01/02/2017,Software Support & Maintenance - SaaS,BOSS Programme,10445 - Wax,10780,-14250
"Department for Business, Energy and Industrial Strategy",The Coal Authority,06/01/2017,Temporary Contractors,BOSS Programme,Hays,9756,1755
"Department for Business, Energy and Industrial Strategy",The Coal Authority,06/01/2017,Temporary Contractors,BOSS Programme,Hays,9757,1560
"Department for Business, Energy and Industrial Strategy",The Coal Authority,11/01/2017,Temporary Contractors,BOSS Programme,Hays,9759,1560
"Department for Business, Energy and Industrial Strategy",The Coal Authority,18/01/2017,Temporary Contractors,BOSS Programme,Hays,9922,1950
"Department for Business, Energy and Industrial Strategy",The Coal Authority,25/01/2017,Temporary Contractors,BOSS Programme,Hays,10074,1950
"Department for Business, Energy and Industrial Strategy",The Coal Authority,08/02/2017,Temporary Contractors,BOSS Programme,Hays,10531,1560
"Department for Business, Energy and Industrial Strategy",The Coal Authority,08/02/2017,Temporary Contractors,BOSS Programme,Hays,10532,1950
"Department for Business, Energy and Industrial Strategy",The Coal Authority,14/12/2016,Temporary Contractors,BOSS Programme,S F Recruitment Limited,9559,700
"Department for Business, Energy and Industrial Strategy",The Coal Authority,18/01/2017,Temporary Contractors,BOSS Programme,S F Recruitment Limited,9448,1000
"Department for Business, Energy and Industrial Strategy",The Coal Authority,25/01/2017,Temporary Contractors,BOSS Programme,S F Recruitment Limited,9432,1000
"Department for Business, Energy and Industrial Strategy",The Coal Authority,01/02/2017,Temporary Contractors,BOSS Programme,S F Recruitment Limited,9679,800
"Department for Business, Energy and Industrial Strategy",The Coal Authority,08/02/2017,Temporary Contractors,BOSS Programme,S F Recruitment Limited,9911,600
"Department for Business, Energy and Industrial Strategy",The Coal Authority,15/02/2017,Temporary Contractors,BOSS Programme,S F Recruitment Limited,10486,1000
"Department for Business, Energy and Industrial Strategy",The Coal Authority,10/01/2017,Infrastructure Consultancy,Business Analysis,Scisys Uk Ltd,9777,9046.33
"Department for Business, Energy and Industrial Strategy",The Coal Authority,14/02/2017,Infrastructure Consultancy,Business Analysis,Scisys Uk Ltd,10483,13687
"Department for Business, Energy and Industrial Strategy",The Coal Authority,06/03/2017,Business Entertainment / Hospitality,Business Development,Staff Expenses Control,10957,0.75
"Department for Business, Energy and Industrial Strategy",The Coal Authority,31/12/2016,Hotel & Accommodation,Business Development,Redfern Travel Ltd,9997,69.5
"Department for Business, Energy and Industrial Strategy",The Coal Authority,31/01/2017,Hotel & Accommodation,Business Development,Redfern Travel Ltd,10253,1503.18
"Department for Business, Energy and Industrial Strategy",The Coal Authority,01/02/2017,Insurance Premiums,Business Development,7598 - Willis,9665,-1500
"Department for Business, Energy and Industrial Strategy",The Coal Authority,31/01/2017,Membership Subscriptions,Business Development,Home Builders Federation Limited,10216,600
"Department for Business, Energy and Industrial Strategy",The Coal Authority,31/01/2017,Membership Subscriptions,Business Development,Home Builders Federation Limited,10217,2000
"Department for Business, Energy and Industrial Strategy",The Coal Authority,27/02/2017,Mobiles Phones - Call Charges,Business Development,10244-Vodafone - cancellation of invoice,10630,-115.58
"Department for Business, Energy and Industrial Strategy",The Coal Authority,24/01/2017,Mobiles Phones - Call Charges,Business Development,Vodafone Limited (Corporate),10244,115.58
"Department for Business, Energy and Industrial Strategy",The Coal Authority,10/01/2017,Public Relations,Business Development,Emphasis Training Ltd,9821,2886.9
"Department for Business, Energy and Industrial Strategy",The Coal Authority,31/01/2017,Short Term Vehicle Hire,Business Development,Enterprise Rent A Car,10075,83.6
"Department for Business, Energy and Industrial Strategy",The Coal Authority,15/02/2017,Short Term Vehicle Hire,Business Development,Enterprise Rent A Car,10062,78.6
"Department for Business, Energy and Industrial Strategy",The Coal Authority,15/02/2017,Short Term Vehicle Hire,Business Development,Enterprise Rent A Car,10063,43.15
"Department for Business, Energy and Industrial Strategy",The Coal Authority,06/09/2016,Training & Education,Business Development,AquaEnviro,10098,400
"Department for Business, Energy and Industrial Strategy",The Coal Authority,29/12/2016,Annual Report & Accounts,Communications & Brand,9670-Williams Lea,9923,0.6
"Department for Business, Energy and Industrial Strategy",The Coal Authority,29/12/2016,Annual Report & Accounts,Communications & Brand,Williams Lea,9670,7030
"Department for Business, Energy and Industrial Strategy",The Coal Authority,31/12/2016,Hotel & Accommodation,Communications & Brand,Redfern Travel Ltd,9997,407.4
"Department for Business, Energy and Industrial Strategy",The Coal Authority,31/01/2017,Hotel & Accommodation,Communications & Brand,Redfern Travel Ltd,10253,412.6
"Department for Business, Energy and Industrial Strategy",The Coal Authority,27/02/2017,Mobiles Phones - Call Charges,Communications & Brand,10244-Vodafone - cancellation of invoice,10630,-184.97
"Department for Business, Energy and Industrial Strategy",The Coal Authority,24/01/2017,Mobiles Phones - Call Charges,Communications & Brand,Vodafone Limited (Corporate),10244,184.97
"Department for Business, Energy and Industrial Strategy",The Coal Authority,31/12/2016,Public Relations,Communications & Brand,Gorkana Group Ltd,9285,208.95
"Department for Business, Energy and Industrial Strategy",The Coal Authority,31/12/2016,Public Relations,Communications & Brand,Gorkana Group Ltd,9286,502.62
"Department for Business, Energy and Industrial Strategy",The Coal Authority,31/01/2017,Public Relations,Communications & Brand,Gorkana Group Ltd,10178,351.06
"Department for Business, Energy and Industrial Strategy",The Coal Authority,31/01/2017,Public Relations,Communications & Brand,Gorkana Group Ltd,10179,196.47
"Department for Business, Energy and Industrial Strategy",The Coal Authority,31/12/2016,Public Relations,Communications & Brand,Ihs (Global) Limited,9449,1075.35
"Department for Business, Energy and Industrial Strategy",The Coal Authority,31/12/2016,Public Relations,Communications & Brand,Sharpe Pritchard,9287,425
"Department for Business, Energy and Industrial Strategy",The Coal Authority,31/01/2017,Public Relations,Communications & Brand,Sharpe Pritchard,10497,425
"Department for Business, Energy and Industrial Strategy",The Coal Authority,20/02/2017,Postage & Couriers,Customer Services,10274-Cancellation-paid by GPC,10303,-107.73
"Department for Business, Energy and Industrial Strategy",The Coal Authority,26/12/2016,Postage & Couriers,Customer Services,Royal Mail Group Plc,9349,100
"Department for Business, Energy and Industrial Strategy",The Coal Authority,01/02/2017,Postage & Couriers,Customer Services,Royal Mail Group Plc,10274,107.73
"Department for Business, Energy and Industrial Strategy",The Coal Authority,11/01/2017,Postage & Couriers,Customer Services,Tnt Uk Limited,9314,-26.38
"Department for Business, Energy and Industrial Strategy",The Coal Authority,01/02/2017,Stationery,Customer Services,9743 - Banner,10777,769.73
"Department for Business, Energy and Industrial Strategy",The Coal Authority,30/11/2016,Stationery,Customer Services,Banner Business Solutions,9282,170.94
"Department for Business, Energy and Industrial Strategy",The Coal Authority,31/01/2017,Stationery,Customer Services,Banner Business Solutions,10245,1081.9
"Department for Business, Energy and Industrial Strategy",The Coal Authority,20/01/2017,Stationery,Customer Services,Neopost Ltd,9430,124.7
"Department for Business, Energy and Industrial Strategy",The Coal Authority,13/01/2016,Applications Consultancy,Data Solutions,Scisys Uk Ltd,9703,4055.46
"Department for Business, Energy and Industrial Strategy",The Coal Authority,13/01/2017,Applications Consultancy,Data Solutions,Scisys Uk Ltd,9689,2259.85
"Department for Business, Energy and Industrial Strategy",The Coal Authority,13/01/2016,CY - Intangible IT - Additions,Data Solutions,Scisys Uk Ltd,9703,12896.55
"Department for Business, Energy and Industrial Strategy",The Coal Authority,01/02/2017,eCommerce Commission Charges,Data Solutions,Worldpay,10051,5.52
"Department for Business, Energy and Industrial Strategy",The Coal Authority,31/12/2016,Hotel & Accommodation,Data Solutions,Redfern Travel Ltd,9997,102.5
"Department for Business, Energy and Industrial Strategy",The Coal Authority,31/01/2017,Hotel & Accommodation,Data Solutions,Redfern Travel Ltd,10253,548.7
"Department for Business, Energy and Industrial Strategy",The Coal Authority,19/01/2017,Legal - General,Data Solutions,Dla Piper Uk Llp,10059,336
"Department for Business, Energy and Industrial Strategy",The Coal Authority,06/02/2017,Legal - General,Data Solutions,Dla Piper Uk Llp,10516,2237.5
"Department for Business, Energy and Industrial Strategy",The Coal Authority,31/01/2017,Ordance Survey Map Charges,Data Solutions,Ordnance Survey,10175,1222.4
"Department for Business, Energy and Industrial Strategy",The Coal Authority,31/01/2017,Ordance Survey Map Charges,Data Solutions,Ordnance Survey,10175,1487.2
"Department for Business, Energy and Industrial Strategy",The Coal Authority,31/01/2017,Ordance Survey Map Charges,Data Solutions,Ordnance Survey,10177,31478
"Department for Business, Energy and Industrial Strategy",The Coal Authority,03/02/2017,Public Relations,Data Solutions,Diversified Business,10310,3258
"Department for Business, Energy and Industrial Strategy",The Coal Authority,03/02/2017,Public Relations,Data Solutions,Diversified Business,10310,105
"Department for Business, Energy and Industrial Strategy",The Coal Authority,01/02/2017,Software Licenses - On Premise,Data Solutions,10149 - Insight,10931,6159.75
"Department for Business, Energy and Industrial Strategy",The Coal Authority,01/02/2017,Software Support & Maintenance - On Premise,Data Solutions,9369 - Trusted Business Intelligence,10918,1490.42
"Department for Business, Energy and Industrial Strategy",The Coal Authority,13/01/2016,Software Support & Maintenance - On Premise,Data Solutions,Scisys Uk Ltd,9703,3470.46
"Department for Business, Energy and Industrial Strategy",The Coal Authority,22/12/2016,Consultancy - Property Management,Development - Historic Property Liabilities,Commercial Property Partners,9373,1500
"Department for Business, Energy and Industrial Strategy",The Coal Authority,25/01/2017,Consultancy - Property Management,Development - Historic Property Liabilities,Marshall Farming Limited,10126,2208
"Department for Business, Energy and Industrial Strategy",The Coal Authority,31/12/2016,Hotel & Accommodation,Development - Historic Property Liabilities,Redfern Travel Ltd,9997,517.5
"Department for Business, Energy and Industrial Strategy",The Coal Authority,31/01/2017,Hotel & Accommodation,Development - Historic Property Liabilities,Redfern Travel Ltd,10253,437
"Department for Business, Energy and Industrial Strategy",The Coal Authority,19/01/2017,Legal - General,Development - Historic Property Liabilities,Land Registry,10044,75
"Department for Business, Energy and Industrial Strategy",The Coal Authority,11/01/2017,Legal - Property Title Search,Development - Historic Property Liabilities,Land Registry,10322,24
"Department for Business, Energy and Industrial Strategy",The Coal Authority,13/01/2017,Legal - Property Title Search,Development - Historic Property Liabilities,Land Registry,10323,12
"Department for Business, Energy and Industrial Strategy",The Coal Authority,26/01/2017,Legal - Property Title Search,Development - Historic Property Liabilities,Land Registry,10326,12
"Department for Business, Energy and Industrial Strategy",The Coal Authority,27/01/2017,Legal - Property Title Search,Development - Historic Property Liabilities,Land Registry,10328,6
"Department for Business, Energy and Industrial Strategy",The Coal Authority,03/02/2017,Legal - Property Title Search,Development - Historic Property Liabilities,Land Registry,10317,39
"Department for Business, Energy and Industrial Strategy",The Coal Authority,10/02/2017,Legal - Property Title Search,Development - Historic Property Liabilities,Land Registry,10329,6
"Department for Business, Energy and Industrial Strategy",The Coal Authority,14/02/2017,Legal - Property Title Search,Development - Historic Property Liabilities,Land Registry,10313,36
"Department for Business, Energy and Industrial Strategy",The Coal Authority,16/12/2016,Other Contractor Costs,Development - Historic Property Liabilities,MTS Cleansing Services LTD,9599,381.69
"Department for Business, Energy and Industrial Strategy",The Coal Authority,20/02/2017,Other Contractor Costs,Development - Historic Property Liabilities,Nal Plant Limited,10628,2139.23
"Department for Business, Energy and Industrial Strategy",The Coal Authority,11/01/2017,Property Rates Payable,Development - Historic Property Liabilities,British Gas Business,9870,16.25
"Department for Business, Energy and Industrial Strategy",The Coal Authority,11/01/2017,Property Rates Payable,Development - Historic Property Liabilities,British Gas Business,9870,286.53
"Department for Business, Energy and Industrial Strategy",The Coal Authority,07/02/2017,Property Rates Payable,Development - Historic Property Liabilities,British Gas Business,10528,38.07
"Department for Business, Energy and Industrial Strategy",The Coal Authority,13/02/2017,Property Rates Payable,Development - Historic Property Liabilities,British Gas Business,10589,47.19
"Department for Business, Energy and Industrial Strategy",The Coal Authority,13/02/2017,Property Rates Payable,Development - Historic Property Liabilities,British Gas Business,10589,216.91
"Department for Business, Energy and Industrial Strategy",The Coal Authority,16/02/2017,Property Rents Payable,Development - Historic Property Liabilities,MTS Cleansing Services LTD,10567,381.69
"Department for Business, Energy and Industrial Strategy",The Coal Authority,15/02/2017,Property Rents Payable,Development - Historic Property Liabilities,Network Rail,10558,912.5
"Department for Business, Energy and Industrial Strategy",The Coal Authority,15/02/2017,Property Rents Payable,Development - Historic Property Liabilities,Network Rail,10559,410.38
"Department for Business, Energy and Industrial Strategy",The Coal Authority,16/02/2017,Property Rents Payable,Development - Historic Property Liabilities,Southern Water Services Ltd,10566,125.17
"Department for Business, Energy and Industrial Strategy",The Coal Authority,31/01/2017,Hotel & Accommodation,Development - Legal,Redfern Travel Ltd,10253,446
"Department for Business, Energy and Industrial Strategy",The Coal Authority,31/01/2017,Legal - General,Development - Legal,Weightmans LLP,10176,700
"Department for Business, Energy and Industrial Strategy",The Coal Authority,20/01/2017,Membership Subscriptions,Development - Legal,Dx Network Services Ltd,9932,157.5
"Department for Business, Energy and Industrial Strategy",The Coal Authority,20/01/2017,Membership Subscriptions,Development - Legal,Dx Network Services Ltd,9933,157.5
"Department for Business, Energy and Industrial Strategy",The Coal Authority,20/01/2017,Membership Subscriptions,Development - Legal,Dx Network Services Ltd,10048,2780
"Department for Business, Energy and Industrial Strategy",The Coal Authority,08/02/2017,Membership Subscriptions,Development - Legal,Dx Network Services Ltd,10526,157.5
"Department for Business, Energy and Industrial Strategy",The Coal Authority,27/02/2017,Mobiles Phones - Call Charges,Development - Legal,10244-Vodafone - cancellation of invoice,10630,-36.69
"Department for Business, Energy and Industrial Strategy",The Coal Authority,24/01/2017,Mobiles Phones - Call Charges,Development - Legal,Vodafone Limited (Corporate),10244,36.69
"Department for Business, Energy and Industrial Strategy",The Coal Authority,16/12/2016,Software Support & Maintenance - SaaS,Development - Legal,Advanced Legal Sols Ltd,9506,265.46
"Department for Business, Energy and Industrial Strategy",The Coal Authority,16/12/2016,Software Support & Maintenance - SaaS,Development - Legal,Advanced Legal Sols Ltd,9506,150.59
"Department for Business, Energy and Industrial Strategy",The Coal Authority,15/11/2016,Training & Education,Development - Legal,Central Law Training,9892,230
"Department for Business, Energy and Industrial Strategy",The Coal Authority,23/01/2017,Training & Education,Development - Legal,Central Law Training,9910,240
"Department for Business, Energy and Industrial Strategy",The Coal Authority,01/01/2017,eCommerce Commission Charges,Development � Permissions,Worldpay,9814,350.33
"Department for Business, Energy and Industrial Strategy",The Coal Authority,01/02/2017,eCommerce Commission Charges,Development � Permissions,Worldpay,10051,749.54
"Department for Business, Energy and Industrial Strategy",The Coal Authority,02/02/2017,eCommerce Commission Charges,Development � Permissions,Worldpay Limited,9917,22.9
"Department for Business, Energy and Industrial Strategy",The Coal Authority,27/02/2017,Mobiles Phones - Call Charges,Development � Permissions,10244-Vodafone - cancellation of invoice,10630,-238
"Department for Business, Energy and Industrial Strategy",The Coal Authority,24/01/2017,Mobiles Phones - Call Charges,Development � Permissions,Vodafone Limited (Corporate),10244,36.69
"Department for Business, Energy and Industrial Strategy",The Coal Authority,24/01/2017,Mobiles Phones - Call Charges,Development � Permissions,Vodafone Limited (Corporate),10244,201.31
"Department for Business, Energy and Industrial Strategy",The Coal Authority,23/12/2016,Temporary Contractors,Development � Permissions,Key Personnel Solutions Ltd,9321,1377.68
"Department for Business, Energy and Industrial Strategy",The Coal Authority,13/01/2016,Applications Consultancy,Development - Planning & Local Authority Liaison,Scisys Uk Ltd,9703,1013.86
"Department for Business, Energy and Industrial Strategy",The Coal Authority,13/01/2017,Applications Consultancy,Development - Planning & Local Authority Liaison,Scisys Uk Ltd,9689,564.96
"Department for Business, Energy and Industrial Strategy",The Coal Authority,28/12/2016,Consultancy - Town Planning,Development - Planning & Local Authority Liaison,Anthony Northcote Planning,9631,2414.1
"Department for Business, Energy and Industrial Strategy",The Coal Authority,13/01/2016,CY - Intangible IT - Additions,Development - Planning & Local Authority Liaison,Scisys Uk Ltd,9703,3224.14
"Department for Business, Energy and Industrial Strategy",The Coal Authority,31/12/2016,Hotel & Accommodation,Development - Planning & Local Authority Liaison,Redfern Travel Ltd,9997,313.87
"Department for Business, Energy and Industrial Strategy",The Coal Authority,31/01/2017,Hotel & Accommodation,Development - Planning & Local Authority Liaison,Redfern Travel Ltd,10253,269.5
"Department for Business, Energy and Industrial Strategy",The Coal Authority,27/02/2017,Mobiles Phones - Call Charges,Development - Planning & Local Authority Liaison,10244-Vodafone - cancellation of invoice,10630,-96.69
"Department for Business, Energy and Industrial Strategy",The Coal Authority,24/01/2017,Mobiles Phones - Call Charges,Development - Planning & Local Authority Liaison,Vodafone Limited (Corporate),10244,96.69
"Department for Business, Energy and Industrial Strategy",The Coal Authority,01/02/2017,Software Licenses - On Premise,Development - Planning & Local Authority Liaison,10149 - Insight,10931,1539.94
"Department for Business, Energy and Industrial Strategy",The Coal Authority,01/02/2017,Software Support & Maintenance - On Premise,Development - Planning & Local Authority Liaison,9369 - Trusted Business Intelligence,10918,372.6
"Department for Business, Energy and Industrial Strategy",The Coal Authority,13/01/2016,Software Support & Maintenance - On Premise,Development - Planning & Local Authority Liaison,Scisys Uk Ltd,9703,867.62
"Department for Business, Energy and Industrial Strategy",The Coal Authority,13/01/2016,Applications Consultancy,Development - Property Management,Scisys Uk Ltd,9703,1013.86
"Department for Business, Energy and Industrial Strategy",The Coal Authority,13/01/2017,Applications Consultancy,Development - Property Management,Scisys Uk Ltd,9689,564.97
"Department for Business, Energy and Industrial Strategy",The Coal Authority,30/01/2017,Closed Colliery Site Restoration,Development - Property Management,Crimefighter Alarms Ltd,9436,1213.74
"Department for Business, Energy and Industrial Strategy",The Coal Authority,31/12/2016,Closed Colliery Site Restoration,Development - Property Management,Ovenden Plant Hire Limited,9561,30.86
"Department for Business, Energy and Industrial Strategy",The Coal Authority,22/01/2017,Closed Colliery Site Restoration,Development - Property Management,Ovenden Plant Hire Limited,9963,46.29
"Department for Business, Energy and Industrial Strategy",The Coal Authority,27/02/2017,Consultancy - Property Management,Development - Property Management,KGF Services,10596,640
"Department for Business, Energy and Industrial Strategy",The Coal Authority,13/01/2016,CY - Intangible IT - Additions,Development - Property Management,Scisys Uk Ltd,9703,3224.13
"Department for Business, Energy and Industrial Strategy",The Coal Authority,31/12/2016,Hotel & Accommodation,Development - Property Management,Redfern Travel Ltd,9997,270.6
"Department for Business, Energy and Industrial Strategy",The Coal Authority,06/03/2017,Legal - General,Development - Property Management,10246 - Gas Vent Legal Fees,10938,-910
"Department for Business, Energy and Industrial Strategy",The Coal Authority,06/03/2017,Legal - General,Development - Property Management,10246 - Gas Vent Surveyors Fees,10938,-750
"Department for Business, Energy and Industrial Strategy",The Coal Authority,17/02/2017,Legal - General,Development - Property Management,10246-Hewitts Solicitors,11078,330
"Department for Business, Energy and Industrial Strategy",The Coal Authority,13/12/2016,Legal - General,Development - Property Management,Anderson Strathern,9857,178
"Department for Business, Energy and Industrial Strategy",The Coal Authority,01/02/2017,Legal - General,Development - Property Management,Anderson Strathern,10535,772
"Department for Business, Energy and Industrial Strategy",The Coal Authority,17/02/2017,Legal - General,Development - Property Management,Hewitts Solicitors,10246,910
"Department for Business, Energy and Industrial Strategy",The Coal Authority,17/02/2017,Legal - General,Development - Property Management,Hewitts Solicitors,10246,750
"Department for Business, Energy and Industrial Strategy",The Coal Authority,29/12/2016,Legal - General,Development - Property Management,Walker Morris,9855,2330.3
"Department for Business, Energy and Industrial Strategy",The Coal Authority,29/12/2016,Legal - General,Development - Property Management,Walker Morris,9855,6
"Department for Business, Energy and Industrial Strategy",The Coal Authority,31/01/2017,Legal - General,Development - Property Management,Walker Morris,10226,465.1
"Department for Business, Energy and Industrial Strategy",The Coal Authority,27/02/2017,Mobiles Phones - Call Charges,Development - Property Management,10244-Vodafone - cancellation of invoice,10630,-122.82
"Department for Business, Energy and Industrial Strategy",The Coal Authority,24/01/2017,Mobiles Phones - Call Charges,Development - Property Management,Vodafone Limited (Corporate),10244,122.82
"Department for Business, Energy and Industrial Strategy",The Coal Authority,13/01/2017,Other Contractor Costs,Development - Property Management,Atkins Limited,9832,1691.35
"Department for Business, Energy and Industrial Strategy",The Coal Authority,31/01/2017,Other Contractor Costs,Development - Property Management,Jmc Engineering Uk Ltd,9518,143.2
"Department for Business, Energy and Industrial Strategy",The Coal Authority,31/01/2017,Other Contractor Costs,Development - Property Management,Jmc Engineering Uk Ltd,9521,4009.7
"Department for Business, Energy and Industrial Strategy",The Coal Authority,19/01/2017,Other Contractor Costs,Development - Property Management,MTS Cleansing Services LTD,10056,381.69
"Department for Business, Energy and Industrial Strategy",The Coal Authority,22/01/2017,Other Contractor Costs,Development - Property Management,Ovenden Plant Hire Limited,9965,390.8
"Department for Business, Energy and Industrial Strategy",The Coal Authority,31/01/2017,Other Contractor Costs,Development - Property Management,Ovenden Plant Hire Limited,10158,249.42
"Department for Business, Energy and Industrial Strategy",The Coal Authority,31/01/2017,Other Contractor Costs,Development - Property Management,Ovenden Plant Hire Limited,10159,30.86
"Department for Business, Energy and Industrial Strategy",The Coal Authority,06/03/2017,Property Rents Payable,Development - Property Management,10246 - Gas Vent Adv Rent,10938,-4250
"Department for Business, Energy and Industrial Strategy",The Coal Authority,06/03/2017,Property Rents Payable,Development - Property Management,10246 - Gas Vent Back Rent,10938,-555.54
"Department for Business, Energy and Industrial Strategy",The Coal Authority,17/02/2017,Property Rents Payable,Development - Property Management,Hewitts Solicitors,10246,555.54
"Department for Business, Energy and Industrial Strategy",The Coal Authority,17/02/2017,Property Rents Payable,Development - Property Management,Hewitts Solicitors,10246,4250
"Department for Business, Energy and Industrial Strategy",The Coal Authority,31/12/2016,Short Term Vehicle Hire,Development - Property Management,Enterprise Rent A Car,9533,70.3
"Department for Business, Energy and Industrial Strategy",The Coal Authority,01/02/2017,Software Licenses - On Premise,Development - Property Management,10149 - Insight,10931,1539.94
"Department for Business, Energy and Industrial Strategy",The Coal Authority,01/02/2017,Software Support & Maintenance - On Premise,Development - Property Management,9369 - Trusted Business Intelligence,10918,372.6
"Department for Business, Energy and Industrial Strategy",The Coal Authority,13/01/2016,Software Support & Maintenance - On Premise,Development - Property Management,Scisys Uk Ltd,9703,867.62
"Department for Business, Energy and Industrial Strategy",The Coal Authority,13/02/2017,CY - Minewater Scheme - Additions,Environment - Coal Mine Build,Atkins Limited,9927,533.78
"Department for Business, Energy and Industrial Strategy",The Coal Authority,16/02/2017,CY - Minewater Scheme - Additions,Environment - Coal Mine Build,Atkins Limited,10570,596.33
"Department for Business, Energy and Industrial Strategy",The Coal Authority,16/02/2017,CY - Minewater Scheme - Additions,Environment - Coal Mine Build,Atkins Limited,10571,780
"Department for Business, Energy and Industrial Strategy",The Coal Authority,10/01/2017,CY - Minewater Scheme - Additions,Environment - Coal Mine Build,Cornerstone  Projects Ltd,9881,219
"Department for Business, Energy and Industrial Strategy",The Coal Authority,17/02/2017,CY - Minewater Scheme - Additions,Environment - Coal Mine Build,Cornerstone  Projects Ltd,10577,375.95
"Department for Business, Energy and Industrial Strategy",The Coal Authority,01/01/2017,CY - Minewater Scheme - Additions,Environment - Coal Mine Build,J N Bentley Limited,9331,-1232.86
"Department for Business, Energy and Industrial Strategy",The Coal Authority,01/01/2017,CY - Minewater Scheme - Additions,Environment - Coal Mine Build,J N Bentley Limited,9335,1511.79
"Department for Business, Energy and Industrial Strategy",The Coal Authority,01/01/2017,CY - Minewater Scheme - Additions,Environment - Coal Mine Build,J N Bentley Limited,9336,2078.65
"Department for Business, Energy and Industrial Strategy",The Coal Authority,01/01/2017,CY - Minewater Scheme - Additions,Environment - Coal Mine Build,J N Bentley Limited,9338,1451.63
"Department for Business, Energy and Industrial Strategy",The Coal Authority,01/01/2017,CY - Minewater Scheme - Additions,Environment - Coal Mine Build,J N Bentley Limited,9339,19879.78
"Department for Business, Energy and Industrial Strategy",The Coal Authority,01/01/2017,CY - Minewater Scheme - Additions,Environment - Coal Mine Build,J N Bentley Limited,9344,657.57
"Department for Business, Energy and Industrial Strategy",The Coal Authority,01/01/2017,CY - Minewater Scheme - Additions,Environment - Coal Mine Build,J N Bentley Limited,9345,6125.09
"Department for Business, Energy and Industrial Strategy",The Coal Authority,01/01/2017,CY - Minewater Scheme - Additions,Environment - Coal Mine Build,J N Bentley Limited,9401,-90
"Department for Business, Energy and Industrial Strategy",The Coal Authority,08/02/2017,CY - Minewater Scheme - Additions,Environment - Coal Mine Build,Jeremy Benn Associates Ltd,10529,2747.75
"Department for Business, Energy and Industrial Strategy",The Coal Authority,31/12/2016,CY - Minewater Scheme - Additions,Environment - Coal Mine Build,Jmc Engineering Uk Ltd,9896,873.89
"Department for Business, Energy and Industrial Strategy",The Coal Authority,21/02/2017,CY - Minewater Scheme - Additions,Environment - Coal Mine Build,"Lea, Hough & co LLP",10680,812.65
"Department for Business, Energy and Industrial Strategy",The Coal Authority,31/01/2017,CY - Minewater Scheme - Additions,Environment - Coal Mine Build,Mark N Carey Limited,10267,747.5
"Department for Business, Energy and Industrial Strategy",The Coal Authority,31/01/2017,CY - Minewater Scheme - Additions,Environment - Coal Mine Build,Mark N Carey Limited,10268,585
"Department for Business, Energy and Industrial Strategy",The Coal Authority,31/01/2017,CY - Minewater Scheme - Additions,Environment - Coal Mine Build,Mark N Carey Limited,10270,292.5
"Department for Business, Energy and Industrial Strategy",The Coal Authority,17/02/2017,CY - Minewater Scheme - Additions,Environment - Coal Mine Build,Mark N Carey Limited,10269,565.5
"Department for Business, Energy and Industrial Strategy",The Coal Authority,14/12/2016,CY - Minewater Scheme - Additions,Environment - Coal Mine Build,Mott Macdonald Ltd,10449,3469.8
"Department for Business, Energy and Industrial Strategy",The Coal Authority,21/12/2016,CY - Minewater Scheme - Additions,Environment - Coal Mine Build,Mott Macdonald Ltd,9602,1360.5
"Department for Business, Energy and Industrial Strategy",The Coal Authority,19/10/2016,CY - Minewater Scheme - Additions,Environment - Coal Mine Build,Northumbrian Water Limited,10138,276.4
"Department for Business, Energy and Industrial Strategy",The Coal Authority,17/01/2017,CY - Minewater Scheme - Additions,Environment - Coal Mine Build,Red7 Inshore Diving Ltd,9694,15257.75
"Department for Business, Energy and Industrial Strategy",The Coal Authority,27/02/2017,CY - Minewater Scheme - Additions,Environment - Coal Mine Build,Red7 Inshore Diving Ltd,10615,9590.5
"Department for Business, Energy and Industrial Strategy",The Coal Authority,21/02/2017,CY - Minewater Scheme - Additions,Environment - Coal Mine Build,Wyg Engineering Ltd,10674,356.8
"Department for Business, Energy and Industrial Strategy",The Coal Authority,21/02/2017,CY - Minewater Scheme - Additions,Environment - Coal Mine Build,Wyg Engineering Ltd,10675,1627.13
"Department for Business, Energy and Industrial Strategy",The Coal Authority,24/01/2017,CY - Minewater Scheme - Additions,Environment - Coal Mine Build,Wyg Env Planning Transport Ltd,10104,475.73
"Department for Business, Energy and Industrial Strategy",The Coal Authority,15/02/2017,CY - Minewater Scheme - Additions,Environment - Coal Mine Build,Wyg Env Planning Transport Ltd,10103,654.13
"Department for Business, Energy and Industrial Strategy",The Coal Authority,01/01/2017,CY - Subsidence Pumping - Additions,Environment - Coal Mine Build,J N Bentley Limited,9346,600.77
"Department for Business, Energy and Industrial Strategy",The Coal Authority,01/01/2017,CY - Subsidence Pumping - Additions,Environment - Coal Mine Build,J N Bentley Limited,9352,3033.46
"Department for Business, Energy and Industrial Strategy",The Coal Authority,31/12/2016,Hotel & Accommodation,Environment - Coal Mine Build,Redfern Travel Ltd,9997,1255.45
"Department for Business, Energy and Industrial Strategy",The Coal Authority,31/01/2017,Hotel & Accommodation,Environment - Coal Mine Build,Redfern Travel Ltd,10253,1155.94
"Department for Business, Energy and Industrial Strategy",The Coal Authority,13/12/2016,Legal - General,Environment - Coal Mine Build,Anderson Strathern,9857,260
"Department for Business, Energy and Industrial Strategy",The Coal Authority,01/02/2017,Legal - General,Environment - Coal Mine Build,Anderson Strathern,10535,234
"Department for Business, Energy and Industrial Strategy",The Coal Authority,19/01/2017,Legal - General,Environment - Coal Mine Build,Dla Piper Uk Llp,10059,4321.5
"Department for Business, Energy and Industrial Strategy",The Coal Authority,06/02/2017,Legal - General,Environment - Coal Mine Build,Dla Piper Uk Llp,10516,11186.5
"Department for Business, Energy and Industrial Strategy",The Coal Authority,16/01/2017,Legal - General,Environment - Coal Mine Build,Walker Morris,10513,1472.98
"Department for Business, Energy and Industrial Strategy",The Coal Authority,31/01/2017,Legal - General,Environment - Coal Mine Build,Walker Morris,10226,1197.3
"Department for Business, Energy and Industrial Strategy",The Coal Authority,01/01/2017,Minewater Framework - Consultancy,Environment - Coal Mine Build,J N Bentley Limited,9347,608.66
"Department for Business, Energy and Industrial Strategy",The Coal Authority,01/01/2017,Minewater Framework - Consultancy,Environment - Coal Mine Build,J N Bentley Limited,9353,3222.32
"Department for Business, Energy and Industrial Strategy",The Coal Authority,01/01/2017,Minewater Framework - Consultancy,Environment - Coal Mine Build,J N Bentley Limited,9355,1435.63
"Department for Business, Energy and Industrial Strategy",The Coal Authority,08/02/2017,Minewater Pumping Tests,Environment - Coal Mine Build,Savills (Uk) Ltd,10373,500
"Department for Business, Energy and Industrial Strategy",The Coal Authority,01/02/2017,Minewater Rent,Environment - Coal Mine Build,Thwaites Brewery,10285,1750
"Department for Business, Energy and Industrial Strategy",The Coal Authority,10/01/2017,Minewater Sampling - 'Non-operational' Sites,Environment - Coal Mine Build,Environmental Scientifics Grp,9761,84.1
"Department for Business, Energy and Industrial Strategy",The Coal Authority,09/02/2017,Minewater Sampling - 'Non-operational' Sites,Environment - Coal Mine Build,Environmental Scientifics Grp,10468,84.1
"Department for Business, Energy and Industrial Strategy",The Coal Authority,27/02/2017,Mobiles Phones - Call Charges,Environment - Coal Mine Build,10244-Vodafone - cancellation of invoice,10630,-110.07
"Department for Business, Energy and Industrial Strategy",The Coal Authority,24/01/2017,Mobiles Phones - Call Charges,Environment - Coal Mine Build,Vodafone Limited (Corporate),10244,36.69
"Department for Business, Energy and Industrial Strategy",The Coal Authority,24/01/2017,Mobiles Phones - Call Charges,Environment - Coal Mine Build,Vodafone Limited (Corporate),10244,36.69
"Department for Business, Energy and Industrial Strategy",The Coal Authority,24/01/2017,Mobiles Phones - Call Charges,Environment - Coal Mine Build,Vodafone Limited (Corporate),10244,36.69
"Department for Business, Energy and Industrial Strategy",The Coal Authority,15/02/2017,Short Term Vehicle Hire,Environment - Coal Mine Build,Enterprise Rent A Car,10067,26.75
"Department for Business, Energy and Industrial Strategy",The Coal Authority,06/03/2017,Software Licenses - On Premise,Environment - Coal Mine Build,9520 - Clearvision,10947,1565.99
"Department for Business, Energy and Industrial Strategy",The Coal Authority,25/02/2017,Subsidence Pumping Maintenance - Other,Environment - Coal Mine Build,Briggs Land Drainage & Excavations Ltd,10682,4414.2
"Department for Business, Energy and Industrial Strategy",The Coal Authority,27/02/2017,Subsidence Pumping Maintenance - Other,Environment - Coal Mine Build,Compensation Payment,10613,6868.6
"Department for Business, Energy and Industrial Strategy",The Coal Authority,04/01/2017,Subsidence Pumping Maintenance - Other,Environment - Coal Mine Build,Jeremy Benn Associates Ltd,9594,5266.5
"Department for Business, Energy and Industrial Strategy",The Coal Authority,11/01/2017,Subsidence Pumping Maintenance - Other,Environment - Coal Mine Build,Jeremy Benn Associates Ltd,9628,2765.12
"Department for Business, Energy and Industrial Strategy",The Coal Authority,02/02/2017,Subsidence Pumping Maintenance - Other,Environment - Coal Mine Build,Jeremy Benn Associates Ltd,10291,1834
"Department for Business, Energy and Industrial Strategy",The Coal Authority,16/12/2016,Subsidence Pumping Maintenance - Other,Environment - Coal Mine Build,Nal Plant Limited,9627,15227.56
"Department for Business, Energy and Industrial Strategy",The Coal Authority,01/02/2017,Subsidence Pumping Maintenance - Other,Environment - Coal Mine Build,Nal Plant Limited,10284,30168.33
"Department for Business, Energy and Industrial Strategy",The Coal Authority,27/01/2017,Subsidence Pumping Maintenance - Other,Environment - Coal Mine Build,Steve Vine Land Drainage Sltns,10254,945
"Department for Business, Energy and Industrial Strategy",The Coal Authority,20/02/2017,Subsidence Pumping Maintenance - Other,Environment - Coal Mine Build,Steve Vine Land Drainage Sltns,10629,1813
"Department for Business, Energy and Industrial Strategy",The Coal Authority,10/01/2017,Surface Hazards - Contractor & Claim Costs,Environment - Coal Mine Build,Cornerstone  Projects Ltd,9778,184
"Department for Business, Energy and Industrial Strategy",The Coal Authority,01/11/2016,Temporary Contractors,Environment - Coal Mine Build,Conrad Consulting,10447,1840
"Department for Business, Energy and Industrial Strategy",The Coal Authority,24/01/2017,Temporary Contractors,Environment - Coal Mine Build,Conrad Consulting,9434,1840
"Department for Business, Energy and Industrial Strategy",The Coal Authority,31/01/2017,Temporary Contractors,Environment - Coal Mine Build,Conrad Consulting,9820,1840
"Department for Business, Energy and Industrial Strategy",The Coal Authority,07/02/2017,Temporary Contractors,Environment - Coal Mine Build,Conrad Consulting,9805,1840
"Department for Business, Energy and Industrial Strategy",The Coal Authority,30/01/2017,Temporary Contractors,Environment - Coal Mine Build,Huxley Associates,9818,2240
"Department for Business, Energy and Industrial Strategy",The Coal Authority,18/11/2016,Temporary Contractors,Environment - Coal Mine Build,Key Personnel Solutions Ltd,9811,36.5
"Department for Business, Energy and Industrial Strategy",The Coal Authority,23/12/2016,Temporary Contractors,Environment - Coal Mine Build,Key Personnel Solutions Ltd,9321,2119.3
"Department for Business, Energy and Industrial Strategy",The Coal Authority,30/12/2016,Temporary Contractors,Environment - Coal Mine Build,Key Personnel Solutions Ltd,9323,1271.58
"Department for Business, Energy and Industrial Strategy",The Coal Authority,13/01/2017,Temporary Contractors,Environment - Coal Mine Build,Key Personnel Solutions Ltd,9320,1695.44
"Department for Business, Energy and Industrial Strategy",The Coal Authority,13/01/2017,Temporary Contractors,Environment - Coal Mine Build,Key Personnel Solutions Ltd,9320,423.86
"Department for Business, Energy and Industrial Strategy",The Coal Authority,27/01/2017,Temporary Contractors,Environment - Coal Mine Build,Key Personnel Solutions Ltd,9674,2119.3
"Department for Business, Energy and Industrial Strategy",The Coal Authority,03/02/2017,Temporary Contractors,Environment - Coal Mine Build,Key Personnel Solutions Ltd,9941,2119.3
"Department for Business, Energy and Industrial Strategy",The Coal Authority,10/02/2017,Temporary Contractors,Environment - Coal Mine Build,Key Personnel Solutions Ltd,10542,134.64
"Department for Business, Energy and Industrial Strategy",The Coal Authority,10/02/2017,Temporary Contractors,Environment - Coal Mine Build,Key Personnel Solutions Ltd,10541,2119.3
"Department for Business, Energy and Industrial Strategy",The Coal Authority,17/02/2017,Temporary Contractors,Environment - Coal Mine Build,Key Personnel Solutions Ltd,10575,22.57
"Department for Business, Energy and Industrial Strategy",The Coal Authority,17/02/2017,Temporary Contractors,Environment - Coal Mine Build,Key Personnel Solutions Ltd,10576,2119.3
"Department for Business, Energy and Industrial Strategy",The Coal Authority,21/12/2016,Temporary Contractors,Environment - Coal Mine Build,Mott Macdonald Ltd,9603,4988.5
"Department for Business, Energy and Industrial Strategy",The Coal Authority,21/12/2016,Temporary Contractors,Environment - Coal Mine Build,Mott Macdonald Ltd,9604,11950.4
"Department for Business, Energy and Industrial Strategy",The Coal Authority,31/01/2017,Temporary Contractors,Environment - Coal Mine Build,Mott Macdonald Ltd,10155,2357.75
"Department for Business, Energy and Industrial Strategy",The Coal Authority,15/02/2017,Consultancy - Commercialisation Costs,Environment - Commercial,Environmental Scientifics Grp,10487,84.1
"Department for Business, Energy and Industrial Strategy",The Coal Authority,01/02/2017,eCommerce Commission Charges,Environment - Commercial,Worldpay,10051,3.9
"Department for Business, Energy and Industrial Strategy",The Coal Authority,19/01/2017,Contract Hire Vehicles,Environment - Contract Management,9460-Alphabet VAT restriction,9795,-88.46
"Department for Business, Energy and Industrial Strategy",The Coal Authority,01/01/2017,Contract Hire Vehicles,Environment - Contract Management,9463-Alphabet VAT restriction,9795,26.89
"Department for Business, Energy and Industrial Strategy",The Coal Authority,01/01/2017,Contract Hire Vehicles,Environment - Contract Management,Alphabet Uk Fleet Man Ltd,9463,461.16
"Department for Business, Energy and Industrial Strategy",The Coal Authority,03/03/2017,CY - Minewater Scheme - Additions,Environment - Contract Management,10461 Severn Trent Serv Ops Uk Ltd,10809,3871.17
"Department for Business, Energy and Industrial Strategy",The Coal Authority,03/03/2017,CY - Minewater Scheme - Additions,Environment - Contract Management,10461 Severn Trent Serv Ops Uk Ltd,10809,304.35
"Department for Business, Energy and Industrial Strategy",The Coal Authority,03/03/2017,CY - Minewater Scheme - Additions,Environment - Contract Management,10461 Severn Trent Serv Ops Uk Ltd,10809,257.06
"Department for Business, Energy and Industrial Strategy",The Coal Authority,03/03/2017,CY - Minewater Scheme - Additions,Environment - Contract Management,10461 Severn Trent Serv Ops Uk Ltd,10809,90.44
"Department for Business, Energy and Industrial Strategy",The Coal Authority,03/03/2017,CY - Minewater Scheme - Additions,Environment - Contract Management,10461 Severn Trent Serv Ops Uk Ltd,10809,53.42
"Department for Business, Energy and Industrial Strategy",The Coal Authority,03/03/2017,CY - Minewater Scheme - Additions,Environment - Contract Management,10461 Severn Trent Serv Ops Uk Ltd,10809,80.81
"Department for Business, Energy and Industrial Strategy",The Coal Authority,03/03/2017,CY - Minewater Scheme - Additions,Environment - Contract Management,10461 Severn Trent Serv Ops Uk Ltd,10809,58.37
"Department for Business, Energy and Industrial Strategy",The Coal Authority,03/03/2017,CY - Minewater Scheme - Additions,Environment - Contract Management,10461 Severn Trent Serv Ops Uk Ltd,10809,116
"Department for Business, Energy and Industrial Strategy",The Coal Authority,03/03/2017,CY - Minewater Scheme - Additions,Environment - Contract Management,10461 Severn Trent Serv Ops Uk Ltd,10809,14.75
"Department for Business, Energy and Industrial Strategy",The Coal Authority,03/03/2017,CY - Minewater Scheme - Additions,Environment - Contract Management,10461 Severn Trent Serv Ops Uk Ltd,10809,66.71
"Department for Business, Energy and Industrial Strategy",The Coal Authority,08/03/2017,CY - Minewater Scheme - Additions,Environment - Contract Management,1873-Severn Trent Services,11092,-27108.31
"Department for Business, Energy and Industrial Strategy",The Coal Authority,23/01/2017,Electricity Usage,Environment - Contract Management,Neath Port Talbot County B C,10238,9737.08
"Department for Business, Energy and Industrial Strategy",The Coal Authority,23/01/2017,Electricity Usage,Environment - Contract Management,Neath Port Talbot County B C,10240,15249.8
"Department for Business, Energy and Industrial Strategy",The Coal Authority,09/11/2016,Fuel (Vehicle),Environment - Contract Management,Allstar Business Solutions Ltd,10029,94.49
"Department for Business, Energy and Industrial Strategy",The Coal Authority,30/11/2016,Fuel (Vehicle),Environment - Contract Management,Allstar Business Solutions Ltd,10019,104.84
"Department for Business, Energy and Industrial Strategy",The Coal Authority,18/01/2017,Fuel (Vehicle),Environment - Contract Management,Allstar Business Solutions Ltd,10540,66.03
"Department for Business, Energy and Industrial Strategy",The Coal Authority,01/02/2017,Fuel (Vehicle),Environment - Contract Management,Allstar Business Solutions Ltd,10543,53.45
"Department for Business, Energy and Industrial Strategy",The Coal Authority,08/02/2017,Fuel (Vehicle),Environment - Contract Management,Allstar Business Solutions Ltd,10539,113.22
"Department for Business, Energy and Industrial Strategy",The Coal Authority,22/02/2017,Fuel (Vehicle),Environment - Contract Management,Allstar Business Solutions Ltd,10537,53.33
"Department for Business, Energy and Industrial Strategy",The Coal Authority,31/12/2016,Hotel & Accommodation,Environment - Contract Management,Redfern Travel Ltd,9997,495.99
"Department for Business, Energy and Industrial Strategy",The Coal Authority,31/01/2017,Hotel & Accommodation,Environment - Contract Management,Redfern Travel Ltd,10253,314.32
"Department for Business, Energy and Industrial Strategy",The Coal Authority,01/02/2017,Legal - General,Environment - Contract Management,Anderson Strathern,10535,52
"Department for Business, Energy and Industrial Strategy",The Coal Authority,25/11/2016,Legal - Property Title Search,Environment - Contract Management,Land Registry,10320,12
"Department for Business, Energy and Industrial Strategy",The Coal Authority,25/11/2016,Legal - Property Title Search,Environment - Contract Management,Land Registry,10320,6
"Department for Business, Energy and Industrial Strategy",The Coal Authority,11/01/2017,Legal - Property Title Search,Environment - Contract Management,Land Registry,10322,40
"Department for Business, Energy and Industrial Strategy",The Coal Authority,17/01/2017,Legal - Property Title Search,Environment - Contract Management,Land Registry,10325,30
"Department for Business, Energy and Industrial Strategy",The Coal Authority,03/03/2017,Minewater Chemicals - Operational Sites,Environment - Contract Management,10461 Severn Trent Serv Ops Uk Ltd,10809,716.66
"Department for Business, Energy and Industrial Strategy",The Coal Authority,03/03/2017,Minewater Chemicals - Operational Sites,Environment - Contract Management,10461 Severn Trent Serv Ops Uk Ltd,10809,1488.46
"Department for Business, Energy and Industrial Strategy",The Coal Authority,03/03/2017,Minewater Chemicals - Operational Sites,Environment - Contract Management,10461 Severn Trent Serv Ops Uk Ltd,10809,4189.59
"Department for Business, Energy and Industrial Strategy",The Coal Authority,03/03/2017,Minewater Chemicals - Operational Sites,Environment - Contract Management,10461 Severn Trent Serv Ops Uk Ltd,10809,5397.95
"Department for Business, Energy and Industrial Strategy",The Coal Authority,03/03/2017,Minewater Chemicals - Operational Sites,Environment - Contract Management,10461 Severn Trent Serv Ops Uk Ltd,10809,6930.19
"Department for Business, Energy and Industrial Strategy",The Coal Authority,03/03/2017,Minewater Chemicals - Operational Sites,Environment - Contract Management,10461 Severn Trent Serv Ops Uk Ltd,10809,8611.35
"Department for Business, Energy and Industrial Strategy",The Coal Authority,03/03/2017,Minewater Chemicals - Operational Sites,Environment - Contract Management,10461 Severn Trent Serv Ops Uk Ltd,10809,25214.86
"Department for Business, Energy and Industrial Strategy",The Coal Authority,31/01/2017,Minewater Chemicals - Operational Sites,Environment - Contract Management,National Coal Mining Museum,10455,1385.87
"Department for Business, Energy and Industrial Strategy",The Coal Authority,03/03/2017,Minewater Consultancy - Operational Sites,Environment - Contract Management,10461 Severn Trent Serv Ops Uk Ltd,10809,6.66
"Department for Business, Energy and Industrial Strategy",The Coal Authority,03/03/2017,Minewater Consultancy - Operational Sites,Environment - Contract Management,10461 Severn Trent Serv Ops Uk Ltd,10809,19.22
"Department for Business, Energy and Industrial Strategy",The Coal Authority,03/03/2017,Minewater Consultancy - Operational Sites,Environment - Contract Management,10461 Severn Trent Serv Ops Uk Ltd,10809,19.64
"Department for Business, Energy and Industrial Strategy",The Coal Authority,03/03/2017,Minewater Consultancy - Operational Sites,Environment - Contract Management,10461 Severn Trent Serv Ops Uk Ltd,10809,38.62
"Department for Business, Energy and Industrial Strategy",The Coal Authority,03/03/2017,Minewater Consultancy - Operational Sites,Environment - Contract Management,10461 Severn Trent Serv Ops Uk Ltd,10809,41.11
"Department for Business, Energy and Industrial Strategy",The Coal Authority,03/03/2017,Minewater Consultancy - Operational Sites,Environment - Contract Management,10461 Severn Trent Serv Ops Uk Ltd,10809,94.5
"Department for Business, Energy and Industrial Strategy",The Coal Authority,03/03/2017,Minewater Consultancy - Operational Sites,Environment - Contract Management,10461 Severn Trent Serv Ops Uk Ltd,10809,143.16
"Department for Business, Energy and Industrial Strategy",The Coal Authority,03/03/2017,Minewater Consultancy - Operational Sites,Environment - Contract Management,10461 Severn Trent Serv Ops Uk Ltd,10809,300.3
"Department for Business, Energy and Industrial Strategy",The Coal Authority,03/03/2017,Minewater Consultancy - Operational Sites,Environment - Contract Management,10461 Severn Trent Serv Ops Uk Ltd,10809,412.18
"Department for Business, Energy and Industrial Strategy",The Coal Authority,23/01/2017,Minewater Consultancy - Operational Sites,Environment - Contract Management,Neath Port Talbot County B C,10238,500
"Department for Business, Energy and Industrial Strategy",The Coal Authority,23/01/2017,Minewater Consultancy - Operational Sites,Environment - Contract Management,Neath Port Talbot County B C,10240,1000
"Department for Business, Energy and Industrial Strategy",The Coal Authority,03/03/2017,Minewater Contractor Add. Task Order - Ops Site,Environment - Contract Management,10461 Severn Trent Serv Ops Uk Ltd,10809,-422.14
"Department for Business, Energy and Industrial Strategy",The Coal Authority,03/03/2017,Minewater Contractor Add. Task Order - Ops Site,Environment - Contract Management,10461 Severn Trent Serv Ops Uk Ltd,10809,-184.63
"Department for Business, Energy and Industrial Strategy",The Coal Authority,03/03/2017,Minewater Contractor Add. Task Order - Ops Site,Environment - Contract Management,10461 Severn Trent Serv Ops Uk Ltd,10809,34.44
"Department for Business, Energy and Industrial Strategy",The Coal Authority,03/03/2017,Minewater Contractor Add. Task Order - Ops Site,Environment - Contract Management,10461 Severn Trent Serv Ops Uk Ltd,10809,46.4
"Department for Business, Energy and Industrial Strategy",The Coal Authority,03/03/2017,Minewater Contractor Add. Task Order - Ops Site,Environment - Contract Management,10461 Severn Trent Serv Ops Uk Ltd,10809,68.91
"Department for Business, Energy and Industrial Strategy",The Coal Authority,03/03/2017,Minewater Contractor Add. Task Order - Ops Site,Environment - Contract Management,10461 Severn Trent Serv Ops Uk Ltd,10809,72.85
"Department for Business, Energy and Industrial Strategy",The Coal Authority,03/03/2017,Minewater Contractor Add. Task Order - Ops Site,Environment - Contract Management,10461 Severn Trent Serv Ops Uk Ltd,10809,93.3
"Department for Business, Energy and Industrial Strategy",The Coal Authority,03/03/2017,Minewater Contractor Add. Task Order - Ops Site,Environment - Contract Management,10461 Severn Trent Serv Ops Uk Ltd,10809,365.22
"Department for Business, Energy and Industrial Strategy",The Coal Authority,03/03/2017,Minewater Contractor Add. Task Order - Ops Site,Environment - Contract Management,10461 Severn Trent Serv Ops Uk Ltd,10809,639.14
"Department for Business, Energy and Industrial Strategy",The Coal Authority,03/03/2017,Minewater Contractor Add. Task Order - Ops Site,Environment - Contract Management,10461 Severn Trent Serv Ops Uk Ltd,10809,740.78
"Department for Business, Energy and Industrial Strategy",The Coal Authority,03/03/2017,Minewater Contractor Add. Task Order - Ops Site,Environment - Contract Management,10461 Severn Trent Serv Ops Uk Ltd,10809,791.32
"Department for Business, Energy and Industrial Strategy",The Coal Authority,03/03/2017,Minewater Contractor Add. Task Order - Ops Site,Environment - Contract Management,10461 Severn Trent Serv Ops Uk Ltd,10809,916.95
"Department for Business, Energy and Industrial Strategy",The Coal Authority,03/03/2017,Minewater Contractor Add. Task Order - Ops Site,Environment - Contract Management,10461 Severn Trent Serv Ops Uk Ltd,10809,1045.71
"Department for Business, Energy and Industrial Strategy",The Coal Authority,03/03/2017,Minewater Contractor Add. Task Order - Ops Site,Environment - Contract Management,10461 Severn Trent Serv Ops Uk Ltd,10809,1048.12
"Department for Business, Energy and Industrial Strategy",The Coal Authority,03/03/2017,Minewater Contractor Add. Task Order - Ops Site,Environment - Contract Management,10461 Severn Trent Serv Ops Uk Ltd,10809,1815.59
"Department for Business, Energy and Industrial Strategy",The Coal Authority,03/03/2017,Minewater Contractor Add. Task Order - Ops Site,Environment - Contract Management,10461 Severn Trent Serv Ops Uk Ltd,10809,7651.88
"Department for Business, Energy and Industrial Strategy",The Coal Authority,03/03/2017,Minewater Contractor Add. Task Order - Ops Site,Environment - Contract Management,10461 Severn Trent Serv Ops Uk Ltd,10809,9338.35
"Department for Business, Energy and Industrial Strategy",The Coal Authority,03/03/2017,Minewater Contractor Add. Task Order - Ops Site,Environment - Contract Management,10461 Severn Trent Serv Ops Uk Ltd,10809,8590.78
"Department for Business, Energy and Industrial Strategy",The Coal Authority,03/03/2017,Minewater Contractor Add. Task Order - Ops Site,Environment - Contract Management,10461 Severn Trent Serv Ops Uk Ltd,10809,8154.35
"Department for Business, Energy and Industrial Strategy",The Coal Authority,03/03/2017,Minewater Contractor Add. Task Order - Ops Site,Environment - Contract Management,10461 Severn Trent Serv Ops Uk Ltd,10809,690.82
"Department for Business, Energy and Industrial Strategy",The Coal Authority,03/03/2017,Minewater Contractor Add. Task Order - Ops Site,Environment - Contract Management,10461 Severn Trent Serv Ops Uk Ltd,10809,28.21
"Department for Business, Energy and Industrial Strategy",The Coal Authority,03/03/2017,Minewater Contractor Add. Task Order - Ops Site,Environment - Contract Management,10461 Severn Trent Serv Ops Uk Ltd,10809,40.41
"Department for Business, Energy and Industrial Strategy",The Coal Authority,03/03/2017,Minewater Contractor Add. Task Order - Ops Site,Environment - Contract Management,10461 Severn Trent Serv Ops Uk Ltd,10809,67.34
"Department for Business, Energy and Industrial Strategy",The Coal Authority,03/03/2017,Minewater Contractor Add. Task Order - Ops Site,Environment - Contract Management,10461 Severn Trent Serv Ops Uk Ltd,10809,67.34
"Department for Business, Energy and Industrial Strategy",The Coal Authority,03/03/2017,Minewater Contractor Add. Task Order - Ops Site,Environment - Contract Management,10461 Severn Trent Serv Ops Uk Ltd,10809,80.13
"Department for Business, Energy and Industrial Strategy",The Coal Authority,03/03/2017,Minewater Contractor Add. Task Order - Ops Site,Environment - Contract Management,10461 Severn Trent Serv Ops Uk Ltd,10809,80.91
"Department for Business, Energy and Industrial Strategy",The Coal Authority,03/03/2017,Minewater Contractor Add. Task Order - Ops Site,Environment - Contract Management,10461 Severn Trent Serv Ops Uk Ltd,10809,86.68
"Department for Business, Energy and Industrial Strategy",The Coal Authority,03/03/2017,Minewater Contractor Add. Task Order - Ops Site,Environment - Contract Management,10461 Severn Trent Serv Ops Uk Ltd,10809,107.75
"Department for Business, Energy and Industrial Strategy",The Coal Authority,03/03/2017,Minewater Contractor Add. Task Order - Ops Site,Environment - Contract Management,10461 Severn Trent Serv Ops Uk Ltd,10809,137.43
"Department for Business, Energy and Industrial Strategy",The Coal Authority,03/03/2017,Minewater Contractor Add. Task Order - Ops Site,Environment - Contract Management,10461 Severn Trent Serv Ops Uk Ltd,10809,174.46
"Department for Business, Energy and Industrial Strategy",The Coal Authority,03/03/2017,Minewater Contractor Add. Task Order - Ops Site,Environment - Contract Management,10461 Severn Trent Serv Ops Uk Ltd,10809,185.24
"Department for Business, Energy and Industrial Strategy",The Coal Authority,03/03/2017,Minewater Contractor Add. Task Order - Ops Site,Environment - Contract Management,10461 Severn Trent Serv Ops Uk Ltd,10809,189.14
"Department for Business, Energy and Industrial Strategy",The Coal Authority,03/03/2017,Minewater Contractor Add. Task Order - Ops Site,Environment - Contract Management,10461 Severn Trent Serv Ops Uk Ltd,10809,202.77
"Department for Business, Energy and Industrial Strategy",The Coal Authority,03/03/2017,Minewater Contractor Add. Task Order - Ops Site,Environment - Contract Management,10461 Severn Trent Serv Ops Uk Ltd,10809,242.44
"Department for Business, Energy and Industrial Strategy",The Coal Authority,03/03/2017,Minewater Contractor Add. Task Order - Ops Site,Environment - Contract Management,10461 Severn Trent Serv Ops Uk Ltd,10809,267.11
"Department for Business, Energy and Industrial Strategy",The Coal Authority,03/03/2017,Minewater Contractor Add. Task Order - Ops Site,Environment - Contract Management,10461 Severn Trent Serv Ops Uk Ltd,10809,282.82
"Department for Business, Energy and Industrial Strategy",The Coal Authority,03/03/2017,Minewater Contractor Add. Task Order - Ops Site,Environment - Contract Management,10461 Severn Trent Serv Ops Uk Ltd,10809,524.83
"Department for Business, Energy and Industrial Strategy",The Coal Authority,03/03/2017,Minewater Contractor Add. Task Order - Ops Site,Environment - Contract Management,10461 Severn Trent Serv Ops Uk Ltd,10809,1836.17
"Department for Business, Energy and Industrial Strategy",The Coal Authority,09/12/2016,Minewater Contractor Add. Task Order - Ops Site,Environment - Contract Management,Intergrated Utility Services Ltd,10135,6362
"Department for Business, Energy and Industrial Strategy",The Coal Authority,03/02/2017,Minewater Contractor Add. Task Order - Ops Site,Environment - Contract Management,Severn Trent Serv Ops Uk Ltd,10460,48566.39
"Department for Business, Energy and Industrial Strategy",The Coal Authority,03/03/2017,Minewater Contractor Maint. Visits - Ops Site,Environment - Contract Management,10461 Severn Trent Serv Ops Uk Ltd,10809,445.89
"Department for Business, Energy and Industrial Strategy",The Coal Authority,03/03/2017,Minewater Contractor Maint. Visits - Ops Site,Environment - Contract Management,10461 Severn Trent Serv Ops Uk Ltd,10809,900.62
"Department for Business, Energy and Industrial Strategy",The Coal Authority,03/03/2017,Minewater Contractor Maint. Visits - Ops Site,Environment - Contract Management,10461 Severn Trent Serv Ops Uk Ltd,10809,126.34
"Department for Business, Energy and Industrial Strategy",The Coal Authority,03/03/2017,Minewater Contractor Maint. Visits - Ops Site,Environment - Contract Management,10461 Severn Trent Serv Ops Uk Ltd,10809,365.22
"Department for Business, Energy and Industrial Strategy",The Coal Authority,03/03/2017,Minewater Contractor Maint. Visits - Ops Site,Environment - Contract Management,10461 Severn Trent Serv Ops Uk Ltd,10809,550.57
"Department for Business, Energy and Industrial Strategy",The Coal Authority,03/03/2017,Minewater Contractor Maint. Visits - Ops Site,Environment - Contract Management,10461 Severn Trent Serv Ops Uk Ltd,10809,608.71
"Department for Business, Energy and Industrial Strategy",The Coal Authority,03/03/2017,Minewater Contractor Maint. Visits - Ops Site,Environment - Contract Management,10461 Severn Trent Serv Ops Uk Ltd,10809,791.32
"Department for Business, Energy and Industrial Strategy",The Coal Authority,03/03/2017,Minewater Contractor Maint. Visits - Ops Site,Environment - Contract Management,10461 Severn Trent Serv Ops Uk Ltd,10809,1247.28
"Department for Business, Energy and Industrial Strategy",The Coal Authority,03/03/2017,Minewater Contractor Maint. Visits - Ops Site,Environment - Contract Management,10461 Severn Trent Serv Ops Uk Ltd,10809,1302.95
"Department for Business, Energy and Industrial Strategy",The Coal Authority,03/03/2017,Minewater Contractor Maint. Visits - Ops Site,Environment - Contract Management,10461 Severn Trent Serv Ops Uk Ltd,10809,1588.38
"Department for Business, Energy and Industrial Strategy",The Coal Authority,03/03/2017,Minewater Contractor Maint. Visits - Ops Site,Environment - Contract Management,10461 Severn Trent Serv Ops Uk Ltd,10809,1638.91
"Department for Business, Energy and Industrial Strategy",The Coal Authority,03/03/2017,Minewater Contractor Maint. Visits - Ops Site,Environment - Contract Management,10461 Severn Trent Serv Ops Uk Ltd,10809,2108.93
"Department for Business, Energy and Industrial Strategy",The Coal Authority,03/03/2017,Minewater Contractor Maint. Visits - Ops Site,Environment - Contract Management,10461 Severn Trent Serv Ops Uk Ltd,10809,1893.73
"Department for Business, Energy and Industrial Strategy",The Coal Authority,03/03/2017,Minewater Contractor Maint. Visits - Ops Site,Environment - Contract Management,10461 Severn Trent Serv Ops Uk Ltd,10809,486.96
"Department for Business, Energy and Industrial Strategy",The Coal Authority,03/03/2017,Minewater Contractor Maint. Visits - Ops Site,Environment - Contract Management,10461 Severn Trent Serv Ops Uk Ltd,10809,11.88
"Department for Business, Energy and Industrial Strategy",The Coal Authority,03/03/2017,Minewater Contractor Maint. Visits - Ops Site,Environment - Contract Management,10461 Severn Trent Serv Ops Uk Ltd,10809,-7250.02
"Department for Business, Energy and Industrial Strategy",The Coal Authority,03/03/2017,Minewater Contractor Maint. Visits - Ops Site,Environment - Contract Management,10461 Severn Trent Serv Ops Uk Ltd,10809,46.65
"Department for Business, Energy and Industrial Strategy",The Coal Authority,03/03/2017,Minewater Contractor Maint. Visits - Ops Site,Environment - Contract Management,10461 Severn Trent Serv Ops Uk Ltd,10809,1860.58
"Department for Business, Energy and Industrial Strategy",The Coal Authority,03/03/2017,Minewater Contractor Maint. Visits - Ops Site,Environment - Contract Management,10461 Severn Trent Serv Ops Uk Ltd,10809,6053.3
"Department for Business, Energy and Industrial Strategy",The Coal Authority,03/03/2017,Minewater Contractor Maint. Visits - Ops Site,Environment - Contract Management,10461 Severn Trent Serv Ops Uk Ltd,10809,50.03
"Department for Business, Energy and Industrial Strategy",The Coal Authority,03/03/2017,Minewater Contractor Maint. Visits - Ops Site,Environment - Contract Management,10461 Severn Trent Serv Ops Uk Ltd,10809,254.44
"Department for Business, Energy and Industrial Strategy",The Coal Authority,03/03/2017,Minewater Contractor Maint. Visits - Ops Site,Environment - Contract Management,10461 Severn Trent Serv Ops Uk Ltd,10809,-2.66
"Department for Business, Energy and Industrial Strategy",The Coal Authority,03/03/2017,Minewater Contractor Maint. Visits - Ops Site,Environment - Contract Management,10461 Severn Trent Serv Ops Uk Ltd,10809,41423.35
"Department for Business, Energy and Industrial Strategy",The Coal Authority,03/03/2017,Minewater Contractor Maint. Visits - Ops Site,Environment - Contract Management,10461 Severn Trent Serv Ops Uk Ltd,10809,120.72
"Department for Business, Energy and Industrial Strategy",The Coal Authority,03/03/2017,Minewater Contractor Maint. Visits - Ops Site,Environment - Contract Management,10461 Severn Trent Serv Ops Uk Ltd,10809,122.41
"Department for Business, Energy and Industrial Strategy",The Coal Authority,03/03/2017,Minewater Contractor Maint. Visits - Ops Site,Environment - Contract Management,10461 Severn Trent Serv Ops Uk Ltd,10809,132.32
"Department for Business, Energy and Industrial Strategy",The Coal Authority,03/03/2017,Minewater Contractor Maint. Visits - Ops Site,Environment - Contract Management,10461 Severn Trent Serv Ops Uk Ltd,10809,134.96
"Department for Business, Energy and Industrial Strategy",The Coal Authority,03/03/2017,Minewater Contractor Maint. Visits - Ops Site,Environment - Contract Management,10461 Severn Trent Serv Ops Uk Ltd,10809,136.32
"Department for Business, Energy and Industrial Strategy",The Coal Authority,03/03/2017,Minewater Contractor Maint. Visits - Ops Site,Environment - Contract Management,10461 Severn Trent Serv Ops Uk Ltd,10809,165.26
"Department for Business, Energy and Industrial Strategy",The Coal Authority,03/03/2017,Minewater Contractor Maint. Visits - Ops Site,Environment - Contract Management,10461 Severn Trent Serv Ops Uk Ltd,10809,180.03
"Department for Business, Energy and Industrial Strategy",The Coal Authority,03/03/2017,Minewater Contractor Maint. Visits - Ops Site,Environment - Contract Management,10461 Severn Trent Serv Ops Uk Ltd,10809,183.18
"Department for Business, Energy and Industrial Strategy",The Coal Authority,03/03/2017,Minewater Contractor Maint. Visits - Ops Site,Environment - Contract Management,10461 Severn Trent Serv Ops Uk Ltd,10809,186.12
"Department for Business, Energy and Industrial Strategy",The Coal Authority,03/03/2017,Minewater Contractor Maint. Visits - Ops Site,Environment - Contract Management,10461 Severn Trent Serv Ops Uk Ltd,10809,189.39
"Department for Business, Energy and Industrial Strategy",The Coal Authority,03/03/2017,Minewater Contractor Maint. Visits - Ops Site,Environment - Contract Management,10461 Severn Trent Serv Ops Uk Ltd,10809,189.78
"Department for Business, Energy and Industrial Strategy",The Coal Authority,03/03/2017,Minewater Contractor Maint. Visits - Ops Site,Environment - Contract Management,10461 Severn Trent Serv Ops Uk Ltd,10809,197.71
"Department for Business, Energy and Industrial Strategy",The Coal Authority,03/03/2017,Minewater Contractor Maint. Visits - Ops Site,Environment - Contract Management,10461 Severn Trent Serv Ops Uk Ltd,10809,211.94
"Department for Business, Energy and Industrial Strategy",The Coal Authority,03/03/2017,Minewater Contractor Maint. Visits - Ops Site,Environment - Contract Management,10461 Severn Trent Serv Ops Uk Ltd,10809,218.36
"Department for Business, Energy and Industrial Strategy",The Coal Authority,03/03/2017,Minewater Contractor Maint. Visits - Ops Site,Environment - Contract Management,10461 Severn Trent Serv Ops Uk Ltd,10809,224.65
"Department for Business, Energy and Industrial Strategy",The Coal Authority,03/03/2017,Minewater Contractor Maint. Visits - Ops Site,Environment - Contract Management,10461 Severn Trent Serv Ops Uk Ltd,10809,225.31
"Department for Business, Energy and Industrial Strategy",The Coal Authority,03/03/2017,Minewater Contractor Maint. Visits - Ops Site,Environment - Contract Management,10461 Severn Trent Serv Ops Uk Ltd,10809,249.2
"Department for Business, Energy and Industrial Strategy",The Coal Authority,03/03/2017,Minewater Contractor Maint. Visits - Ops Site,Environment - Contract Management,10461 Severn Trent Serv Ops Uk Ltd,10809,250.13
"Department for Business, Energy and Industrial Strategy",The Coal Authority,03/03/2017,Minewater Contractor Maint. Visits - Ops Site,Environment - Contract Management,10461 Severn Trent Serv Ops Uk Ltd,10809,263.3
"Department for Business, Energy and Industrial Strategy",The Coal Authority,03/03/2017,Minewater Contractor Maint. Visits - Ops Site,Environment - Contract Management,10461 Severn Trent Serv Ops Uk Ltd,10809,268.56
"Department for Business, Energy and Industrial Strategy",The Coal Authority,03/03/2017,Minewater Contractor Maint. Visits - Ops Site,Environment - Contract Management,10461 Severn Trent Serv Ops Uk Ltd,10809,275.89
"Department for Business, Energy and Industrial Strategy",The Coal Authority,03/03/2017,Minewater Contractor Maint. Visits - Ops Site,Environment - Contract Management,10461 Severn Trent Serv Ops Uk Ltd,10809,278.64
"Department for Business, Energy and Industrial Strategy",The Coal Authority,03/03/2017,Minewater Contractor Maint. Visits - Ops Site,Environment - Contract Management,10461 Severn Trent Serv Ops Uk Ltd,10809,287.48
"Department for Business, Energy and Industrial Strategy",The Coal Authority,03/03/2017,Minewater Contractor Maint. Visits - Ops Site,Environment - Contract Management,10461 Severn Trent Serv Ops Uk Ltd,10809,312.08
"Department for Business, Energy and Industrial Strategy",The Coal Authority,03/03/2017,Minewater Contractor Maint. Visits - Ops Site,Environment - Contract Management,10461 Severn Trent Serv Ops Uk Ltd,10809,327.38
"Department for Business, Energy and Industrial Strategy",The Coal Authority,03/03/2017,Minewater Contractor Maint. Visits - Ops Site,Environment - Contract Management,10461 Severn Trent Serv Ops Uk Ltd,10809,328.46
"Department for Business, Energy and Industrial Strategy",The Coal Authority,03/03/2017,Minewater Contractor Maint. Visits - Ops Site,Environment - Contract Management,10461 Severn Trent Serv Ops Uk Ltd,10809,348.13
"Department for Business, Energy and Industrial Strategy",The Coal Authority,03/03/2017,Minewater Contractor Maint. Visits - Ops Site,Environment - Contract Management,10461 Severn Trent Serv Ops Uk Ltd,10809,369.52
"Department for Business, Energy and Industrial Strategy",The Coal Authority,03/03/2017,Minewater Contractor Maint. Visits - Ops Site,Environment - Contract Management,10461 Severn Trent Serv Ops Uk Ltd,10809,396.05
"Department for Business, Energy and Industrial Strategy",The Coal Authority,03/03/2017,Minewater Contractor Maint. Visits - Ops Site,Environment - Contract Management,10461 Severn Trent Serv Ops Uk Ltd,10809,402.63
"Department for Business, Energy and Industrial Strategy",The Coal Authority,03/03/2017,Minewater Contractor Maint. Visits - Ops Site,Environment - Contract Management,10461 Severn Trent Serv Ops Uk Ltd,10809,485.08
"Department for Business, Energy and Industrial Strategy",The Coal Authority,03/03/2017,Minewater Contractor Maint. Visits - Ops Site,Environment - Contract Management,10461 Severn Trent Serv Ops Uk Ltd,10809,503.92
"Department for Business, Energy and Industrial Strategy",The Coal Authority,03/03/2017,Minewater Contractor Maint. Visits - Ops Site,Environment - Contract Management,10461 Severn Trent Serv Ops Uk Ltd,10809,504.81
"Department for Business, Energy and Industrial Strategy",The Coal Authority,03/03/2017,Minewater Contractor Maint. Visits - Ops Site,Environment - Contract Management,10461 Severn Trent Serv Ops Uk Ltd,10809,512.61
"Department for Business, Energy and Industrial Strategy",The Coal Authority,03/03/2017,Minewater Contractor Maint. Visits - Ops Site,Environment - Contract Management,10461 Severn Trent Serv Ops Uk Ltd,10809,618.46
"Department for Business, Energy and Industrial Strategy",The Coal Authority,03/03/2017,Minewater Contractor Maint. Visits - Ops Site,Environment - Contract Management,10461 Severn Trent Serv Ops Uk Ltd,10809,630.05
"Department for Business, Energy and Industrial Strategy",The Coal Authority,03/03/2017,Minewater Contractor Maint. Visits - Ops Site,Environment - Contract Management,10461 Severn Trent Serv Ops Uk Ltd,10809,683.86
"Department for Business, Energy and Industrial Strategy",The Coal Authority,03/03/2017,Minewater Contractor Maint. Visits - Ops Site,Environment - Contract Management,10461 Severn Trent Serv Ops Uk Ltd,10809,688.82
"Department for Business, Energy and Industrial Strategy",The Coal Authority,03/03/2017,Minewater Contractor Maint. Visits - Ops Site,Environment - Contract Management,10461 Severn Trent Serv Ops Uk Ltd,10809,794.12
"Department for Business, Energy and Industrial Strategy",The Coal Authority,03/03/2017,Minewater Contractor Maint. Visits - Ops Site,Environment - Contract Management,10461 Severn Trent Serv Ops Uk Ltd,10809,807.17
"Department for Business, Energy and Industrial Strategy",The Coal Authority,03/03/2017,Minewater Contractor Maint. Visits - Ops Site,Environment - Contract Management,10461 Severn Trent Serv Ops Uk Ltd,10809,903.18
"Department for Business, Energy and Industrial Strategy",The Coal Authority,03/03/2017,Minewater Contractor Maint. Visits - Ops Site,Environment - Contract Management,10461 Severn Trent Serv Ops Uk Ltd,10809,0.67
"Department for Business, Energy and Industrial Strategy",The Coal Authority,03/03/2017,Minewater Contractor Maint. Visits - Ops Site,Environment - Contract Management,10461 Severn Trent Serv Ops Uk Ltd,10809,2.43
"Department for Business, Energy and Industrial Strategy",The Coal Authority,03/03/2017,Minewater Contractor Maint. Visits - Ops Site,Environment - Contract Management,10461 Severn Trent Serv Ops Uk Ltd,10809,19.33
"Department for Business, Energy and Industrial Strategy",The Coal Authority,03/03/2017,Minewater Contractor Maint. Visits - Ops Site,Environment - Contract Management,10461 Severn Trent Serv Ops Uk Ltd,10809,31.78
"Department for Business, Energy and Industrial Strategy",The Coal Authority,03/03/2017,Minewater Contractor Maint. Visits - Ops Site,Environment - Contract Management,10461 Severn Trent Serv Ops Uk Ltd,10809,52.75
"Department for Business, Energy and Industrial Strategy",The Coal Authority,03/03/2017,Minewater Contractor Maint. Visits - Ops Site,Environment - Contract Management,10461 Severn Trent Serv Ops Uk Ltd,10809,56.42
"Department for Business, Energy and Industrial Strategy",The Coal Authority,03/03/2017,Minewater Contractor Maint. Visits - Ops Site,Environment - Contract Management,10461 Severn Trent Serv Ops Uk Ltd,10809,57.65
"Department for Business, Energy and Industrial Strategy",The Coal Authority,03/03/2017,Minewater Contractor Maint. Visits - Ops Site,Environment - Contract Management,10461 Severn Trent Serv Ops Uk Ltd,10809,67.25
"Department for Business, Energy and Industrial Strategy",The Coal Authority,03/03/2017,Minewater Contractor Maint. Visits - Ops Site,Environment - Contract Management,10461 Severn Trent Serv Ops Uk Ltd,10809,68.22
"Department for Business, Energy and Industrial Strategy",The Coal Authority,03/03/2017,Minewater Contractor Maint. Visits - Ops Site,Environment - Contract Management,10461 Severn Trent Serv Ops Uk Ltd,10809,73.45
"Department for Business, Energy and Industrial Strategy",The Coal Authority,03/03/2017,Minewater Contractor Maint. Visits - Ops Site,Environment - Contract Management,10461 Severn Trent Serv Ops Uk Ltd,10809,76.83
"Department for Business, Energy and Industrial Strategy",The Coal Authority,03/03/2017,Minewater Contractor Maint. Visits - Ops Site,Environment - Contract Management,10461 Severn Trent Serv Ops Uk Ltd,10809,76.87
"Department for Business, Energy and Industrial Strategy",The Coal Authority,03/03/2017,Minewater Contractor Maint. Visits - Ops Site,Environment - Contract Management,10461 Severn Trent Serv Ops Uk Ltd,10809,94.04
"Department for Business, Energy and Industrial Strategy",The Coal Authority,03/03/2017,Minewater Contractor Maint. Visits - Ops Site,Environment - Contract Management,10461 Severn Trent Serv Ops Uk Ltd,10809,98.2
"Department for Business, Energy and Industrial Strategy",The Coal Authority,03/03/2017,Minewater Contractor Maint. Visits - Ops Site,Environment - Contract Management,10461 Severn Trent Serv Ops Uk Ltd,10809,99.51
"Department for Business, Energy and Industrial Strategy",The Coal Authority,03/03/2017,Minewater Contractor Maint. Visits - Ops Site,Environment - Contract Management,10461 Severn Trent Serv Ops Uk Ltd,10809,100.87
"Department for Business, Energy and Industrial Strategy",The Coal Authority,03/03/2017,Minewater Contractor Maint. Visits - Ops Site,Environment - Contract Management,10461 Severn Trent Serv Ops Uk Ltd,10809,104.52
"Department for Business, Energy and Industrial Strategy",The Coal Authority,03/03/2017,Minewater Contractor Maint. Visits - Ops Site,Environment - Contract Management,10461 Severn Trent Serv Ops Uk Ltd,10809,105.46
"Department for Business, Energy and Industrial Strategy",The Coal Authority,03/03/2017,Minewater Contractor Maint. Visits - Ops Site,Environment - Contract Management,10461 Severn Trent Serv Ops Uk Ltd,10809,117.2
"Department for Business, Energy and Industrial Strategy",The Coal Authority,03/03/2017,Minewater Contractor Maint. Visits - Ops Site,Environment - Contract Management,10461 Severn Trent Serv Ops Uk Ltd,10809,117.55
"Department for Business, Energy and Industrial Strategy",The Coal Authority,20/01/2017,Minewater Contractor Maint. Visits - Ops Site,Environment - Contract Management,National Coal Mining Museum,10052,4275
"Department for Business, Energy and Industrial Strategy",The Coal Authority,20/01/2017,Minewater Contractor Maint. Visits - Ops Site,Environment - Contract Management,National Coal Mining Museum,10054,4120
"Department for Business, Energy and Industrial Strategy",The Coal Authority,11/04/2016,Minewater Framework - Consultancy,Environment - Contract Management,Jeremy Benn Associates Ltd,10446,775
"Department for Business, Energy and Industrial Strategy",The Coal Authority,13/02/2017,Minewater Land Agents (Acquisitions),Environment - Contract Management,George F White,10400,930
"Department for Business, Energy and Industrial Strategy",The Coal Authority,17/02/2017,Minewater Land Agents (Acquisitions),Environment - Contract Management,J E Armstrong & Sons,10247,4500
"Department for Business, Energy and Industrial Strategy",The Coal Authority,31/12/2016,Minewater Land Agents (Acquisitions),Environment - Contract Management,Mark N Carey Limited,9572,65
"Department for Business, Energy and Industrial Strategy",The Coal Authority,31/12/2016,Minewater Land Agents (Acquisitions),Environment - Contract Management,Mark N Carey Limited,9573,507
"Department for Business, Energy and Industrial Strategy",The Coal Authority,31/12/2016,Minewater Land Agents (Acquisitions),Environment - Contract Management,Mark N Carey Limited,9575,383.5
"Department for Business, Energy and Industrial Strategy",The Coal Authority,31/12/2016,Minewater Land Agents (Acquisitions),Environment - Contract Management,Mark N Carey Limited,9576,871
"Department for Business, Energy and Industrial Strategy",The Coal Authority,27/02/2017,Minewater Land Option / Access Payments,Environment - Contract Management,Compensation Payment,10598,9373
"Department for Business, Energy and Industrial Strategy",The Coal Authority,03/03/2017,Minewater Landscaping,Environment - Contract Management,10461 Severn Trent Serv Ops Uk Ltd,10809,246.93
"Department for Business, Energy and Industrial Strategy",The Coal Authority,03/03/2017,Minewater Landscaping,Environment - Contract Management,10461 Severn Trent Serv Ops Uk Ltd,10809,103.44
"Department for Business, Energy and Industrial Strategy",The Coal Authority,03/03/2017,Minewater Landscaping,Environment - Contract Management,10461 Severn Trent Serv Ops Uk Ltd,10809,153.65
"Department for Business, Energy and Industrial Strategy",The Coal Authority,03/03/2017,Minewater Landscaping,Environment - Contract Management,10461 Severn Trent Serv Ops Uk Ltd,10809,169.26
"Department for Business, Energy and Industrial Strategy",The Coal Authority,03/03/2017,Minewater Landscaping,Environment - Contract Management,10461 Severn Trent Serv Ops Uk Ltd,10809,180.4
"Department for Business, Energy and Industrial Strategy",The Coal Authority,03/03/2017,Minewater Landscaping,Environment - Contract Management,10461 Severn Trent Serv Ops Uk Ltd,10809,201.78
"Department for Business, Energy and Industrial Strategy",The Coal Authority,03/03/2017,Minewater Landscaping,Environment - Contract Management,10461 Severn Trent Serv Ops Uk Ltd,10809,611.3
"Department for Business, Energy and Industrial Strategy",The Coal Authority,03/03/2017,Minewater Landscaping,Environment - Contract Management,10461 Severn Trent Serv Ops Uk Ltd,10809,856.73
"Department for Business, Energy and Industrial Strategy",The Coal Authority,15/02/2017,Minewater Landscaping,Environment - Contract Management,Network Rail,10555,40
"Department for Business, Energy and Industrial Strategy",The Coal Authority,15/02/2017,Minewater Landscaping,Environment - Contract Management,Network Rail,10556,15
"Department for Business, Energy and Industrial Strategy",The Coal Authority,15/02/2017,Minewater Landscaping,Environment - Contract Management,Network Rail,10557,555.33
"Department for Business, Energy and Industrial Strategy",The Coal Authority,03/03/2017,Minewater Liability & Monitoring Sites - Maint.,Environment - Contract Management,10461 Severn Trent Serv Ops Uk Ltd,10809,10355.84
"Department for Business, Energy and Industrial Strategy",The Coal Authority,03/03/2017,Minewater Liability & Monitoring Sites - Maint.,Environment - Contract Management,10461 Severn Trent Serv Ops Uk Ltd,10809,13885.11
"Department for Business, Energy and Industrial Strategy",The Coal Authority,03/03/2017,Minewater Monitoring & Flow Measurement,Environment - Contract Management,10461 Severn Trent Serv Ops Uk Ltd,10809,39.36
"Department for Business, Energy and Industrial Strategy",The Coal Authority,03/03/2017,Minewater Monitoring & Flow Measurement,Environment - Contract Management,10461 Severn Trent Serv Ops Uk Ltd,10809,28.99
"Department for Business, Energy and Industrial Strategy",The Coal Authority,03/03/2017,Minewater Monitoring & Flow Measurement,Environment - Contract Management,10461 Severn Trent Serv Ops Uk Ltd,10809,28.99
"Department for Business, Energy and Industrial Strategy",The Coal Authority,03/03/2017,Minewater Monitoring & Flow Measurement,Environment - Contract Management,10461 Severn Trent Serv Ops Uk Ltd,10809,805.03
"Department for Business, Energy and Industrial Strategy",The Coal Authority,03/03/2017,Minewater Monitoring & Flow Measurement,Environment - Contract Management,10461 Severn Trent Serv Ops Uk Ltd,10809,1330.8
"Department for Business, Energy and Industrial Strategy",The Coal Authority,03/03/2017,Minewater Monitoring & Flow Measurement,Environment - Contract Management,10461 Severn Trent Serv Ops Uk Ltd,10809,1.88
"Department for Business, Energy and Industrial Strategy",The Coal Authority,03/03/2017,Minewater Monitoring & Flow Measurement,Environment - Contract Management,10461 Severn Trent Serv Ops Uk Ltd,10809,2
"Department for Business, Energy and Industrial Strategy",The Coal Authority,03/03/2017,Minewater Monitoring & Flow Measurement,Environment - Contract Management,10461 Severn Trent Serv Ops Uk Ltd,10809,3.22
"Department for Business, Energy and Industrial Strategy",The Coal Authority,03/03/2017,Minewater Monitoring & Flow Measurement,Environment - Contract Management,10461 Severn Trent Serv Ops Uk Ltd,10809,5.78
"Department for Business, Energy and Industrial Strategy",The Coal Authority,03/03/2017,Minewater Monitoring & Flow Measurement,Environment - Contract Management,10461 Severn Trent Serv Ops Uk Ltd,10809,5.89
"Department for Business, Energy and Industrial Strategy",The Coal Authority,03/03/2017,Minewater Monitoring & Flow Measurement,Environment - Contract Management,10461 Severn Trent Serv Ops Uk Ltd,10809,6.48
"Department for Business, Energy and Industrial Strategy",The Coal Authority,03/03/2017,Minewater Monitoring & Flow Measurement,Environment - Contract Management,10461 Severn Trent Serv Ops Uk Ltd,10809,14
"Department for Business, Energy and Industrial Strategy",The Coal Authority,03/03/2017,Minewater Monitoring & Flow Measurement,Environment - Contract Management,10461 Severn Trent Serv Ops Uk Ltd,10809,16.36
"Department for Business, Energy and Industrial Strategy",The Coal Authority,03/03/2017,Minewater Monitoring & Flow Measurement,Environment - Contract Management,10461 Severn Trent Serv Ops Uk Ltd,10809,18.81
"Department for Business, Energy and Industrial Strategy",The Coal Authority,03/03/2017,Minewater Monitoring & Flow Measurement,Environment - Contract Management,10461 Severn Trent Serv Ops Uk Ltd,10809,18.81
"Department for Business, Energy and Industrial Strategy",The Coal Authority,03/03/2017,Minewater Monitoring & Flow Measurement,Environment - Contract Management,10461 Severn Trent Serv Ops Uk Ltd,10809,19.22
"Department for Business, Energy and Industrial Strategy",The Coal Authority,03/03/2017,Minewater Monitoring & Flow Measurement,Environment - Contract Management,10461 Severn Trent Serv Ops Uk Ltd,10809,19.22
"Department for Business, Energy and Industrial Strategy",The Coal Authority,03/03/2017,Minewater Monitoring & Flow Measurement,Environment - Contract Management,10461 Severn Trent Serv Ops Uk Ltd,10809,19.99
"Department for Business, Energy and Industrial Strategy",The Coal Authority,03/03/2017,Minewater Monitoring & Flow Measurement,Environment - Contract Management,10461 Severn Trent Serv Ops Uk Ltd,10809,20.23
"Department for Business, Energy and Industrial Strategy",The Coal Authority,03/03/2017,Minewater Monitoring & Flow Measurement,Environment - Contract Management,10461 Severn Trent Serv Ops Uk Ltd,10809,20.49
"Department for Business, Energy and Industrial Strategy",The Coal Authority,03/03/2017,Minewater Monitoring & Flow Measurement,Environment - Contract Management,10461 Severn Trent Serv Ops Uk Ltd,10809,24.02
"Department for Business, Energy and Industrial Strategy",The Coal Authority,03/03/2017,Minewater Monitoring & Flow Measurement,Environment - Contract Management,10461 Severn Trent Serv Ops Uk Ltd,10809,25.79
"Department for Business, Energy and Industrial Strategy",The Coal Authority,03/03/2017,Minewater Monitoring & Flow Measurement,Environment - Contract Management,10461 Severn Trent Serv Ops Uk Ltd,10809,26.18
"Department for Business, Energy and Industrial Strategy",The Coal Authority,03/03/2017,Minewater Monitoring & Flow Measurement,Environment - Contract Management,10461 Severn Trent Serv Ops Uk Ltd,10809,65.82
"Department for Business, Energy and Industrial Strategy",The Coal Authority,03/03/2017,Minewater Monitoring & Flow Measurement,Environment - Contract Management,10461 Severn Trent Serv Ops Uk Ltd,10809,69.47
"Department for Business, Energy and Industrial Strategy",The Coal Authority,03/03/2017,Minewater Monitoring & Flow Measurement,Environment - Contract Management,10461 Severn Trent Serv Ops Uk Ltd,10809,71.3
"Department for Business, Energy and Industrial Strategy",The Coal Authority,03/03/2017,Minewater Monitoring & Flow Measurement,Environment - Contract Management,10461 Severn Trent Serv Ops Uk Ltd,10809,71.66
"Department for Business, Energy and Industrial Strategy",The Coal Authority,03/03/2017,Minewater Monitoring & Flow Measurement,Environment - Contract Management,10461 Severn Trent Serv Ops Uk Ltd,10809,74.94
"Department for Business, Energy and Industrial Strategy",The Coal Authority,03/03/2017,Minewater Monitoring & Flow Measurement,Environment - Contract Management,10461 Severn Trent Serv Ops Uk Ltd,10809,76.16
"Department for Business, Energy and Industrial Strategy",The Coal Authority,03/03/2017,Minewater Monitoring & Flow Measurement,Environment - Contract Management,10461 Severn Trent Serv Ops Uk Ltd,10809,79.81
"Department for Business, Energy and Industrial Strategy",The Coal Authority,03/03/2017,Minewater Monitoring & Flow Measurement,Environment - Contract Management,10461 Severn Trent Serv Ops Uk Ltd,10809,92.62
"Department for Business, Energy and Industrial Strategy",The Coal Authority,03/03/2017,Minewater Monitoring & Flow Measurement,Environment - Contract Management,10461 Severn Trent Serv Ops Uk Ltd,10809,99.26
"Department for Business, Energy and Industrial Strategy",The Coal Authority,03/03/2017,Minewater Monitoring & Flow Measurement,Environment - Contract Management,10461 Severn Trent Serv Ops Uk Ltd,10809,101.28
"Department for Business, Energy and Industrial Strategy",The Coal Authority,03/03/2017,Minewater Monitoring & Flow Measurement,Environment - Contract Management,10461 Severn Trent Serv Ops Uk Ltd,10809,107.86
"Department for Business, Energy and Industrial Strategy",The Coal Authority,03/03/2017,Minewater Monitoring & Flow Measurement,Environment - Contract Management,10461 Severn Trent Serv Ops Uk Ltd,10809,110.11
"Department for Business, Energy and Industrial Strategy",The Coal Authority,03/03/2017,Minewater Monitoring & Flow Measurement,Environment - Contract Management,10461 Severn Trent Serv Ops Uk Ltd,10809,111.3
"Department for Business, Energy and Industrial Strategy",The Coal Authority,03/03/2017,Minewater Monitoring & Flow Measurement,Environment - Contract Management,10461 Severn Trent Serv Ops Uk Ltd,10809,118.91
"Department for Business, Energy and Industrial Strategy",The Coal Authority,03/03/2017,Minewater Monitoring & Flow Measurement,Environment - Contract Management,10461 Severn Trent Serv Ops Uk Ltd,10809,120.96
"Department for Business, Energy and Industrial Strategy",The Coal Authority,03/03/2017,Minewater Monitoring & Flow Measurement,Environment - Contract Management,10461 Severn Trent Serv Ops Uk Ltd,10809,122.66
"Department for Business, Energy and Industrial Strategy",The Coal Authority,03/03/2017,Minewater Monitoring & Flow Measurement,Environment - Contract Management,10461 Severn Trent Serv Ops Uk Ltd,10809,130.41
"Department for Business, Energy and Industrial Strategy",The Coal Authority,03/03/2017,Minewater Monitoring & Flow Measurement,Environment - Contract Management,10461 Severn Trent Serv Ops Uk Ltd,10809,32.21
"Department for Business, Energy and Industrial Strategy",The Coal Authority,03/03/2017,Minewater Monitoring & Flow Measurement,Environment - Contract Management,10461 Severn Trent Serv Ops Uk Ltd,10809,37.9
"Department for Business, Energy and Industrial Strategy",The Coal Authority,03/03/2017,Minewater Monitoring & Flow Measurement,Environment - Contract Management,10461 Severn Trent Serv Ops Uk Ltd,10809,38.44
"Department for Business, Energy and Industrial Strategy",The Coal Authority,03/03/2017,Minewater Monitoring & Flow Measurement,Environment - Contract Management,10461 Severn Trent Serv Ops Uk Ltd,10809,44.22
"Department for Business, Energy and Industrial Strategy",The Coal Authority,03/03/2017,Minewater Monitoring & Flow Measurement,Environment - Contract Management,10461 Severn Trent Serv Ops Uk Ltd,10809,46.76
"Department for Business, Energy and Industrial Strategy",The Coal Authority,03/03/2017,Minewater Monitoring & Flow Measurement,Environment - Contract Management,10461 Severn Trent Serv Ops Uk Ltd,10809,48.26
"Department for Business, Energy and Industrial Strategy",The Coal Authority,03/03/2017,Minewater Monitoring & Flow Measurement,Environment - Contract Management,10461 Severn Trent Serv Ops Uk Ltd,10809,52.46
"Department for Business, Energy and Industrial Strategy",The Coal Authority,03/03/2017,Minewater Monitoring & Flow Measurement,Environment - Contract Management,10461 Severn Trent Serv Ops Uk Ltd,10809,53.69
"Department for Business, Energy and Industrial Strategy",The Coal Authority,03/03/2017,Minewater Monitoring & Flow Measurement,Environment - Contract Management,10461 Severn Trent Serv Ops Uk Ltd,10809,56.93
"Department for Business, Energy and Industrial Strategy",The Coal Authority,03/03/2017,Minewater Monitoring & Flow Measurement,Environment - Contract Management,10461 Severn Trent Serv Ops Uk Ltd,10809,140.48
"Department for Business, Energy and Industrial Strategy",The Coal Authority,03/03/2017,Minewater Monitoring & Flow Measurement,Environment - Contract Management,10461 Severn Trent Serv Ops Uk Ltd,10809,150.46
"Department for Business, Energy and Industrial Strategy",The Coal Authority,03/03/2017,Minewater Monitoring & Flow Measurement,Environment - Contract Management,10461 Severn Trent Serv Ops Uk Ltd,10809,152.36
"Department for Business, Energy and Industrial Strategy",The Coal Authority,03/03/2017,Minewater Monitoring & Flow Measurement,Environment - Contract Management,10461 Severn Trent Serv Ops Uk Ltd,10809,159.18
"Department for Business, Energy and Industrial Strategy",The Coal Authority,03/03/2017,Minewater Monitoring & Flow Measurement,Environment - Contract Management,10461 Severn Trent Serv Ops Uk Ltd,10809,178.67
"Department for Business, Energy and Industrial Strategy",The Coal Authority,03/03/2017,Minewater Monitoring & Flow Measurement,Environment - Contract Management,10461 Severn Trent Serv Ops Uk Ltd,10809,192.77
"Department for Business, Energy and Industrial Strategy",The Coal Authority,03/03/2017,Minewater Monitoring & Flow Measurement,Environment - Contract Management,10461 Severn Trent Serv Ops Uk Ltd,10809,249.4
"Department for Business, Energy and Industrial Strategy",The Coal Authority,03/03/2017,Minewater Monitoring & Flow Measurement,Environment - Contract Management,10461 Severn Trent Serv Ops Uk Ltd,10809,271.88
"Department for Business, Energy and Industrial Strategy",The Coal Authority,03/03/2017,Minewater Monitoring & Flow Measurement,Environment - Contract Management,10461 Severn Trent Serv Ops Uk Ltd,10809,358.15
"Department for Business, Energy and Industrial Strategy",The Coal Authority,03/03/2017,Minewater Monitoring & Flow Measurement,Environment - Contract Management,10461 Severn Trent Serv Ops Uk Ltd,10809,379.53
"Department for Business, Energy and Industrial Strategy",The Coal Authority,03/03/2017,Minewater Monitoring & Flow Measurement,Environment - Contract Management,10461 Severn Trent Serv Ops Uk Ltd,10809,449.78
"Department for Business, Energy and Industrial Strategy",The Coal Authority,03/03/2017,Minewater Monitoring & Flow Measurement,Environment - Contract Management,10461 Severn Trent Serv Ops Uk Ltd,10809,526.25
"Department for Business, Energy and Industrial Strategy",The Coal Authority,03/03/2017,Minewater Monitoring & Flow Measurement,Environment - Contract Management,10461 Severn Trent Serv Ops Uk Ltd,10809,533.26
"Department for Business, Energy and Industrial Strategy",The Coal Authority,03/03/2017,Minewater Monitoring & Flow Measurement,Environment - Contract Management,10461 Severn Trent Serv Ops Uk Ltd,10809,577.15
"Department for Business, Energy and Industrial Strategy",The Coal Authority,30/12/2016,Minewater Monitoring & Flow Measurement,Environment - Contract Management,Environmental Scientifics Grp,9558,126.15
"Department for Business, Energy and Industrial Strategy",The Coal Authority,30/01/2017,Minewater Monitoring & Flow Measurement,Environment - Contract Management,Environmental Scientifics Grp,10258,294.35
"Department for Business, Energy and Industrial Strategy",The Coal Authority,31/01/2017,Minewater Monitoring & Flow Measurement,Environment - Contract Management,Environmental Scientifics Grp,10260,294.35
"Department for Business, Energy and Industrial Strategy",The Coal Authority,31/01/2017,Minewater Monitoring & Flow Measurement,Environment - Contract Management,Environmental Scientifics Grp,10261,294.35
"Department for Business, Energy and Industrial Strategy",The Coal Authority,07/02/2017,Minewater Monitoring & Flow Measurement,Environment - Contract Management,Environmental Scientifics Grp,10462,165
"Department for Business, Energy and Industrial Strategy",The Coal Authority,02/02/2017,Minewater Power Costs,Environment - Contract Management,10038-Cancellation - incorrect JT,10140,-222.76
"Department for Business, Energy and Industrial Strategy",The Coal Authority,03/03/2017,Minewater Power Costs,Environment - Contract Management,10461 Severn Trent Serv Ops Uk Ltd,10809,44.79
"Department for Business, Energy and Industrial Strategy",The Coal Authority,11/01/2017,Minewater Power Costs,Environment - Contract Management,British Gas Business,9870,992.85
"Department for Business, Energy and Industrial Strategy",The Coal Authority,11/01/2017,Minewater Power Costs,Environment - Contract Management,British Gas Business,9870,101.57
"Department for Business, Energy and Industrial Strategy",The Coal Authority,11/01/2017,Minewater Power Costs,Environment - Contract Management,British Gas Business,9870,1442.25
"Department for Business, Energy and Industrial Strategy",The Coal Authority,11/01/2017,Minewater Power Costs,Environment - Contract Management,British Gas Business,9870,645.95
"Department for Business, Energy and Industrial Strategy",The Coal Authority,11/01/2017,Minewater Power Costs,Environment - Contract Management,British Gas Business,9870,323.66
"Department for Business, Energy and Industrial Strategy",The Coal Authority,11/01/2017,Minewater Power Costs,Environment - Contract Management,British Gas Business,9870,917.64
"Department for Business, Energy and Industrial Strategy",The Coal Authority,11/01/2017,Minewater Power Costs,Environment - Contract Management,British Gas Business,9870,865.05
"Department for Business, Energy and Industrial Strategy",The Coal Authority,11/01/2017,Minewater Power Costs,Environment - Contract Management,British Gas Business,9870,2723.22
"Department for Business, Energy and Industrial Strategy",The Coal Authority,11/01/2017,Minewater Power Costs,Environment - Contract Management,British Gas Business,9870,3304.65
"Department for Business, Energy and Industrial Strategy",The Coal Authority,11/01/2017,Minewater Power Costs,Environment - Contract Management,British Gas Business,9870,2668.28
"Department for Business, Energy and Industrial Strategy",The Coal Authority,11/01/2017,Minewater Power Costs,Environment - Contract Management,British Gas Business,9870,339.52
"Department for Business, Energy and Industrial Strategy",The Coal Authority,11/01/2017,Minewater Power Costs,Environment - Contract Management,British Gas Business,9870,825.91
"Department for Business, Energy and Industrial Strategy",The Coal Authority,11/01/2017,Minewater Power Costs,Environment - Contract Management,British Gas Business,9870,330.75
"Department for Business, Energy and Industrial Strategy",The Coal Authority,11/01/2017,Minewater Power Costs,Environment - Contract Management,British Gas Business,9870,8.06
"Department for Business, Energy and Industrial Strategy",The Coal Authority,11/01/2017,Minewater Power Costs,Environment - Contract Management,British Gas Business,9870,8477.22
"Department for Business, Energy and Industrial Strategy",The Coal Authority,11/01/2017,Minewater Power Costs,Environment - Contract Management,British Gas Business,9870,552.24
"Department for Business, Energy and Industrial Strategy",The Coal Authority,11/01/2017,Minewater Power Costs,Environment - Contract Management,British Gas Business,9870,924.66
"Department for Business, Energy and Industrial Strategy",The Coal Authority,11/01/2017,Minewater Power Costs,Environment - Contract Management,British Gas Business,9870,2628.12
"Department for Business, Energy and Industrial Strategy",The Coal Authority,11/01/2017,Minewater Power Costs,Environment - Contract Management,British Gas Business,9870,1513.09
"Department for Business, Energy and Industrial Strategy",The Coal Authority,11/01/2017,Minewater Power Costs,Environment - Contract Management,British Gas Business,9870,1312.13
"Department for Business, Energy and Industrial Strategy",The Coal Authority,11/01/2017,Minewater Power Costs,Environment - Contract Management,British Gas Business,9870,130.9
"Department for Business, Energy and Industrial Strategy",The Coal Authority,11/01/2017,Minewater Power Costs,Environment - Contract Management,British Gas Business,9870,485.81
"Department for Business, Energy and Industrial Strategy",The Coal Authority,11/01/2017,Minewater Power Costs,Environment - Contract Management,British Gas Business,9870,715.23
"Department for Business, Energy and Industrial Strategy",The Coal Authority,11/01/2017,Minewater Power Costs,Environment - Contract Management,British Gas Business,9870,756.06
"Department for Business, Energy and Industrial Strategy",The Coal Authority,11/01/2017,Minewater Power Costs,Environment - Contract Management,British Gas Business,9870,242.46
"Department for Business, Energy and Industrial Strategy",The Coal Authority,11/01/2017,Minewater Power Costs,Environment - Contract Management,British Gas Business,9875,663.63
"Department for Business, Energy and Industrial Strategy",The Coal Authority,02/02/2017,Minewater Power Costs,Environment - Contract Management,British Gas Business,10076,1107.45
"Department for Business, Energy and Industrial Strategy",The Coal Authority,02/02/2017,Minewater Power Costs,Environment - Contract Management,British Gas Business,10079,532.27
"Department for Business, Energy and Industrial Strategy",The Coal Authority,13/02/2017,Minewater Power Costs,Environment - Contract Management,British Gas Business,10586,-2472.58
"Department for Business, Energy and Industrial Strategy",The Coal Authority,13/02/2017,Minewater Power Costs,Environment - Contract Management,British Gas Business,10589,1051.27
"Department for Business, Energy and Industrial Strategy",The Coal Authority,13/02/2017,Minewater Power Costs,Environment - Contract Management,British Gas Business,10589,180.51
"Department for Business, Energy and Industrial Strategy",The Coal Authority,13/02/2017,Minewater Power Costs,Environment - Contract Management,British Gas Business,10589,1658.32
"Department for Business, Energy and Industrial Strategy",The Coal Authority,13/02/2017,Minewater Power Costs,Environment - Contract Management,British Gas Business,10589,643.22
"Department for Business, Energy and Industrial Strategy",The Coal Authority,13/02/2017,Minewater Power Costs,Environment - Contract Management,British Gas Business,10589,338.76
"Department for Business, Energy and Industrial Strategy",The Coal Authority,13/02/2017,Minewater Power Costs,Environment - Contract Management,British Gas Business,10589,1098.7
"Department for Business, Energy and Industrial Strategy",The Coal Authority,13/02/2017,Minewater Power Costs,Environment - Contract Management,British Gas Business,10589,859.59
"Department for Business, Energy and Industrial Strategy",The Coal Authority,13/02/2017,Minewater Power Costs,Environment - Contract Management,British Gas Business,10589,3058.36
"Department for Business, Energy and Industrial Strategy",The Coal Authority,13/02/2017,Minewater Power Costs,Environment - Contract Management,British Gas Business,10589,2249.79
"Department for Business, Energy and Industrial Strategy",The Coal Authority,13/02/2017,Minewater Power Costs,Environment - Contract Management,British Gas Business,10589,2998.5
"Department for Business, Energy and Industrial Strategy",The Coal Authority,13/02/2017,Minewater Power Costs,Environment - Contract Management,British Gas Business,10589,312.38
"Department for Business, Energy and Industrial Strategy",The Coal Authority,13/02/2017,Minewater Power Costs,Environment - Contract Management,British Gas Business,10589,890.69
"Department for Business, Energy and Industrial Strategy",The Coal Authority,13/02/2017,Minewater Power Costs,Environment - Contract Management,British Gas Business,10589,345.07
"Department for Business, Energy and Industrial Strategy",The Coal Authority,13/02/2017,Minewater Power Costs,Environment - Contract Management,British Gas Business,10589,9.5
"Department for Business, Energy and Industrial Strategy",The Coal Authority,13/02/2017,Minewater Power Costs,Environment - Contract Management,British Gas Business,10589,8458.07
"Department for Business, Energy and Industrial Strategy",The Coal Authority,13/02/2017,Minewater Power Costs,Environment - Contract Management,British Gas Business,10589,631.73
"Department for Business, Energy and Industrial Strategy",The Coal Authority,13/02/2017,Minewater Power Costs,Environment - Contract Management,British Gas Business,10589,1021.25
"Department for Business, Energy and Industrial Strategy",The Coal Authority,13/02/2017,Minewater Power Costs,Environment - Contract Management,British Gas Business,10589,2549.97
"Department for Business, Energy and Industrial Strategy",The Coal Authority,13/02/2017,Minewater Power Costs,Environment - Contract Management,British Gas Business,10589,1252.86
"Department for Business, Energy and Industrial Strategy",The Coal Authority,13/02/2017,Minewater Power Costs,Environment - Contract Management,British Gas Business,10589,640.72
"Department for Business, Energy and Industrial Strategy",The Coal Authority,13/02/2017,Minewater Power Costs,Environment - Contract Management,British Gas Business,10589,116.76
"Department for Business, Energy and Industrial Strategy",The Coal Authority,13/02/2017,Minewater Power Costs,Environment - Contract Management,British Gas Business,10589,79.8
"Department for Business, Energy and Industrial Strategy",The Coal Authority,13/02/2017,Minewater Power Costs,Environment - Contract Management,British Gas Business,10589,97.35
"Department for Business, Energy and Industrial Strategy",The Coal Authority,13/02/2017,Minewater Power Costs,Environment - Contract Management,British Gas Business,10589,86.45
"Department for Business, Energy and Industrial Strategy",The Coal Authority,13/02/2017,Minewater Power Costs,Environment - Contract Management,British Gas Business,10589,51.79
"Department for Business, Energy and Industrial Strategy",The Coal Authority,13/02/2017,Minewater Power Costs,Environment - Contract Management,British Gas Business,10589,44.29
"Department for Business, Energy and Industrial Strategy",The Coal Authority,13/02/2017,Minewater Power Costs,Environment - Contract Management,British Gas Business,10589,39.96
"Department for Business, Energy and Industrial Strategy",The Coal Authority,13/02/2017,Minewater Power Costs,Environment - Contract Management,British Gas Business,10589,39.79
"Department for Business, Energy and Industrial Strategy",The Coal Authority,13/02/2017,Minewater Power Costs,Environment - Contract Management,British Gas Business,10589,34.75
"Department for Business, Energy and Industrial Strategy",The Coal Authority,13/02/2017,Minewater Power Costs,Environment - Contract Management,British Gas Business,10589,29.99
"Department for Business, Energy and Industrial Strategy",The Coal Authority,13/02/2017,Minewater Power Costs,Environment - Contract Management,British Gas Business,10589,77.48
"Department for Business, Energy and Industrial Strategy",The Coal Authority,13/02/2017,Minewater Power Costs,Environment - Contract Management,British Gas Business,10589,48.95
"Department for Business, Energy and Industrial Strategy",The Coal Authority,13/02/2017,Minewater Power Costs,Environment - Contract Management,British Gas Business,10589,49.55
"Department for Business, Energy and Industrial Strategy",The Coal Authority,13/02/2017,Minewater Power Costs,Environment - Contract Management,British Gas Business,10589,1332.75
"Department for Business, Energy and Industrial Strategy",The Coal Authority,13/02/2017,Minewater Power Costs,Environment - Contract Management,British Gas Business,10589,86.8
"Department for Business, Energy and Industrial Strategy",The Coal Authority,13/02/2017,Minewater Power Costs,Environment - Contract Management,British Gas Business,10589,577.93
"Department for Business, Energy and Industrial Strategy",The Coal Authority,13/02/2017,Minewater Power Costs,Environment - Contract Management,British Gas Business,10589,825.95
"Department for Business, Energy and Industrial Strategy",The Coal Authority,13/02/2017,Minewater Power Costs,Environment - Contract Management,British Gas Business,10589,857.11
"Department for Business, Energy and Industrial Strategy",The Coal Authority,13/02/2017,Minewater Power Costs,Environment - Contract Management,British Gas Business,10589,273.2
"Department for Business, Energy and Industrial Strategy",The Coal Authority,14/02/2017,Minewater Power Costs,Environment - Contract Management,Edf Energy,10004,1235.18
"Department for Business, Energy and Industrial Strategy",The Coal Authority,14/02/2017,Minewater Power Costs,Environment - Contract Management,Edf Energy,10004,4452.7
"Department for Business, Energy and Industrial Strategy",The Coal Authority,14/02/2017,Minewater Power Costs,Environment - Contract Management,Edf Energy,10004,9048.38
"Department for Business, Energy and Industrial Strategy",The Coal Authority,14/02/2017,Minewater Power Costs,Environment - Contract Management,Edf Energy,10004,9321.16
"Department for Business, Energy and Industrial Strategy",The Coal Authority,14/02/2017,Minewater Power Costs,Environment - Contract Management,Edf Energy,10004,2886.12
"Department for Business, Energy and Industrial Strategy",The Coal Authority,14/02/2017,Minewater Power Costs,Environment - Contract Management,Edf Energy,10004,15926.9
"Department for Business, Energy and Industrial Strategy",The Coal Authority,14/02/2017,Minewater Power Costs,Environment - Contract Management,Edf Energy,10004,707.21
"Department for Business, Energy and Industrial Strategy",The Coal Authority,14/02/2017,Minewater Power Costs,Environment - Contract Management,Edf Energy,10004,4213.7
"Department for Business, Energy and Industrial Strategy",The Coal Authority,14/02/2017,Minewater Power Costs,Environment - Contract Management,Edf Energy,10004,4879.13
"Department for Business, Energy and Industrial Strategy",The Coal Authority,14/02/2017,Minewater Power Costs,Environment - Contract Management,Edf Energy,10004,6980.96
"Department for Business, Energy and Industrial Strategy",The Coal Authority,14/02/2017,Minewater Power Costs,Environment - Contract Management,Edf Energy,10004,11563.36
"Department for Business, Energy and Industrial Strategy",The Coal Authority,14/02/2017,Minewater Power Costs,Environment - Contract Management,Edf Energy,10004,15264.47
"Department for Business, Energy and Industrial Strategy",The Coal Authority,14/02/2017,Minewater Power Costs,Environment - Contract Management,Edf Energy,10004,10442.65
"Department for Business, Energy and Industrial Strategy",The Coal Authority,14/02/2017,Minewater Power Costs,Environment - Contract Management,Edf Energy,10004,4639.1
"Department for Business, Energy and Industrial Strategy",The Coal Authority,14/02/2017,Minewater Power Costs,Environment - Contract Management,Edf Energy,10004,128.6
"Department for Business, Energy and Industrial Strategy",The Coal Authority,14/02/2017,Minewater Power Costs,Environment - Contract Management,Edf Energy,10004,14545.09
"Department for Business, Energy and Industrial Strategy",The Coal Authority,14/02/2017,Minewater Power Costs,Environment - Contract Management,Edf Energy,10004,5813.09
"Department for Business, Energy and Industrial Strategy",The Coal Authority,14/02/2017,Minewater Power Costs,Environment - Contract Management,Edf Energy,10004,18632.51
"Department for Business, Energy and Industrial Strategy",The Coal Authority,01/02/2017,Minewater Power Costs,Environment - Contract Management,Edf Energy Customers Plc,10053,8202.01
"Department for Business, Energy and Industrial Strategy",The Coal Authority,01/02/2017,Minewater Power Costs,Environment - Contract Management,Edf Energy Customers Plc,10055,2490.44
"Department for Business, Energy and Industrial Strategy",The Coal Authority,01/02/2017,Minewater Power Costs,Environment - Contract Management,Edf Energy Customers Plc,10055,7.7
"Department for Business, Energy and Industrial Strategy",The Coal Authority,02/02/2017,Minewater Power Costs,Environment - Contract Management,Edf Energy Customers Plc,10037,-142.72
"Department for Business, Energy and Industrial Strategy",The Coal Authority,02/02/2017,Minewater Power Costs,Environment - Contract Management,Edf Energy Customers Plc,10038,222.76
"Department for Business, Energy and Industrial Strategy",The Coal Authority,02/02/2017,Minewater Power Costs,Environment - Contract Management,Edf Energy Customers Plc,10040,-207.8
"Department for Business, Energy and Industrial Strategy",The Coal Authority,02/02/2017,Minewater Power Costs,Environment - Contract Management,Edf Energy Customers Plc,10144,-222.76
"Department for Business, Energy and Industrial Strategy",The Coal Authority,03/03/2017,Minewater Pump Overhauls,Environment - Contract Management,10461 Severn Trent Serv Ops Uk Ltd,10809,23289.28
"Department for Business, Energy and Industrial Strategy",The Coal Authority,03/03/2017,Minewater Pumping Tests,Environment - Contract Management,10461 Severn Trent Serv Ops Uk Ltd,10809,918.41
"Department for Business, Energy and Industrial Strategy",The Coal Authority,03/03/2017,Minewater Pumping Tests,Environment - Contract Management,10461 Severn Trent Serv Ops Uk Ltd,10809,687.12
"Department for Business, Energy and Industrial Strategy",The Coal Authority,03/03/2017,Minewater Pumping Tests,Environment - Contract Management,10461 Severn Trent Serv Ops Uk Ltd,10809,25403.63
"Department for Business, Energy and Industrial Strategy",The Coal Authority,23/01/2017,Minewater Rates,Environment - Contract Management,Neath Port Talbot County B C,10238,4338
"Department for Business, Energy and Industrial Strategy",The Coal Authority,23/01/2017,Minewater Rates,Environment - Contract Management,Neath Port Talbot County B C,10240,4338
"Department for Business, Energy and Industrial Strategy",The Coal Authority,10/02/2017,Minewater Rates,Environment - Contract Management,Redcar&Cleveland Borough Council,10545,8874
"Department for Business, Energy and Industrial Strategy",The Coal Authority,10/02/2017,Minewater Rates,Environment - Contract Management,Redcar&Cleveland Borough Council,10546,9016
"Department for Business, Energy and Industrial Strategy",The Coal Authority,21/12/2016,Minewater Rates,Environment - Contract Management,Salford City Council,9289,8470
"Department for Business, Energy and Industrial Strategy",The Coal Authority,21/12/2016,Minewater Rates,Environment - Contract Management,Salford City Council,9290,8400
"Department for Business, Energy and Industrial Strategy",The Coal Authority,03/03/2017,Minewater Remediation,Environment - Contract Management,10461 Severn Trent Serv Ops Uk Ltd,10809,107.75
"Department for Business, Energy and Industrial Strategy",The Coal Authority,03/03/2017,Minewater Remediation,Environment - Contract Management,10461 Severn Trent Serv Ops Uk Ltd,10809,240.82
"Department for Business, Energy and Industrial Strategy",The Coal Authority,03/03/2017,Minewater Remediation,Environment - Contract Management,10461 Severn Trent Serv Ops Uk Ltd,10809,240.82
"Department for Business, Energy and Industrial Strategy",The Coal Authority,08/03/2017,Minewater Remediation,Environment - Contract Management,1873-Severn Trent Services,11092,27108.31
"Department for Business, Energy and Industrial Strategy",The Coal Authority,27/02/2017,Minewater Rent,Environment - Contract Management,Annual rent,10648,7854.46
"Department for Business, Energy and Industrial Strategy",The Coal Authority,27/02/2017,Minewater Rent,Environment - Contract Management,Annual rent,10649,1069.84
"Department for Business, Energy and Industrial Strategy",The Coal Authority,27/02/2017,Minewater Rent,Environment - Contract Management,Annual rent,10651,67.5
"Department for Business, Energy and Industrial Strategy",The Coal Authority,19/01/2017,Minewater Rent,Environment - Contract Management,Balgonie Estates Ltd,9940,150
"Department for Business, Energy and Industrial Strategy",The Coal Authority,01/02/2017,Minewater Rent,Environment - Contract Management,Barnsley Metropolitan Bor. Cou,10275,650
"Department for Business, Energy and Industrial Strategy",The Coal Authority,06/02/2017,Minewater Rent,Environment - Contract Management,The Crown Estate,10360,1000
"Department for Business, Energy and Industrial Strategy",The Coal Authority,18/01/2017,Minewater Rent,Environment - Contract Management,The National Trust,9725,303.24
"Department for Business, Energy and Industrial Strategy",The Coal Authority,27/02/2017,Minewater Rent,Environment - Contract Management,Trustees Of Dunfermline Golf C,10652,500
"Department for Business, Energy and Industrial Strategy",The Coal Authority,21/12/2016,Minewater Rent,Environment - Contract Management,Trustees SW Fraser (1992) Stlmnt-Fnd B,9500,20
"Department for Business, Energy and Industrial Strategy",The Coal Authority,03/03/2017,Minewater Sampling - Operational Sites,Environment - Contract Management,10461 Severn Trent Serv Ops Uk Ltd,10809,31.58
"Department for Business, Energy and Industrial Strategy",The Coal Authority,03/03/2017,Minewater Sampling - Operational Sites,Environment - Contract Management,10461 Severn Trent Serv Ops Uk Ltd,10809,31.58
"Department for Business, Energy and Industrial Strategy",The Coal Authority,03/03/2017,Minewater Sampling - Operational Sites,Environment - Contract Management,10461 Severn Trent Serv Ops Uk Ltd,10809,31.58
"Department for Business, Energy and Industrial Strategy",The Coal Authority,03/03/2017,Minewater Sampling - Operational Sites,Environment - Contract Management,10461 Severn Trent Serv Ops Uk Ltd,10809,31.58
"Department for Business, Energy and Industrial Strategy",The Coal Authority,03/03/2017,Minewater Sampling - Operational Sites,Environment - Contract Management,10461 Severn Trent Serv Ops Uk Ltd,10809,44.22
"Department for Business, Energy and Industrial Strategy",The Coal Authority,03/03/2017,Minewater Sampling - Operational Sites,Environment - Contract Management,10461 Severn Trent Serv Ops Uk Ltd,10809,63.17
"Department for Business, Energy and Industrial Strategy",The Coal Authority,03/03/2017,Minewater Sampling - Operational Sites,Environment - Contract Management,10461 Severn Trent Serv Ops Uk Ltd,10809,63.17
"Department for Business, Energy and Industrial Strategy",The Coal Authority,03/03/2017,Minewater Sampling - Operational Sites,Environment - Contract Management,10461 Severn Trent Serv Ops Uk Ltd,10809,67.85
"Department for Business, Energy and Industrial Strategy",The Coal Authority,03/03/2017,Minewater Sampling - Operational Sites,Environment - Contract Management,10461 Severn Trent Serv Ops Uk Ltd,10809,70.38
"Department for Business, Energy and Industrial Strategy",The Coal Authority,03/03/2017,Minewater Sampling - Operational Sites,Environment - Contract Management,10461 Severn Trent Serv Ops Uk Ltd,10809,72.54
"Department for Business, Energy and Industrial Strategy",The Coal Authority,03/03/2017,Minewater Sampling - Operational Sites,Environment - Contract Management,10461 Severn Trent Serv Ops Uk Ltd,10809,72.54
"Department for Business, Energy and Industrial Strategy",The Coal Authority,03/03/2017,Minewater Sampling - Operational Sites,Environment - Contract Management,10461 Severn Trent Serv Ops Uk Ltd,10809,72.54
"Department for Business, Energy and Industrial Strategy",The Coal Authority,03/03/2017,Minewater Sampling - Operational Sites,Environment - Contract Management,10461 Severn Trent Serv Ops Uk Ltd,10809,72.54
"Department for Business, Energy and Industrial Strategy",The Coal Authority,03/03/2017,Minewater Sampling - Operational Sites,Environment - Contract Management,10461 Severn Trent Serv Ops Uk Ltd,10809,72.54
"Department for Business, Energy and Industrial Strategy",The Coal Authority,03/03/2017,Minewater Sampling - Operational Sites,Environment - Contract Management,10461 Severn Trent Serv Ops Uk Ltd,10809,77.23
"Department for Business, Energy and Industrial Strategy",The Coal Authority,03/03/2017,Minewater Sampling - Operational Sites,Environment - Contract Management,10461 Severn Trent Serv Ops Uk Ltd,10809,77.23
"Department for Business, Energy and Industrial Strategy",The Coal Authority,03/03/2017,Minewater Sampling - Operational Sites,Environment - Contract Management,10461 Severn Trent Serv Ops Uk Ltd,10809,77.23
"Department for Business, Energy and Industrial Strategy",The Coal Authority,03/03/2017,Minewater Sampling - Operational Sites,Environment - Contract Management,10461 Severn Trent Serv Ops Uk Ltd,10809,77.23
"Department for Business, Energy and Industrial Strategy",The Coal Authority,03/03/2017,Minewater Sampling - Operational Sites,Environment - Contract Management,10461 Severn Trent Serv Ops Uk Ltd,10809,81.91
"Department for Business, Energy and Industrial Strategy",The Coal Authority,03/03/2017,Minewater Sampling - Operational Sites,Environment - Contract Management,10461 Severn Trent Serv Ops Uk Ltd,10809,81.91
"Department for Business, Energy and Industrial Strategy",The Coal Authority,03/03/2017,Minewater Sampling - Operational Sites,Environment - Contract Management,10461 Severn Trent Serv Ops Uk Ltd,10809,86.6
"Department for Business, Energy and Industrial Strategy",The Coal Authority,03/03/2017,Minewater Sampling - Operational Sites,Environment - Contract Management,10461 Severn Trent Serv Ops Uk Ltd,10809,94.75
"Department for Business, Energy and Industrial Strategy",The Coal Authority,03/03/2017,Minewater Sampling - Operational Sites,Environment - Contract Management,10461 Severn Trent Serv Ops Uk Ltd,10809,99.44
"Department for Business, Energy and Industrial Strategy",The Coal Authority,03/03/2017,Minewater Sampling - Operational Sites,Environment - Contract Management,10461 Severn Trent Serv Ops Uk Ltd,10809,104.12
"Department for Business, Energy and Industrial Strategy",The Coal Authority,03/03/2017,Minewater Sampling - Operational Sites,Environment - Contract Management,10461 Severn Trent Serv Ops Uk Ltd,10809,108.81
"Department for Business, Energy and Industrial Strategy",The Coal Authority,03/03/2017,Minewater Sampling - Operational Sites,Environment - Contract Management,10461 Severn Trent Serv Ops Uk Ltd,10809,108.81
"Department for Business, Energy and Industrial Strategy",The Coal Authority,03/03/2017,Minewater Sampling - Operational Sites,Environment - Contract Management,10461 Severn Trent Serv Ops Uk Ltd,10809,126.34
"Department for Business, Energy and Industrial Strategy",The Coal Authority,03/03/2017,Minewater Sampling - Operational Sites,Environment - Contract Management,10461 Severn Trent Serv Ops Uk Ltd,10809,135.71
"Department for Business, Energy and Industrial Strategy",The Coal Authority,03/03/2017,Minewater Sampling - Operational Sites,Environment - Contract Management,10461 Severn Trent Serv Ops Uk Ltd,10809,140.39
"Department for Business, Energy and Industrial Strategy",The Coal Authority,03/03/2017,Minewater Sampling - Operational Sites,Environment - Contract Management,10461 Severn Trent Serv Ops Uk Ltd,10809,145.45
"Department for Business, Energy and Industrial Strategy",The Coal Authority,03/03/2017,Minewater Sampling - Operational Sites,Environment - Contract Management,10461 Severn Trent Serv Ops Uk Ltd,10809,146.55
"Department for Business, Energy and Industrial Strategy",The Coal Authority,03/03/2017,Minewater Sampling - Operational Sites,Environment - Contract Management,10461 Severn Trent Serv Ops Uk Ltd,10809,157.92
"Department for Business, Energy and Industrial Strategy",The Coal Authority,03/03/2017,Minewater Sampling - Operational Sites,Environment - Contract Management,10461 Severn Trent Serv Ops Uk Ltd,10809,158.84
"Department for Business, Energy and Industrial Strategy",The Coal Authority,03/03/2017,Minewater Sampling - Operational Sites,Environment - Contract Management,10461 Severn Trent Serv Ops Uk Ltd,10809,164.24
"Department for Business, Energy and Industrial Strategy",The Coal Authority,03/03/2017,Minewater Sampling - Operational Sites,Environment - Contract Management,10461 Severn Trent Serv Ops Uk Ltd,10809,167.29
"Department for Business, Energy and Industrial Strategy",The Coal Authority,03/03/2017,Minewater Sampling - Operational Sites,Environment - Contract Management,10461 Severn Trent Serv Ops Uk Ltd,10809,180.77
"Department for Business, Energy and Industrial Strategy",The Coal Authority,03/03/2017,Minewater Sampling - Operational Sites,Environment - Contract Management,10461 Severn Trent Serv Ops Uk Ltd,10809,186.03
"Department for Business, Energy and Industrial Strategy",The Coal Authority,03/03/2017,Minewater Sampling - Operational Sites,Environment - Contract Management,10461 Severn Trent Serv Ops Uk Ltd,10809,204.78
"Department for Business, Energy and Industrial Strategy",The Coal Authority,03/03/2017,Minewater Sampling - Operational Sites,Environment - Contract Management,10461 Severn Trent Serv Ops Uk Ltd,10809,228.67
"Department for Business, Energy and Industrial Strategy",The Coal Authority,03/03/2017,Minewater Sampling - Operational Sites,Environment - Contract Management,10461 Severn Trent Serv Ops Uk Ltd,10809,233.9
"Department for Business, Energy and Industrial Strategy",The Coal Authority,03/03/2017,Minewater Sampling - Operational Sites,Environment - Contract Management,10461 Severn Trent Serv Ops Uk Ltd,10809,264.34
"Department for Business, Energy and Industrial Strategy",The Coal Authority,03/03/2017,Minewater Sampling - Operational Sites,Environment - Contract Management,10461 Severn Trent Serv Ops Uk Ltd,10809,266.73
"Department for Business, Energy and Industrial Strategy",The Coal Authority,03/03/2017,Minewater Sampling - Operational Sites,Environment - Contract Management,10461 Severn Trent Serv Ops Uk Ltd,10809,273.73
"Department for Business, Energy and Industrial Strategy",The Coal Authority,03/03/2017,Minewater Sampling - Operational Sites,Environment - Contract Management,10461 Severn Trent Serv Ops Uk Ltd,10809,276.1
"Department for Business, Energy and Industrial Strategy",The Coal Authority,03/03/2017,Minewater Sampling - Operational Sites,Environment - Contract Management,10461 Severn Trent Serv Ops Uk Ltd,10809,320.48
"Department for Business, Energy and Industrial Strategy",The Coal Authority,03/03/2017,Minewater Sampling - Operational Sites,Environment - Contract Management,10461 Severn Trent Serv Ops Uk Ltd,10809,337.64
"Department for Business, Energy and Industrial Strategy",The Coal Authority,03/03/2017,Minewater Sampling - Operational Sites,Environment - Contract Management,10461 Severn Trent Serv Ops Uk Ltd,10809,470.29
"Department for Business, Energy and Industrial Strategy",The Coal Authority,03/03/2017,Minewater Sampling - Operational Sites,Environment - Contract Management,10461 Severn Trent Serv Ops Uk Ltd,10809,1702.44
"Department for Business, Energy and Industrial Strategy",The Coal Authority,03/03/2017,Minewater Sampling - Operational Sites,Environment - Contract Management,10461 Severn Trent Serv Ops Uk Ltd,10809,2598.86
"Department for Business, Energy and Industrial Strategy",The Coal Authority,03/03/2017,Minewater Sampling - Operational Sites,Environment - Contract Management,10461 Severn Trent Serv Ops Uk Ltd,10809,3510.96
"Department for Business, Energy and Industrial Strategy",The Coal Authority,03/03/2017,Minewater Sampling - Operational Sites,Environment - Contract Management,10461 Severn Trent Serv Ops Uk Ltd,10809,538.29
"Department for Business, Energy and Industrial Strategy",The Coal Authority,03/03/2017,Minewater Sampling - Operational Sites,Environment - Contract Management,10461 Severn Trent Serv Ops Uk Ltd,10809,8.1
"Department for Business, Energy and Industrial Strategy",The Coal Authority,03/03/2017,Minewater Sampling - Operational Sites,Environment - Contract Management,10461 Severn Trent Serv Ops Uk Ltd,10809,8.51
"Department for Business, Energy and Industrial Strategy",The Coal Authority,03/03/2017,Minewater Sampling - Operational Sites,Environment - Contract Management,10461 Severn Trent Serv Ops Uk Ltd,10809,8.67
"Department for Business, Energy and Industrial Strategy",The Coal Authority,03/03/2017,Minewater Sampling - Operational Sites,Environment - Contract Management,10461 Severn Trent Serv Ops Uk Ltd,10809,8.91
"Department for Business, Energy and Industrial Strategy",The Coal Authority,03/03/2017,Minewater Sampling - Operational Sites,Environment - Contract Management,10461 Severn Trent Serv Ops Uk Ltd,10809,10.31
"Department for Business, Energy and Industrial Strategy",The Coal Authority,03/03/2017,Minewater Sampling - Operational Sites,Environment - Contract Management,10461 Severn Trent Serv Ops Uk Ltd,10809,11.22
"Department for Business, Energy and Industrial Strategy",The Coal Authority,03/03/2017,Minewater Sampling - Operational Sites,Environment - Contract Management,10461 Severn Trent Serv Ops Uk Ltd,10809,12
"Department for Business, Energy and Industrial Strategy",The Coal Authority,03/03/2017,Minewater Sampling - Operational Sites,Environment - Contract Management,10461 Severn Trent Serv Ops Uk Ltd,10809,12.89
"Department for Business, Energy and Industrial Strategy",The Coal Authority,03/03/2017,Minewater Sampling - Operational Sites,Environment - Contract Management,10461 Severn Trent Serv Ops Uk Ltd,10809,14.45
"Department for Business, Energy and Industrial Strategy",The Coal Authority,03/03/2017,Minewater Sampling - Operational Sites,Environment - Contract Management,10461 Severn Trent Serv Ops Uk Ltd,10809,17.02
"Department for Business, Energy and Industrial Strategy",The Coal Authority,03/03/2017,Minewater Sampling - Operational Sites,Environment - Contract Management,10461 Severn Trent Serv Ops Uk Ltd,10809,17.34
"Department for Business, Energy and Industrial Strategy",The Coal Authority,03/03/2017,Minewater Sampling - Operational Sites,Environment - Contract Management,10461 Severn Trent Serv Ops Uk Ltd,10809,18.81
"Department for Business, Energy and Industrial Strategy",The Coal Authority,03/03/2017,Minewater Sampling - Operational Sites,Environment - Contract Management,10461 Severn Trent Serv Ops Uk Ltd,10809,18.81
"Department for Business, Energy and Industrial Strategy",The Coal Authority,03/03/2017,Minewater Sampling - Operational Sites,Environment - Contract Management,10461 Severn Trent Serv Ops Uk Ltd,10809,20.18
"Department for Business, Energy and Industrial Strategy",The Coal Authority,03/03/2017,Minewater Sampling - Operational Sites,Environment - Contract Management,10461 Severn Trent Serv Ops Uk Ltd,10809,20.48
"Department for Business, Energy and Industrial Strategy",The Coal Authority,03/03/2017,Minewater Sampling - Operational Sites,Environment - Contract Management,10461 Severn Trent Serv Ops Uk Ltd,10809,22.11
"Department for Business, Energy and Industrial Strategy",The Coal Authority,03/03/2017,Minewater Sampling - Operational Sites,Environment - Contract Management,10461 Severn Trent Serv Ops Uk Ltd,10809,23.19
"Department for Business, Energy and Industrial Strategy",The Coal Authority,03/03/2017,Minewater Sampling - Operational Sites,Environment - Contract Management,10461 Severn Trent Serv Ops Uk Ltd,10809,24.31
"Department for Business, Energy and Industrial Strategy",The Coal Authority,03/03/2017,Minewater Sampling - Operational Sites,Environment - Contract Management,10461 Severn Trent Serv Ops Uk Ltd,10809,26.42
"Department for Business, Energy and Industrial Strategy",The Coal Authority,03/03/2017,Minewater Sampling - Operational Sites,Environment - Contract Management,10461 Severn Trent Serv Ops Uk Ltd,10809,27.16
"Department for Business, Energy and Industrial Strategy",The Coal Authority,03/03/2017,Minewater Sampling - Operational Sites,Environment - Contract Management,10461 Severn Trent Serv Ops Uk Ltd,10809,28.83
"Department for Business, Energy and Industrial Strategy",The Coal Authority,03/03/2017,Minewater Sampling - Operational Sites,Environment - Contract Management,10461 Severn Trent Serv Ops Uk Ltd,10809,28.99
"Department for Business, Energy and Industrial Strategy",The Coal Authority,03/03/2017,Minewater Sampling - Operational Sites,Environment - Contract Management,10461 Severn Trent Serv Ops Uk Ltd,10809,29.06
"Department for Business, Energy and Industrial Strategy",The Coal Authority,03/03/2017,Minewater Sampling - Operational Sites,Environment - Contract Management,10461 Severn Trent Serv Ops Uk Ltd,10809,32.41
"Department for Business, Energy and Industrial Strategy",The Coal Authority,03/03/2017,Minewater Sampling - Operational Sites,Environment - Contract Management,10461 Severn Trent Serv Ops Uk Ltd,10809,32.91
"Department for Business, Energy and Industrial Strategy",The Coal Authority,03/03/2017,Minewater Sampling - Operational Sites,Environment - Contract Management,10461 Severn Trent Serv Ops Uk Ltd,10809,36.46
"Department for Business, Energy and Industrial Strategy",The Coal Authority,03/03/2017,Minewater Sampling - Operational Sites,Environment - Contract Management,10461 Severn Trent Serv Ops Uk Ltd,10809,38.08
"Department for Business, Energy and Industrial Strategy",The Coal Authority,03/03/2017,Minewater Sampling - Operational Sites,Environment - Contract Management,10461 Severn Trent Serv Ops Uk Ltd,10809,38.08
"Department for Business, Energy and Industrial Strategy",The Coal Authority,03/03/2017,Minewater Sampling - Operational Sites,Environment - Contract Management,10461 Severn Trent Serv Ops Uk Ltd,10809,38.43
"Department for Business, Energy and Industrial Strategy",The Coal Authority,03/03/2017,Minewater Sampling - Operational Sites,Environment - Contract Management,10461 Severn Trent Serv Ops Uk Ltd,10809,38.66
"Department for Business, Energy and Industrial Strategy",The Coal Authority,03/03/2017,Minewater Sampling - Operational Sites,Environment - Contract Management,10461 Severn Trent Serv Ops Uk Ltd,10809,39.06
"Department for Business, Energy and Industrial Strategy",The Coal Authority,03/03/2017,Minewater Sampling - Operational Sites,Environment - Contract Management,10461 Severn Trent Serv Ops Uk Ltd,10809,39.26
"Department for Business, Energy and Industrial Strategy",The Coal Authority,03/03/2017,Minewater Sampling - Operational Sites,Environment - Contract Management,10461 Severn Trent Serv Ops Uk Ltd,10809,42.84
"Department for Business, Energy and Industrial Strategy",The Coal Authority,03/03/2017,Minewater Sampling - Operational Sites,Environment - Contract Management,10461 Severn Trent Serv Ops Uk Ltd,10809,44.56
"Department for Business, Energy and Industrial Strategy",The Coal Authority,03/03/2017,Minewater Sampling - Operational Sites,Environment - Contract Management,10461 Severn Trent Serv Ops Uk Ltd,10809,52.35
"Department for Business, Energy and Industrial Strategy",The Coal Authority,03/03/2017,Minewater Sampling - Operational Sites,Environment - Contract Management,10461 Severn Trent Serv Ops Uk Ltd,10809,54.45
"Department for Business, Energy and Industrial Strategy",The Coal Authority,03/03/2017,Minewater Sampling - Operational Sites,Environment - Contract Management,10461 Severn Trent Serv Ops Uk Ltd,10809,68.71
"Department for Business, Energy and Industrial Strategy",The Coal Authority,03/03/2017,Minewater Sampling - Operational Sites,Environment - Contract Management,10461 Severn Trent Serv Ops Uk Ltd,10809,70.14
"Department for Business, Energy and Industrial Strategy",The Coal Authority,03/03/2017,Minewater Sampling - Operational Sites,Environment - Contract Management,10461 Severn Trent Serv Ops Uk Ltd,10809,70.53
"Department for Business, Energy and Industrial Strategy",The Coal Authority,03/03/2017,Minewater Sampling - Operational Sites,Environment - Contract Management,10461 Severn Trent Serv Ops Uk Ltd,10809,78.84
"Department for Business, Energy and Industrial Strategy",The Coal Authority,03/03/2017,Minewater Sampling - Operational Sites,Environment - Contract Management,10461 Severn Trent Serv Ops Uk Ltd,10809,81.8
"Department for Business, Energy and Industrial Strategy",The Coal Authority,03/03/2017,Minewater Sampling - Operational Sites,Environment - Contract Management,10461 Severn Trent Serv Ops Uk Ltd,10809,84.72
"Department for Business, Energy and Industrial Strategy",The Coal Authority,03/03/2017,Minewater Sampling - Operational Sites,Environment - Contract Management,10461 Severn Trent Serv Ops Uk Ltd,10809,97.63
"Department for Business, Energy and Industrial Strategy",The Coal Authority,03/03/2017,Minewater Sampling - Operational Sites,Environment - Contract Management,10461 Severn Trent Serv Ops Uk Ltd,10809,101.86
"Department for Business, Energy and Industrial Strategy",The Coal Authority,03/03/2017,Minewater Sampling - Operational Sites,Environment - Contract Management,10461 Severn Trent Serv Ops Uk Ltd,10809,127.92
"Department for Business, Energy and Industrial Strategy",The Coal Authority,03/03/2017,Minewater Sampling - Operational Sites,Environment - Contract Management,10461 Severn Trent Serv Ops Uk Ltd,10809,134.5
"Department for Business, Energy and Industrial Strategy",The Coal Authority,03/03/2017,Minewater Sampling - Operational Sites,Environment - Contract Management,10461 Severn Trent Serv Ops Uk Ltd,10809,153.73
"Department for Business, Energy and Industrial Strategy",The Coal Authority,03/03/2017,Minewater Sampling - Operational Sites,Environment - Contract Management,10461 Severn Trent Serv Ops Uk Ltd,10809,158.25
"Department for Business, Energy and Industrial Strategy",The Coal Authority,03/03/2017,Minewater Sampling - Operational Sites,Environment - Contract Management,10461 Severn Trent Serv Ops Uk Ltd,10809,214.64
"Department for Business, Energy and Industrial Strategy",The Coal Authority,03/03/2017,Minewater Sampling - Operational Sites,Environment - Contract Management,10461 Severn Trent Serv Ops Uk Ltd,10809,248.91
"Department for Business, Energy and Industrial Strategy",The Coal Authority,03/03/2017,Minewater Sampling - Operational Sites,Environment - Contract Management,10461 Severn Trent Serv Ops Uk Ltd,10809,259.1
"Department for Business, Energy and Industrial Strategy",The Coal Authority,03/03/2017,Minewater Sampling - Operational Sites,Environment - Contract Management,10461 Severn Trent Serv Ops Uk Ltd,10809,443.23
"Department for Business, Energy and Industrial Strategy",The Coal Authority,03/03/2017,Minewater Sampling - Operational Sites,Environment - Contract Management,10461 Severn Trent Serv Ops Uk Ltd,10809,480.06
"Department for Business, Energy and Industrial Strategy",The Coal Authority,03/03/2017,Minewater Sampling - Operational Sites,Environment - Contract Management,10461 Severn Trent Serv Ops Uk Ltd,10809,536.58
"Department for Business, Energy and Industrial Strategy",The Coal Authority,03/03/2017,Minewater Sampling - Operational Sites,Environment - Contract Management,10461 Severn Trent Serv Ops Uk Ltd,10809,1033.5
"Department for Business, Energy and Industrial Strategy",The Coal Authority,31/12/2016,Minewater Site Investigations,Environment - Contract Management,Jmc Engineering Uk Ltd,9715,1255.6
"Department for Business, Energy and Industrial Strategy",The Coal Authority,03/03/2017,Minewater Sludge Disposal,Environment - Contract Management,10461 Severn Trent Serv Ops Uk Ltd,10809,4.3
"Department for Business, Energy and Industrial Strategy",The Coal Authority,03/03/2017,Minewater Sludge Disposal,Environment - Contract Management,10461 Severn Trent Serv Ops Uk Ltd,10809,6698.97
"Department for Business, Energy and Industrial Strategy",The Coal Authority,03/03/2017,Minewater Sludge Disposal,Environment - Contract Management,10461 Severn Trent Serv Ops Uk Ltd,10809,6981.27
"Department for Business, Energy and Industrial Strategy",The Coal Authority,03/03/2017,Minewater Sludge Disposal,Environment - Contract Management,10461 Severn Trent Serv Ops Uk Ltd,10809,17226.12
"Department for Business, Energy and Industrial Strategy",The Coal Authority,03/03/2017,Minewater Sludge Disposal,Environment - Contract Management,10461 Severn Trent Serv Ops Uk Ltd,10809,179.53
"Department for Business, Energy and Industrial Strategy",The Coal Authority,03/03/2017,Minewater Sludge Disposal,Environment - Contract Management,10461 Severn Trent Serv Ops Uk Ltd,10809,156.99
"Department for Business, Energy and Industrial Strategy",The Coal Authority,03/03/2017,Minewater Sludge Disposal,Environment - Contract Management,10461 Severn Trent Serv Ops Uk Ltd,10809,2659.27
"Department for Business, Energy and Industrial Strategy",The Coal Authority,03/03/2017,Minewater Sludge Disposal,Environment - Contract Management,10461 Severn Trent Serv Ops Uk Ltd,10809,3.86
"Department for Business, Energy and Industrial Strategy",The Coal Authority,03/03/2017,Minewater Sludge Disposal,Environment - Contract Management,10461 Severn Trent Serv Ops Uk Ltd,10809,4.05
"Department for Business, Energy and Industrial Strategy",The Coal Authority,03/03/2017,Minewater Sludge Disposal,Environment - Contract Management,10461 Severn Trent Serv Ops Uk Ltd,10809,4.81
"Department for Business, Energy and Industrial Strategy",The Coal Authority,03/03/2017,Minewater Sludge Disposal,Environment - Contract Management,10461 Severn Trent Serv Ops Uk Ltd,10809,6.32
"Department for Business, Energy and Industrial Strategy",The Coal Authority,03/03/2017,Minewater Sludge Disposal,Environment - Contract Management,10461 Severn Trent Serv Ops Uk Ltd,10809,7.7
"Department for Business, Energy and Industrial Strategy",The Coal Authority,03/03/2017,Minewater Sludge Disposal,Environment - Contract Management,10461 Severn Trent Serv Ops Uk Ltd,10809,8.22
"Department for Business, Energy and Industrial Strategy",The Coal Authority,03/03/2017,Minewater Sludge Disposal,Environment - Contract Management,10461 Severn Trent Serv Ops Uk Ltd,10809,12.35
"Department for Business, Energy and Industrial Strategy",The Coal Authority,03/03/2017,Minewater Sludge Disposal,Environment - Contract Management,10461 Severn Trent Serv Ops Uk Ltd,10809,12.38
"Department for Business, Energy and Industrial Strategy",The Coal Authority,03/03/2017,Minewater Sludge Disposal,Environment - Contract Management,10461 Severn Trent Serv Ops Uk Ltd,10809,14.1
"Department for Business, Energy and Industrial Strategy",The Coal Authority,03/03/2017,Minewater Sludge Disposal,Environment - Contract Management,10461 Severn Trent Serv Ops Uk Ltd,10809,14.47
"Department for Business, Energy and Industrial Strategy",The Coal Authority,03/03/2017,Minewater Sludge Disposal,Environment - Contract Management,10461 Severn Trent Serv Ops Uk Ltd,10809,17.11
"Department for Business, Energy and Industrial Strategy",The Coal Authority,03/03/2017,Minewater Sludge Disposal,Environment - Contract Management,10461 Severn Trent Serv Ops Uk Ltd,10809,25.27
"Department for Business, Energy and Industrial Strategy",The Coal Authority,03/03/2017,Minewater Sludge Disposal,Environment - Contract Management,10461 Severn Trent Serv Ops Uk Ltd,10809,131.26
"Department for Business, Energy and Industrial Strategy",The Coal Authority,03/03/2017,Minewater Sludge Disposal,Environment - Contract Management,10461 Severn Trent Serv Ops Uk Ltd,10809,544.18
"Department for Business, Energy and Industrial Strategy",The Coal Authority,11/01/2017,Minewater Sponsored Research,Environment - Contract Management,British Gas Business,9870,8.46
"Department for Business, Energy and Industrial Strategy",The Coal Authority,13/02/2017,Minewater Telecoms & Telemetry,Environment - Contract Management,British Telecommunications Plc,10548,102.76
"Department for Business, Energy and Industrial Strategy",The Coal Authority,02/01/2017,Minewater Telecoms & Telemetry,Environment - Contract Management,O2 (Uk) Limited,9332,12.5
"Department for Business, Energy and Industrial Strategy",The Coal Authority,02/01/2017,Minewater Telecoms & Telemetry,Environment - Contract Management,O2 (Uk) Limited,9333,12.5
"Department for Business, Energy and Industrial Strategy",The Coal Authority,02/01/2017,Minewater Telecoms & Telemetry,Environment - Contract Management,O2 (Uk) Limited,9334,12.5
"Department for Business, Energy and Industrial Strategy",The Coal Authority,02/02/2017,Minewater Telecoms & Telemetry,Environment - Contract Management,O2 (Uk) Limited,10524,12.5
"Department for Business, Energy and Industrial Strategy",The Coal Authority,02/02/2017,Minewater Telecoms & Telemetry,Environment - Contract Management,O2 (Uk) Limited,10525,12.5
"Department for Business, Energy and Industrial Strategy",The Coal Authority,16/01/2017,Minewater Telecoms & Telemetry,Environment - Contract Management,Vodafone Limited (Corporate),9915,426.15
"Department for Business, Energy and Industrial Strategy",The Coal Authority,15/02/2017,Minewater Telecoms & Telemetry,Environment - Contract Management,Vodafone Limited (Corporate),10561,634.57
"Department for Business, Energy and Industrial Strategy",The Coal Authority,27/12/2016,Minewater Telecoms & Telemetry,Environment - Contract Management,Wyless Plc,9671,50
"Department for Business, Energy and Industrial Strategy",The Coal Authority,20/01/2017,Minewater Telecoms & Telemetry,Environment - Contract Management,Wyless Plc,9924,50
"Department for Business, Energy and Industrial Strategy",The Coal Authority,17/02/2017,Minewater Telecoms & Telemetry,Environment - Contract Management,Wyless Plc,10574,50
"Department for Business, Energy and Industrial Strategy",The Coal Authority,20/02/2017,Minewater Water Charges,Environment - Contract Management,8083-Cancellation - incorrect values,10303,-6348.62
"Department for Business, Energy and Industrial Strategy",The Coal Authority,18/11/2016,Minewater Water Charges,Environment - Contract Management,Business Stream,10289,75
"Department for Business, Energy and Industrial Strategy",The Coal Authority,04/01/2017,Minewater Water Charges,Environment - Contract Management,National Coal Mining Museum,9753,11581.39
"Department for Business, Energy and Industrial Strategy",The Coal Authority,06/02/2017,Minewater Water Charges,Environment - Contract Management,Northumbrian Water Limited,10137,3026.39
"Department for Business, Energy and Industrial Strategy",The Coal Authority,08/12/2016,Minewater Water Charges,Environment - Contract Management,Severn Trent Water,10136,41.08
"Department for Business, Energy and Industrial Strategy",The Coal Authority,27/02/2017,Mobiles Phones - Call Charges,Environment - Contract Management,10244-Vodafone - cancellation of invoice,10630,-77.82
"Department for Business, Energy and Industrial Strategy",The Coal Authority,24/01/2017,Mobiles Phones - Call Charges,Environment - Contract Management,Vodafone Limited (Corporate),10244,77.82
"Department for Business, Energy and Industrial Strategy",The Coal Authority,09/01/2017,Site Services,Environment - Contract Management,Selby Area Internal Drain Brd,10519,725.4
"Department for Business, Energy and Industrial Strategy",The Coal Authority,09/02/2017,Site Services,Environment - Contract Management,Selby Area Internal Drain Brd,10517,759.86
"Department for Business, Energy and Industrial Strategy",The Coal Authority,09/02/2017,Site Services,Environment - Contract Management,Selby Area Internal Drain Brd,10518,1593.28
"Department for Business, Energy and Industrial Strategy",The Coal Authority,09/02/2017,Site Services,Environment - Contract Management,Selby Area Internal Drain Brd,10520,1952.87
"Department for Business, Energy and Industrial Strategy",The Coal Authority,09/02/2017,Site Services,Environment - Contract Management,Selby Area Internal Drain Brd,10521,50
"Department for Business, Energy and Industrial Strategy",The Coal Authority,27/02/2017,Subsidence - Contractor & Claim Costs,Environment - Contract Management,Hmrc Shipley,10600,7000
"Department for Business, Energy and Industrial Strategy",The Coal Authority,27/02/2017,Subsidence - Contractor & Claim Costs,Environment - Contract Management,Mainstay Payments Limited,10608,120
"Department for Business, Energy and Industrial Strategy",The Coal Authority,03/03/2017,Subsidence Pumping Maintenance - Other,Environment - Contract Management,10461 Severn Trent Serv Ops Uk Ltd,10809,2247.55
"Department for Business, Energy and Industrial Strategy",The Coal Authority,03/03/2017,Subsidence Pumping Maintenance - Other,Environment - Contract Management,10461 Severn Trent Serv Ops Uk Ltd,10809,72.54
"Department for Business, Energy and Industrial Strategy",The Coal Authority,03/03/2017,Subsidence Pumping Maintenance - Other,Environment - Contract Management,10461 Severn Trent Serv Ops Uk Ltd,10809,20.21
"Department for Business, Energy and Industrial Strategy",The Coal Authority,03/03/2017,Subsidence Pumping Maintenance - Other,Environment - Contract Management,10461 Severn Trent Serv Ops Uk Ltd,10809,20.56
"Department for Business, Energy and Industrial Strategy",The Coal Authority,03/03/2017,Subsidence Pumping Maintenance - Other,Environment - Contract Management,10461 Severn Trent Serv Ops Uk Ltd,10809,25.26
"Department for Business, Energy and Industrial Strategy",The Coal Authority,03/03/2017,Subsidence Pumping Maintenance - Other,Environment - Contract Management,10461 Severn Trent Serv Ops Uk Ltd,10809,31.52
"Department for Business, Energy and Industrial Strategy",The Coal Authority,03/03/2017,Subsidence Pumping Maintenance - Other,Environment - Contract Management,10461 Severn Trent Serv Ops Uk Ltd,10809,79.93
"Department for Business, Energy and Industrial Strategy",The Coal Authority,03/03/2017,Subsidence Pumping Maintenance - Other,Environment - Contract Management,10461 Severn Trent Serv Ops Uk Ltd,10809,108.9
"Department for Business, Energy and Industrial Strategy",The Coal Authority,03/03/2017,Subsidence Pumping Maintenance - Other,Environment - Contract Management,10461 Severn Trent Serv Ops Uk Ltd,10809,116.41
"Department for Business, Energy and Industrial Strategy",The Coal Authority,03/03/2017,Subsidence Pumping Maintenance - Other,Environment - Contract Management,10461 Severn Trent Serv Ops Uk Ltd,10809,260.29
"Department for Business, Energy and Industrial Strategy",The Coal Authority,03/03/2017,Subsidence Pumping Maintenance - Other,Environment - Contract Management,10461 Severn Trent Serv Ops Uk Ltd,10809,969.6
"Department for Business, Energy and Industrial Strategy",The Coal Authority,30/12/2016,Subsidence Pumping Maintenance - Other,Environment - Contract Management,Briggs Land Drainage & Excavations Ltd,9459,2543.61
"Department for Business, Energy and Industrial Strategy",The Coal Authority,25/11/2016,Subsidence Pumping Maintenance - Other,Environment - Contract Management,Danvm Drainage Commissioners,9799,3.64
"Department for Business, Energy and Industrial Strategy",The Coal Authority,31/12/2016,Subsidence Pumping Maintenance - Other,Environment - Contract Management,Danvm Drainage Commissioners,9600,196.5
"Department for Business, Energy and Industrial Strategy",The Coal Authority,31/12/2016,Subsidence Pumping Maintenance - Other,Environment - Contract Management,Danvm Drainage Commissioners,9600,183.75
"Department for Business, Energy and Industrial Strategy",The Coal Authority,31/12/2016,Subsidence Pumping Maintenance - Other,Environment - Contract Management,Danvm Drainage Commissioners,9718,2178.62
"Department for Business, Energy and Industrial Strategy",The Coal Authority,31/12/2016,Subsidence Pumping Maintenance - Other,Environment - Contract Management,Danvm Drainage Commissioners,9719,1221.49
"Department for Business, Energy and Industrial Strategy",The Coal Authority,31/12/2016,Subsidence Pumping Maintenance - Other,Environment - Contract Management,Danvm Drainage Commissioners,9853,182.87
"Department for Business, Energy and Industrial Strategy",The Coal Authority,31/12/2016,Subsidence Pumping Maintenance - Other,Environment - Contract Management,Danvm Drainage Commissioners,9853,60.66
"Department for Business, Energy and Industrial Strategy",The Coal Authority,31/12/2016,Subsidence Pumping Maintenance - Other,Environment - Contract Management,Danvm Drainage Commissioners,9853,196.21
"Department for Business, Energy and Industrial Strategy",The Coal Authority,31/12/2016,Subsidence Pumping Maintenance - Other,Environment - Contract Management,Danvm Drainage Commissioners,9853,8
"Department for Business, Energy and Industrial Strategy",The Coal Authority,31/12/2016,Subsidence Pumping Maintenance - Other,Environment - Contract Management,Danvm Drainage Commissioners,9853,182.87
"Department for Business, Energy and Industrial Strategy",The Coal Authority,31/12/2016,Subsidence Pumping Maintenance - Other,Environment - Contract Management,Danvm Drainage Commissioners,9853,193.58
"Department for Business, Energy and Industrial Strategy",The Coal Authority,31/12/2016,Subsidence Pumping Maintenance - Other,Environment - Contract Management,Danvm Drainage Commissioners,9853,27.41
"Department for Business, Energy and Industrial Strategy",The Coal Authority,31/12/2016,Subsidence Pumping Maintenance - Other,Environment - Contract Management,Danvm Drainage Commissioners,9853,136.5
"Department for Business, Energy and Industrial Strategy",The Coal Authority,31/12/2016,Subsidence Pumping Maintenance - Other,Environment - Contract Management,Danvm Drainage Commissioners,9853,182
"Department for Business, Energy and Industrial Strategy",The Coal Authority,31/12/2016,Subsidence Pumping Maintenance - Other,Environment - Contract Management,Danvm Drainage Commissioners,9853,92.17
"Department for Business, Energy and Industrial Strategy",The Coal Authority,31/12/2016,Subsidence Pumping Maintenance - Other,Environment - Contract Management,Danvm Drainage Commissioners,9853,22.79
"Department for Business, Energy and Industrial Strategy",The Coal Authority,31/12/2016,Subsidence Pumping Maintenance - Other,Environment - Contract Management,Danvm Drainage Commissioners,9853,98.25
"Department for Business, Energy and Industrial Strategy",The Coal Authority,31/12/2016,Subsidence Pumping Maintenance - Other,Environment - Contract Management,Danvm Drainage Commissioners,9853,8
"Department for Business, Energy and Industrial Strategy",The Coal Authority,31/12/2016,Subsidence Pumping Maintenance - Other,Environment - Contract Management,Danvm Drainage Commissioners,9853,182
"Department for Business, Energy and Industrial Strategy",The Coal Authority,31/12/2016,Subsidence Pumping Maintenance - Other,Environment - Contract Management,Danvm Drainage Commissioners,9853,19
"Department for Business, Energy and Industrial Strategy",The Coal Authority,31/12/2016,Subsidence Pumping Maintenance - Other,Environment - Contract Management,Danvm Drainage Commissioners,9853,26.77
"Department for Business, Energy and Industrial Strategy",The Coal Authority,31/12/2016,Subsidence Pumping Maintenance - Other,Environment - Contract Management,Danvm Drainage Commissioners,9853,182
"Department for Business, Energy and Industrial Strategy",The Coal Authority,31/12/2016,Subsidence Pumping Maintenance - Other,Environment - Contract Management,Danvm Drainage Commissioners,9853,4638.47
"Department for Business, Energy and Industrial Strategy",The Coal Authority,31/12/2016,Subsidence Pumping Maintenance - Other,Environment - Contract Management,Danvm Drainage Commissioners,9853,182
"Department for Business, Energy and Industrial Strategy",The Coal Authority,31/12/2016,Subsidence Pumping Maintenance - Other,Environment - Contract Management,Danvm Drainage Commissioners,9853,136.5
"Department for Business, Energy and Industrial Strategy",The Coal Authority,31/12/2016,Subsidence Pumping Maintenance - Other,Environment - Contract Management,Danvm Drainage Commissioners,9853,19.58
"Department for Business, Energy and Industrial Strategy",The Coal Authority,31/12/2016,Subsidence Pumping Maintenance - Other,Environment - Contract Management,Danvm Drainage Commissioners,9853,136.5
"Department for Business, Energy and Industrial Strategy",The Coal Authority,31/12/2016,Subsidence Pumping Maintenance - Other,Environment - Contract Management,Danvm Drainage Commissioners,9853,161.07
"Department for Business, Energy and Industrial Strategy",The Coal Authority,31/12/2016,Subsidence Pumping Maintenance - Other,Environment - Contract Management,Danvm Drainage Commissioners,9853,193
"Department for Business, Energy and Industrial Strategy",The Coal Authority,31/12/2016,Subsidence Pumping Maintenance - Other,Environment - Contract Management,Danvm Drainage Commissioners,9853,182
"Department for Business, Energy and Industrial Strategy",The Coal Authority,31/12/2016,Subsidence Pumping Maintenance - Other,Environment - Contract Management,Danvm Drainage Commissioners,9853,193.87
"Department for Business, Energy and Industrial Strategy",The Coal Authority,31/12/2016,Subsidence Pumping Maintenance - Other,Environment - Contract Management,Danvm Drainage Commissioners,9853,20.07
"Department for Business, Energy and Industrial Strategy",The Coal Authority,31/12/2016,Subsidence Pumping Maintenance - Other,Environment - Contract Management,Danvm Drainage Commissioners,9853,189
"Department for Business, Energy and Industrial Strategy",The Coal Authority,16/01/2017,Subsidence Pumping Maintenance - Other,Environment - Contract Management,Danvm Drainage Commissioners,9716,1716
"Department for Business, Energy and Industrial Strategy",The Coal Authority,16/01/2017,Subsidence Pumping Maintenance - Other,Environment - Contract Management,Danvm Drainage Commissioners,9716,442
"Department for Business, Energy and Industrial Strategy",The Coal Authority,16/01/2017,Subsidence Pumping Maintenance - Other,Environment - Contract Management,Danvm Drainage Commissioners,9716,442
"Department for Business, Energy and Industrial Strategy",The Coal Authority,16/01/2017,Subsidence Pumping Maintenance - Other,Environment - Contract Management,Danvm Drainage Commissioners,9716,442
"Department for Business, Energy and Industrial Strategy",The Coal Authority,16/01/2017,Subsidence Pumping Maintenance - Other,Environment - Contract Management,Danvm Drainage Commissioners,9716,442
"Department for Business, Energy and Industrial Strategy",The Coal Authority,16/01/2017,Subsidence Pumping Maintenance - Other,Environment - Contract Management,Danvm Drainage Commissioners,9716,442
"Department for Business, Energy and Industrial Strategy",The Coal Authority,16/01/2017,Subsidence Pumping Maintenance - Other,Environment - Contract Management,Danvm Drainage Commissioners,9716,780
"Department for Business, Energy and Industrial Strategy",The Coal Authority,16/01/2017,Subsidence Pumping Maintenance - Other,Environment - Contract Management,Danvm Drainage Commissioners,9716,442
"Department for Business, Energy and Industrial Strategy",The Coal Authority,16/01/2017,Subsidence Pumping Maintenance - Other,Environment - Contract Management,Danvm Drainage Commissioners,9716,442
"Department for Business, Energy and Industrial Strategy",The Coal Authority,16/01/2017,Subsidence Pumping Maintenance - Other,Environment - Contract Management,Danvm Drainage Commissioners,9717,450
"Department for Business, Energy and Industrial Strategy",The Coal Authority,31/12/2016,Subsidence Pumping Maintenance - Other,Environment - Contract Management,Doncaster East I D B,9931,21.19
"Department for Business, Energy and Industrial Strategy",The Coal Authority,31/12/2016,Subsidence Pumping Maintenance - Other,Environment - Contract Management,Doncaster East I D B,9931,109.59
"Department for Business, Energy and Industrial Strategy",The Coal Authority,31/12/2016,Subsidence Pumping Maintenance - Other,Environment - Contract Management,Doncaster East I D B,9931,182.58
"Department for Business, Energy and Industrial Strategy",The Coal Authority,31/12/2016,Subsidence Pumping Maintenance - Other,Environment - Contract Management,Doncaster East I D B,9931,183.16
"Department for Business, Energy and Industrial Strategy",The Coal Authority,31/12/2016,Subsidence Pumping Maintenance - Other,Environment - Contract Management,Doncaster East I D B,9931,351.29
"Department for Business, Energy and Industrial Strategy",The Coal Authority,31/12/2016,Subsidence Pumping Maintenance - Other,Environment - Contract Management,Doncaster East I D B,9931,21.25
"Department for Business, Energy and Industrial Strategy",The Coal Authority,31/12/2016,Subsidence Pumping Maintenance - Other,Environment - Contract Management,Doncaster East I D B,9931,182.29
"Department for Business, Energy and Industrial Strategy",The Coal Authority,31/12/2016,Subsidence Pumping Maintenance - Other,Environment - Contract Management,Doncaster East I D B,9931,306.77
"Department for Business, Energy and Industrial Strategy",The Coal Authority,31/12/2016,Subsidence Pumping Maintenance - Other,Environment - Contract Management,Doncaster East I D B,9931,15.48
"Department for Business, Energy and Industrial Strategy",The Coal Authority,31/12/2016,Subsidence Pumping Maintenance - Other,Environment - Contract Management,Doncaster East I D B,9931,183.16
"Department for Business, Energy and Industrial Strategy",The Coal Authority,31/12/2016,Subsidence Pumping Maintenance - Other,Environment - Contract Management,Doncaster East I D B,9931,74.11
"Department for Business, Energy and Industrial Strategy",The Coal Authority,31/12/2016,Subsidence Pumping Maintenance - Other,Environment - Contract Management,Doncaster East I D B,9931,3721.35
"Department for Business, Energy and Industrial Strategy",The Coal Authority,05/08/2016,Subsidence Pumping Maintenance - Other,Environment - Contract Management,Environment Agency,9738,10528.88
"Department for Business, Energy and Industrial Strategy",The Coal Authority,08/02/2017,Subsidence Pumping Maintenance - Other,Environment - Contract Management,Jeremy Benn Associates Ltd,10530,899.91
"Department for Business, Energy and Industrial Strategy",The Coal Authority,11/01/2017,Subsidence Pumping Maintenance - Other,Environment - Contract Management,Ouse&Derwnt Intern Drainge Brd,9877,306.07
"Department for Business, Energy and Industrial Strategy",The Coal Authority,13/02/2017,Subsidence Pumping Maintenance - Other,Environment - Contract Management,Ouse&Derwnt Intern Drainge Brd,9942,640.58
"Department for Business, Energy and Industrial Strategy",The Coal Authority,13/02/2017,Subsidence Pumping Maintenance - Other,Environment - Contract Management,Ouse&Derwnt Intern Drainge Brd,9945,619.49
"Department for Business, Energy and Industrial Strategy",The Coal Authority,13/02/2017,Subsidence Pumping Maintenance - Other,Environment - Contract Management,Ouse&Derwnt Intern Drainge Brd,9948,336.27
"Department for Business, Energy and Industrial Strategy",The Coal Authority,13/02/2017,Subsidence Pumping Maintenance - Other,Environment - Contract Management,Ouse&Derwnt Intern Drainge Brd,9952,305.74
"Department for Business, Energy and Industrial Strategy",The Coal Authority,13/02/2017,Subsidence Pumping Maintenance - Other,Environment - Contract Management,Ouse&Derwnt Intern Drainge Brd,9957,14727.71
"Department for Business, Energy and Industrial Strategy",The Coal Authority,31/12/2016,Subsidence Pumping Maintenance - Power,Environment - Contract Management,9847-Doncaster IDB,9925,-19.44
"Department for Business, Energy and Industrial Strategy",The Coal Authority,31/12/2016,Subsidence Pumping Maintenance - Power,Environment - Contract Management,9847-Doncaster IDB,9925,-38.69
"Department for Business, Energy and Industrial Strategy",The Coal Authority,31/12/2016,Subsidence Pumping Maintenance - Power,Environment - Contract Management,9847-Doncaster IDB,9925,-50.25
"Department for Business, Energy and Industrial Strategy",The Coal Authority,31/12/2016,Subsidence Pumping Maintenance - Power,Environment - Contract Management,9847-Doncaster IDB,9925,-75.2
"Department for Business, Energy and Industrial Strategy",The Coal Authority,31/12/2016,Subsidence Pumping Maintenance - Power,Environment - Contract Management,9847-Doncaster IDB,9925,-95.51
"Department for Business, Energy and Industrial Strategy",The Coal Authority,31/12/2016,Subsidence Pumping Maintenance - Power,Environment - Contract Management,9847-Doncaster IDB,9925,-526.59
"Department for Business, Energy and Industrial Strategy",The Coal Authority,11/01/2017,Subsidence Pumping Maintenance - Power,Environment - Contract Management,British Gas Business,9870,83.77
"Department for Business, Energy and Industrial Strategy",The Coal Authority,11/01/2017,Subsidence Pumping Maintenance - Power,Environment - Contract Management,British Gas Business,9870,419.87
"Department for Business, Energy and Industrial Strategy",The Coal Authority,11/01/2017,Subsidence Pumping Maintenance - Power,Environment - Contract Management,British Gas Business,9870,330.09
"Department for Business, Energy and Industrial Strategy",The Coal Authority,11/01/2017,Subsidence Pumping Maintenance - Power,Environment - Contract Management,British Gas Business,9870,48.87
"Department for Business, Energy and Industrial Strategy",The Coal Authority,11/01/2017,Subsidence Pumping Maintenance - Power,Environment - Contract Management,British Gas Business,9870,43.23
"Department for Business, Energy and Industrial Strategy",The Coal Authority,11/01/2017,Subsidence Pumping Maintenance - Power,Environment - Contract Management,British Gas Business,9870,517.58
"Department for Business, Energy and Industrial Strategy",The Coal Authority,11/01/2017,Subsidence Pumping Maintenance - Power,Environment - Contract Management,British Gas Business,9870,728.82
"Department for Business, Energy and Industrial Strategy",The Coal Authority,11/01/2017,Subsidence Pumping Maintenance - Power,Environment - Contract Management,British Gas Business,9870,147.69
"Department for Business, Energy and Industrial Strategy",The Coal Authority,11/01/2017,Subsidence Pumping Maintenance - Power,Environment - Contract Management,British Gas Business,9870,244.8
"Department for Business, Energy and Industrial Strategy",The Coal Authority,11/01/2017,Subsidence Pumping Maintenance - Power,Environment - Contract Management,British Gas Business,9870,261.73
"Department for Business, Energy and Industrial Strategy",The Coal Authority,11/01/2017,Subsidence Pumping Maintenance - Power,Environment - Contract Management,British Gas Business,9870,159.14
"Department for Business, Energy and Industrial Strategy",The Coal Authority,11/01/2017,Subsidence Pumping Maintenance - Power,Environment - Contract Management,British Gas Business,9870,172.67
"Department for Business, Energy and Industrial Strategy",The Coal Authority,11/01/2017,Subsidence Pumping Maintenance - Power,Environment - Contract Management,British Gas Business,9870,92.27
"Department for Business, Energy and Industrial Strategy",The Coal Authority,11/01/2017,Subsidence Pumping Maintenance - Power,Environment - Contract Management,British Gas Business,9870,178.61
"Department for Business, Energy and Industrial Strategy",The Coal Authority,11/01/2017,Subsidence Pumping Maintenance - Power,Environment - Contract Management,British Gas Business,9875,11.72
"Department for Business, Energy and Industrial Strategy",The Coal Authority,11/01/2017,Subsidence Pumping Maintenance - Power,Environment - Contract Management,British Gas Business,9875,29.56
"Department for Business, Energy and Industrial Strategy",The Coal Authority,11/01/2017,Subsidence Pumping Maintenance - Power,Environment - Contract Management,British Gas Business,9875,92.8
"Department for Business, Energy and Industrial Strategy",The Coal Authority,11/01/2017,Subsidence Pumping Maintenance - Power,Environment - Contract Management,British Gas Business,9875,10.28
"Department for Business, Energy and Industrial Strategy",The Coal Authority,11/01/2017,Subsidence Pumping Maintenance - Power,Environment - Contract Management,British Gas Business,9875,35.4
"Department for Business, Energy and Industrial Strategy",The Coal Authority,11/01/2017,Subsidence Pumping Maintenance - Power,Environment - Contract Management,British Gas Business,9875,188.4
"Department for Business, Energy and Industrial Strategy",The Coal Authority,11/01/2017,Subsidence Pumping Maintenance - Power,Environment - Contract Management,British Gas Business,9875,50.3
"Department for Business, Energy and Industrial Strategy",The Coal Authority,07/02/2017,Subsidence Pumping Maintenance - Power,Environment - Contract Management,British Gas Business,10544,1033.59
"Department for Business, Energy and Industrial Strategy",The Coal Authority,13/02/2017,Subsidence Pumping Maintenance - Power,Environment - Contract Management,British Gas Business,10589,8.46
"Department for Business, Energy and Industrial Strategy",The Coal Authority,13/02/2017,Subsidence Pumping Maintenance - Power,Environment - Contract Management,British Gas Business,10589,56.78
"Department for Business, Energy and Industrial Strategy",The Coal Authority,13/02/2017,Subsidence Pumping Maintenance - Power,Environment - Contract Management,British Gas Business,10589,353.34
"Department for Business, Energy and Industrial Strategy",The Coal Authority,13/02/2017,Subsidence Pumping Maintenance - Power,Environment - Contract Management,British Gas Business,10589,362.38
"Department for Business, Energy and Industrial Strategy",The Coal Authority,13/02/2017,Subsidence Pumping Maintenance - Power,Environment - Contract Management,British Gas Business,10589,49.38
"Department for Business, Energy and Industrial Strategy",The Coal Authority,13/02/2017,Subsidence Pumping Maintenance - Power,Environment - Contract Management,British Gas Business,10589,46.87
"Department for Business, Energy and Industrial Strategy",The Coal Authority,13/02/2017,Subsidence Pumping Maintenance - Power,Environment - Contract Management,British Gas Business,10589,569.04
"Department for Business, Energy and Industrial Strategy",The Coal Authority,13/02/2017,Subsidence Pumping Maintenance - Power,Environment - Contract Management,British Gas Business,10589,638.29
"Department for Business, Energy and Industrial Strategy",The Coal Authority,13/02/2017,Subsidence Pumping Maintenance - Power,Environment - Contract Management,British Gas Business,10589,168.06
"Department for Business, Energy and Industrial Strategy",The Coal Authority,13/02/2017,Subsidence Pumping Maintenance - Power,Environment - Contract Management,British Gas Business,10589,241.06
"Department for Business, Energy and Industrial Strategy",The Coal Authority,13/02/2017,Subsidence Pumping Maintenance - Power,Environment - Contract Management,British Gas Business,10589,468.87
"Department for Business, Energy and Industrial Strategy",The Coal Authority,13/02/2017,Subsidence Pumping Maintenance - Power,Environment - Contract Management,British Gas Business,10589,177.74
"Department for Business, Energy and Industrial Strategy",The Coal Authority,13/02/2017,Subsidence Pumping Maintenance - Power,Environment - Contract Management,British Gas Business,10589,192.94
"Department for Business, Energy and Industrial Strategy",The Coal Authority,13/02/2017,Subsidence Pumping Maintenance - Power,Environment - Contract Management,British Gas Business,10589,87.78
"Department for Business, Energy and Industrial Strategy",The Coal Authority,13/02/2017,Subsidence Pumping Maintenance - Power,Environment - Contract Management,British Gas Business,10589,67.82
"Department for Business, Energy and Industrial Strategy",The Coal Authority,31/12/2016,Subsidence Pumping Maintenance - Power,Environment - Contract Management,Danvm Drainage Commissioners,9291,588.81
"Department for Business, Energy and Industrial Strategy",The Coal Authority,31/12/2016,Subsidence Pumping Maintenance - Power,Environment - Contract Management,Danvm Drainage Commissioners,9848,192.8
"Department for Business, Energy and Industrial Strategy",The Coal Authority,31/12/2016,Subsidence Pumping Maintenance - Power,Environment - Contract Management,Danvm Drainage Commissioners,9848,240.85
"Department for Business, Energy and Industrial Strategy",The Coal Authority,31/12/2016,Subsidence Pumping Maintenance - Power,Environment - Contract Management,Danvm Drainage Commissioners,9848,378.43
"Department for Business, Energy and Industrial Strategy",The Coal Authority,31/12/2016,Subsidence Pumping Maintenance - Power,Environment - Contract Management,Danvm Drainage Commissioners,9848,1097.53
"Department for Business, Energy and Industrial Strategy",The Coal Authority,31/12/2016,Subsidence Pumping Maintenance - Power,Environment - Contract Management,Danvm Drainage Commissioners,9848,36.13
"Department for Business, Energy and Industrial Strategy",The Coal Authority,31/12/2016,Subsidence Pumping Maintenance - Power,Environment - Contract Management,Danvm Drainage Commissioners,9848,59.34
"Department for Business, Energy and Industrial Strategy",The Coal Authority,31/12/2016,Subsidence Pumping Maintenance - Power,Environment - Contract Management,Danvm Drainage Commissioners,9848,1343.1
"Department for Business, Energy and Industrial Strategy",The Coal Authority,31/12/2016,Subsidence Pumping Maintenance - Power,Environment - Contract Management,Danvm Drainage Commissioners,9848,45.48
"Department for Business, Energy and Industrial Strategy",The Coal Authority,31/12/2016,Subsidence Pumping Maintenance - Power,Environment - Contract Management,Danvm Drainage Commissioners,9848,316.35
"Department for Business, Energy and Industrial Strategy",The Coal Authority,31/12/2016,Subsidence Pumping Maintenance - Power,Environment - Contract Management,Danvm Drainage Commissioners,9848,447.39
"Department for Business, Energy and Industrial Strategy",The Coal Authority,31/12/2016,Subsidence Pumping Maintenance - Power,Environment - Contract Management,Danvm Drainage Commissioners,9848,110.01
"Department for Business, Energy and Industrial Strategy",The Coal Authority,31/12/2016,Subsidence Pumping Maintenance - Power,Environment - Contract Management,Danvm Drainage Commissioners,9848,489.47
"Department for Business, Energy and Industrial Strategy",The Coal Authority,31/12/2016,Subsidence Pumping Maintenance - Power,Environment - Contract Management,Danvm Drainage Commissioners,9848,191.53
"Department for Business, Energy and Industrial Strategy",The Coal Authority,31/12/2016,Subsidence Pumping Maintenance - Power,Environment - Contract Management,Danvm Drainage Commissioners,9848,452.09
"Department for Business, Energy and Industrial Strategy",The Coal Authority,31/12/2016,Subsidence Pumping Maintenance - Power,Environment - Contract Management,Danvm Drainage Commissioners,9848,454.52
"Department for Business, Energy and Industrial Strategy",The Coal Authority,17/02/2017,Subsidence Pumping Maintenance - Power,Environment - Contract Management,Danvm Drainage Commissioners,10440,132.94
"Department for Business, Energy and Industrial Strategy",The Coal Authority,31/12/2016,Subsidence Pumping Maintenance - Power,Environment - Contract Management,Doncaster East I D B,9847,38.69
"Department for Business, Energy and Industrial Strategy",The Coal Authority,31/12/2016,Subsidence Pumping Maintenance - Power,Environment - Contract Management,Doncaster East I D B,9847,50.25
"Department for Business, Energy and Industrial Strategy",The Coal Authority,31/12/2016,Subsidence Pumping Maintenance - Power,Environment - Contract Management,Doncaster East I D B,9847,19.44
"Department for Business, Energy and Industrial Strategy",The Coal Authority,31/12/2016,Subsidence Pumping Maintenance - Power,Environment - Contract Management,Doncaster East I D B,9847,95.51
"Department for Business, Energy and Industrial Strategy",The Coal Authority,31/12/2016,Subsidence Pumping Maintenance - Power,Environment - Contract Management,Doncaster East I D B,9847,75.2
"Department for Business, Energy and Industrial Strategy",The Coal Authority,31/12/2016,Subsidence Pumping Maintenance - Power,Environment - Contract Management,Doncaster East I D B,9847,526.59
"Department for Business, Energy and Industrial Strategy",The Coal Authority,31/12/2016,Subsidence Pumping Maintenance - Power,Environment - Contract Management,Doncaster East I D B,9859,38.69
"Department for Business, Energy and Industrial Strategy",The Coal Authority,31/12/2016,Subsidence Pumping Maintenance - Power,Environment - Contract Management,Doncaster East I D B,9859,50.25
"Department for Business, Energy and Industrial Strategy",The Coal Authority,31/12/2016,Subsidence Pumping Maintenance - Power,Environment - Contract Management,Doncaster East I D B,9859,19.44
"Department for Business, Energy and Industrial Strategy",The Coal Authority,31/12/2016,Subsidence Pumping Maintenance - Power,Environment - Contract Management,Doncaster East I D B,9859,95.51
"Department for Business, Energy and Industrial Strategy",The Coal Authority,31/12/2016,Subsidence Pumping Maintenance - Power,Environment - Contract Management,Doncaster East I D B,9859,75.2
"Department for Business, Energy and Industrial Strategy",The Coal Authority,31/12/2016,Subsidence Pumping Maintenance - Power,Environment - Contract Management,Doncaster East I D B,9859,526.59
"Department for Business, Energy and Industrial Strategy",The Coal Authority,08/10/2016,Subsidence Pumping Maintenance - Power,Environment - Contract Management,Edf Energy,9722,360
"Department for Business, Energy and Industrial Strategy",The Coal Authority,14/02/2017,Subsidence Pumping Maintenance - Power,Environment - Contract Management,Edf Energy,10004,1240.72
"Department for Business, Energy and Industrial Strategy",The Coal Authority,14/02/2017,Subsidence Pumping Maintenance - Power,Environment - Contract Management,Edf Energy,10004,432.24
"Department for Business, Energy and Industrial Strategy",The Coal Authority,14/02/2017,Subsidence Pumping Maintenance - Power,Environment - Contract Management,Edf Energy,10004,432.54
"Department for Business, Energy and Industrial Strategy",The Coal Authority,14/02/2017,Subsidence Pumping Maintenance - Power,Environment - Contract Management,Edf Energy,10004,2603.78
"Department for Business, Energy and Industrial Strategy",The Coal Authority,14/02/2017,Subsidence Pumping Maintenance - Power,Environment - Contract Management,Edf Energy,10004,195.56
"Department for Business, Energy and Industrial Strategy",The Coal Authority,05/08/2016,Subsidence Pumping Maintenance - Power,Environment - Contract Management,Environment Agency,9738,1033.92
"Department for Business, Energy and Industrial Strategy",The Coal Authority,05/08/2016,Subsidence Pumping Maintenance - Power,Environment - Contract Management,Environment Agency,9738,3521.68
"Department for Business, Energy and Industrial Strategy",The Coal Authority,05/08/2016,Subsidence Pumping Maintenance - Power,Environment - Contract Management,Environment Agency,9738,1386.74
"Department for Business, Energy and Industrial Strategy",The Coal Authority,05/08/2016,Subsidence Pumping Maintenance - Power,Environment - Contract Management,Environment Agency,9738,5209.37
"Department for Business, Energy and Industrial Strategy",The Coal Authority,05/08/2016,Subsidence Pumping Maintenance - Power,Environment - Contract Management,Environment Agency,9738,15662.34
"Department for Business, Energy and Industrial Strategy",The Coal Authority,11/01/2017,Subsidence Pumping Maintenance - Power,Environment - Contract Management,Ouse&Derwnt Intern Drainge Brd,9877,679.16
"Department for Business, Energy and Industrial Strategy",The Coal Authority,13/02/2017,Subsidence Pumping Maintenance - Power,Environment - Contract Management,Ouse&Derwnt Intern Drainge Brd,9942,154.62
"Department for Business, Energy and Industrial Strategy",The Coal Authority,13/02/2017,Subsidence Pumping Maintenance - Power,Environment - Contract Management,Ouse&Derwnt Intern Drainge Brd,9942,1444.36
"Department for Business, Energy and Industrial Strategy",The Coal Authority,13/02/2017,Subsidence Pumping Maintenance - Power,Environment - Contract Management,Ouse&Derwnt Intern Drainge Brd,9945,213.48
"Department for Business, Energy and Industrial Strategy",The Coal Authority,13/02/2017,Subsidence Pumping Maintenance - Power,Environment - Contract Management,Ouse&Derwnt Intern Drainge Brd,9945,2034.03
"Department for Business, Energy and Industrial Strategy",The Coal Authority,13/02/2017,Subsidence Pumping Maintenance - Power,Environment - Contract Management,Ouse&Derwnt Intern Drainge Brd,9952,147.55
"Department for Business, Energy and Industrial Strategy",The Coal Authority,13/02/2017,Subsidence Pumping Maintenance - Power,Environment - Contract Management,Ouse&Derwnt Intern Drainge Brd,9952,660.2
"Department for Business, Energy and Industrial Strategy",The Coal Authority,13/02/2017,Subsidence Pumping Maintenance - Power,Environment - Contract Management,Ouse&Derwnt Intern Drainge Brd,9957,412.73
"Department for Business, Energy and Industrial Strategy",The Coal Authority,13/02/2017,Subsidence Pumping Maintenance - Power,Environment - Contract Management,Ouse&Derwnt Intern Drainge Brd,9957,4981.34
"Department for Business, Energy and Industrial Strategy",The Coal Authority,13/02/2017,Subsidence Pumping Maintenance - Power,Environment - Contract Management,Ouse&Derwnt Intern Drainge Brd,9959,295.75
"Department for Business, Energy and Industrial Strategy",The Coal Authority,13/02/2017,Subsidence Pumping Maintenance - Power,Environment - Contract Management,Ouse&Derwnt Intern Drainge Brd,9959,1201.9
"Department for Business, Energy and Industrial Strategy",The Coal Authority,13/02/2017,Subsidence Pumping Maintenance - Power,Environment - Contract Management,Ouse&Derwnt Intern Drainge Brd,9959,2790.84
"Department for Business, Energy and Industrial Strategy",The Coal Authority,09/01/2017,Subsidence Pumping Maintenance - Power,Environment - Contract Management,Selby Area Internal Drain Brd,10519,119.92
"Department for Business, Energy and Industrial Strategy",The Coal Authority,09/02/2017,Subsidence Pumping Maintenance - Power,Environment - Contract Management,Selby Area Internal Drain Brd,10517,135.67
"Department for Business, Energy and Industrial Strategy",The Coal Authority,09/02/2017,Subsidence Pumping Maintenance - Power,Environment - Contract Management,Selby Area Internal Drain Brd,10518,1530.57
"Department for Business, Energy and Industrial Strategy",The Coal Authority,09/02/2017,Subsidence Pumping Maintenance - Power,Environment - Contract Management,Selby Area Internal Drain Brd,10520,3707.58
"Department for Business, Energy and Industrial Strategy",The Coal Authority,09/02/2017,Subsidence Pumping Maintenance - Power,Environment - Contract Management,Selby Area Internal Drain Brd,10521,18.29
"Department for Business, Energy and Industrial Strategy",The Coal Authority,20/02/2017,Temporary Contractors,Environment - Contract Management,9199-Cancellation-duplicate invoice,10319,-2240
"Department for Business, Energy and Industrial Strategy",The Coal Authority,20/02/2017,Temporary Contractors,Environment - Contract Management,9199-Cancellation-duplicate invoice,10321,2240
"Department for Business, Energy and Industrial Strategy",The Coal Authority,03/01/2017,Temporary Contractors,Environment - Contract Management,9199-Huxley Associates,9482,-2240
"Department for Business, Energy and Industrial Strategy",The Coal Authority,31/01/2017,Temporary Contractors,Environment - Contract Management,Cumbrian Resources Ltd,10512,6400
"Department for Business, Energy and Industrial Strategy",The Coal Authority,07/02/2017,Temporary Contractors,Environment - Contract Management,Huxley Associates,9816,1176.67
"Department for Business, Energy and Industrial Strategy",The Coal Authority,07/02/2017,Temporary Contractors,Environment - Contract Management,Huxley Associates,9819,448
"Department for Business, Energy and Industrial Strategy",The Coal Authority,10/01/2017,Training & Education,Environment - Contract Management,Thomas Telford Training,9784,-252
"Department for Business, Energy and Industrial Strategy",The Coal Authority,02/02/2017,Training & Education,Environment - Contract Management,Thomas Telford Training,9812,1665
"Department for Business, Energy and Industrial Strategy",The Coal Authority,25/01/2017,Water Charges,Environment - Contract Management,Business Stream,9810,6494.86
"Department for Business, Energy and Industrial Strategy",The Coal Authority,23/01/2017,Water Charges,Environment - Contract Management,Neath Port Talbot County B C,10238,61.38
"Department for Business, Energy and Industrial Strategy",The Coal Authority,23/01/2017,Water Charges,Environment - Contract Management,Neath Port Talbot County B C,10240,146.68
"Department for Business, Energy and Industrial Strategy",The Coal Authority,01/01/2017,CY - Non-coal Minewater - Additions,Environment - DEFRA - EA Programme,J N Bentley Limited,9423,6250.25
"Department for Business, Energy and Industrial Strategy",The Coal Authority,23/01/2017,CY - Non-coal Minewater - Additions,Environment - DEFRA - EA Programme,UTEC Starnet,10225,3450.8
"Department for Business, Energy and Industrial Strategy",The Coal Authority,21/12/2016,CY - Non-coal Minewater - Additions,Environment - DEFRA - EA Programme,Veolia Water Ind Outsourcing L,9858,20527.29
"Department for Business, Energy and Industrial Strategy",The Coal Authority,15/11/2016,Minewater Chemicals - Operational Sites,Environment - DEFRA - EA Programme,Veolia Water Ind Outsourcing L,10043,12851.6
"Department for Business, Energy and Industrial Strategy",The Coal Authority,21/12/2016,Minewater Chemicals - Operational Sites,Environment - DEFRA - EA Programme,Veolia Water Ind Outsourcing L,9858,10478.63
"Department for Business, Energy and Industrial Strategy",The Coal Authority,24/01/2017,Minewater Chemicals - Operational Sites,Environment - DEFRA - EA Programme,Veolia Water Ind Outsourcing L,10234,16024.65
"Department for Business, Energy and Industrial Strategy",The Coal Authority,03/03/2017,Minewater Contractor Add. Task Order - Ops Site,Environment - DEFRA - EA Programme,10461 Severn Trent Serv Ops Uk Ltd,10809,118.75
"Department for Business, Energy and Industrial Strategy",The Coal Authority,15/11/2016,Minewater Contractor Add. Task Order - Ops Site,Environment - DEFRA - EA Programme,Veolia Water Ind Outsourcing L,10043,33096.74
"Department for Business, Energy and Industrial Strategy",The Coal Authority,21/12/2016,Minewater Contractor Add. Task Order - Ops Site,Environment - DEFRA - EA Programme,Veolia Water Ind Outsourcing L,9858,34088.19
"Department for Business, Energy and Industrial Strategy",The Coal Authority,24/01/2017,Minewater Contractor Add. Task Order - Ops Site,Environment - DEFRA - EA Programme,Veolia Water Ind Outsourcing L,10234,33824.87
"Department for Business, Energy and Industrial Strategy",The Coal Authority,03/03/2017,Minewater Contractor Maint. Visits - Ops Site,Environment - DEFRA - EA Programme,10461 Severn Trent Serv Ops Uk Ltd,10809,7615.7
"Department for Business, Energy and Industrial Strategy",The Coal Authority,03/03/2017,Minewater Contractor Maint. Visits - Ops Site,Environment - DEFRA - EA Programme,10461 Severn Trent Serv Ops Uk Ltd,10809,36.91
"Department for Business, Energy and Industrial Strategy",The Coal Authority,03/03/2017,Minewater Contractor Maint. Visits - Ops Site,Environment - DEFRA - EA Programme,10461 Severn Trent Serv Ops Uk Ltd,10809,37.61
"Department for Business, Energy and Industrial Strategy",The Coal Authority,03/03/2017,Minewater Contractor Maint. Visits - Ops Site,Environment - DEFRA - EA Programme,10461 Severn Trent Serv Ops Uk Ltd,10809,5.61
"Department for Business, Energy and Industrial Strategy",The Coal Authority,03/03/2017,Minewater Contractor Maint. Visits - Ops Site,Environment - DEFRA - EA Programme,10461 Severn Trent Serv Ops Uk Ltd,10809,18.64
"Department for Business, Energy and Industrial Strategy",The Coal Authority,03/03/2017,Minewater Contractor Maint. Visits - Ops Site,Environment - DEFRA - EA Programme,10461 Severn Trent Serv Ops Uk Ltd,10809,1289.86
"Department for Business, Energy and Industrial Strategy",The Coal Authority,03/03/2017,Minewater Contractor Maint. Visits - Ops Site,Environment - DEFRA - EA Programme,10461 Severn Trent Serv Ops Uk Ltd,10809,67.18
"Department for Business, Energy and Industrial Strategy",The Coal Authority,03/03/2017,Minewater Contractor Maint. Visits - Ops Site,Environment - DEFRA - EA Programme,10461 Severn Trent Serv Ops Uk Ltd,10809,2004.58
"Department for Business, Energy and Industrial Strategy",The Coal Authority,03/03/2017,Minewater Contractor Maint. Visits - Ops Site,Environment - DEFRA - EA Programme,10461 Severn Trent Serv Ops Uk Ltd,10809,52.27
"Department for Business, Energy and Industrial Strategy",The Coal Authority,18/01/2017,Minewater Feasibility / Scoping,Environment - DEFRA - EA Programme,Atkins Limited,9930,10467.25
"Department for Business, Energy and Industrial Strategy",The Coal Authority,16/02/2017,Minewater Feasibility / Scoping,Environment - DEFRA - EA Programme,Atkins Limited,10569,11040.83
"Department for Business, Energy and Industrial Strategy",The Coal Authority,29/12/2016,Minewater Feasibility / Scoping,Environment - DEFRA - EA Programme,Mouchel Ltd,9293,5329.92
"Department for Business, Energy and Industrial Strategy",The Coal Authority,06/01/2017,Minewater Feasibility / Scoping,Environment - DEFRA - EA Programme,Mouchel Ltd,9726,571.57
"Department for Business, Energy and Industrial Strategy",The Coal Authority,06/01/2017,Minewater Feasibility / Scoping,Environment - DEFRA - EA Programme,Mouchel Ltd,9728,4764.56
"Department for Business, Energy and Industrial Strategy",The Coal Authority,21/02/2017,Minewater Feasibility / Scoping,Environment - DEFRA - EA Programme,Mouchel Ltd,10614,1482.13
"Department for Business, Energy and Industrial Strategy",The Coal Authority,21/02/2017,Minewater Feasibility / Scoping,Environment - DEFRA - EA Programme,Mouchel Ltd,10621,1891.65
"Department for Business, Energy and Industrial Strategy",The Coal Authority,27/02/2017,Minewater Feasibility / Scoping,Environment - DEFRA - EA Programme,Mouchel Ltd,10616,451.93
"Department for Business, Energy and Industrial Strategy",The Coal Authority,31/01/2017,Minewater Land Agents (Acquisitions),Environment - DEFRA - EA Programme,Mark N Carey Limited,10262,169
"Department for Business, Energy and Industrial Strategy",The Coal Authority,03/03/2017,Minewater Landscaping,Environment - DEFRA - EA Programme,10461 Severn Trent Serv Ops Uk Ltd,10809,225.69
"Department for Business, Energy and Industrial Strategy",The Coal Authority,03/03/2017,Minewater Monitoring & Flow Measurement,Environment - DEFRA - EA Programme,10461 Severn Trent Serv Ops Uk Ltd,10809,701.36
"Department for Business, Energy and Industrial Strategy",The Coal Authority,03/03/2017,Minewater Monitoring & Flow Measurement,Environment - DEFRA - EA Programme,10461 Severn Trent Serv Ops Uk Ltd,10809,63.58
"Department for Business, Energy and Industrial Strategy",The Coal Authority,03/03/2017,Minewater Monitoring & Flow Measurement,Environment - DEFRA - EA Programme,10461 Severn Trent Serv Ops Uk Ltd,10809,39.36
"Department for Business, Energy and Industrial Strategy",The Coal Authority,03/03/2017,Minewater Monitoring & Flow Measurement,Environment - DEFRA - EA Programme,10461 Severn Trent Serv Ops Uk Ltd,10809,137.29
"Department for Business, Energy and Industrial Strategy",The Coal Authority,03/03/2017,Minewater Monitoring & Flow Measurement,Environment - DEFRA - EA Programme,10461 Severn Trent Serv Ops Uk Ltd,10809,18.55
"Department for Business, Energy and Industrial Strategy",The Coal Authority,03/03/2017,Minewater Monitoring & Flow Measurement,Environment - DEFRA - EA Programme,10461 Severn Trent Serv Ops Uk Ltd,10809,2198.81
"Department for Business, Energy and Industrial Strategy",The Coal Authority,14/02/2017,Minewater Power Costs,Environment - DEFRA - EA Programme,Edf Energy,10004,27735.33
"Department for Business, Energy and Industrial Strategy",The Coal Authority,15/11/2016,Minewater Power Costs,Environment - DEFRA - EA Programme,Veolia Water Ind Outsourcing L,10041,-3322.91
"Department for Business, Energy and Industrial Strategy",The Coal Authority,15/11/2016,Minewater Power Costs,Environment - DEFRA - EA Programme,Veolia Water Ind Outsourcing L,10043,697.03
"Department for Business, Energy and Industrial Strategy",The Coal Authority,21/12/2016,Minewater Power Costs,Environment - DEFRA - EA Programme,Veolia Water Ind Outsourcing L,9858,770.85
"Department for Business, Energy and Industrial Strategy",The Coal Authority,24/01/2017,Minewater Power Costs,Environment - DEFRA - EA Programme,Veolia Water Ind Outsourcing L,10231,-3592.51
"Department for Business, Energy and Industrial Strategy",The Coal Authority,24/01/2017,Minewater Power Costs,Environment - DEFRA - EA Programme,Veolia Water Ind Outsourcing L,10234,617.08
"Department for Business, Energy and Industrial Strategy",The Coal Authority,03/03/2017,Minewater Sampling - 'Non-operational' Sites,Environment - DEFRA - EA Programme,10461 Severn Trent Serv Ops Uk Ltd,10809,894.83
"Department for Business, Energy and Industrial Strategy",The Coal Authority,03/03/2017,Minewater Sampling - 'Non-operational' Sites,Environment - DEFRA - EA Programme,10461 Severn Trent Serv Ops Uk Ltd,10809,1417.25
"Department for Business, Energy and Industrial Strategy",The Coal Authority,03/03/2017,Minewater Sampling - 'Non-operational' Sites,Environment - DEFRA - EA Programme,10461 Severn Trent Serv Ops Uk Ltd,10809,18.11
"Department for Business, Energy and Industrial Strategy",The Coal Authority,03/03/2017,Minewater Sampling - 'Non-operational' Sites,Environment - DEFRA - EA Programme,10461 Severn Trent Serv Ops Uk Ltd,10809,20.57
"Department for Business, Energy and Industrial Strategy",The Coal Authority,03/03/2017,Minewater Sampling - 'Non-operational' Sites,Environment - DEFRA - EA Programme,10461 Severn Trent Serv Ops Uk Ltd,10809,23.31
"Department for Business, Energy and Industrial Strategy",The Coal Authority,03/03/2017,Minewater Sampling - 'Non-operational' Sites,Environment - DEFRA - EA Programme,10461 Severn Trent Serv Ops Uk Ltd,10809,51.72
